Body_Code,Body_Name,Service,Posting Date,GL Code,GL Code Desc,Doc Number,Doc Net Amount,Supplier Name
http://statistics.data.gov.uk/id/local-authority/38,Oxfordshire County Council,CAP CHRGES-PRIM SCHS,15/11/2023,8102,Payments to main contractor,2201169791,"-1,614,500.00",Persimmon Homes Wessex
http://statistics.data.gov.uk/id/local-authority/38,Oxfordshire County Council,COMM DRAWDOWN FUNDNG,20/11/2023,8004,Design Consultant,2201171533,"-474,389.06",Balfour Beatty
http://statistics.data.gov.uk/id/local-authority/38,Oxfordshire County Council,CAP CHRGES-PRIM SCHS,03/11/2023,8102,Payments to main contractor,2201165767,"-378,691.27",ISG Construction Ltd
http://statistics.data.gov.uk/id/local-authority/38,Oxfordshire County Council,Care Homes - Under 65 Leaning Disability,10/11/2023,5686,,3111549091,"-356,921.64",CAS Behavioural Health Ltd
http://statistics.data.gov.uk/id/local-authority/38,Oxfordshire County Council,ICT Operations & Maintenance,01/11/2023,8103,Payments to sub contractor,2201164724,"-265,525.83",Liquidlogic Ltd
http://statistics.data.gov.uk/id/local-authority/38,Oxfordshire County Council,Care Homes - Under 65 Leaning Disability,10/11/2023,5686,,3111548632,"-100,970.71",Elmfield Cottage
http://statistics.data.gov.uk/id/local-authority/38,Oxfordshire County Council,Care Homes - Under 65 Leaning Disability,10/11/2023,5686,,3111548960,"-81,117.93",Community Homes of Intensive Care
http://statistics.data.gov.uk/id/local-authority/38,Oxfordshire County Council,Care Homes - Under 65 Leaning Disability,10/11/2023,5686,,3111548965,"-80,528.48",Community Homes of Intensive Care
http://statistics.data.gov.uk/id/local-authority/38,Oxfordshire County Council,NURSERY ED FUND,02/11/2023,5537,Payments to Other Establishments,3111534655,"-80,467.38",Annabelles Nursery
http://statistics.data.gov.uk/id/local-authority/38,Oxfordshire County Council,Care Homes - Under 65 Leaning Disability,10/11/2023,5686,,3111548973,"-67,094.19",Community Homes of Intensive Care
http://statistics.data.gov.uk/id/local-authority/38,Oxfordshire County Council,Care Homes - Under 65 Leaning Disability,10/11/2023,5686,,3111548971,"-66,667.41",Community Homes of Intensive Care
http://statistics.data.gov.uk/id/local-authority/38,Oxfordshire County Council,Care Homes - Under 65 Leaning Disability,10/11/2023,5686,,3111548962,"-61,901.49",Community Homes of Intensive Care
http://statistics.data.gov.uk/id/local-authority/38,Oxfordshire County Council,NURSERY ED FUND,02/11/2023,5537,Payments to Other Establishments,3111537692,"-61,839.54",The Sunshine Centre
http://statistics.data.gov.uk/id/local-authority/38,Oxfordshire County Council,Care Homes - Over 65 Leaning Disability,10/11/2023,5686,,3111548964,"-60,838.69",Community Homes of Intensive Care
http://statistics.data.gov.uk/id/local-authority/38,Oxfordshire County Council,Care Homes - Under 65 Leaning Disability,10/11/2023,5686,,3111548974,"-60,251.71",Community Homes of Intensive Care
http://statistics.data.gov.uk/id/local-authority/38,Oxfordshire County Council,COMM DRAWDOWN FUNDNG,14/11/2023,8102,Payments to main contractor,2201169595,"-59,491.46",Milestone Infrastructure Limited
http://statistics.data.gov.uk/id/local-authority/38,Oxfordshire County Council,Care Homes - Under 65 Leaning Disability,10/11/2023,5686,,3111548967,"-57,258.12",Community Homes of Intensive Care
http://statistics.data.gov.uk/id/local-authority/38,Oxfordshire County Council,Care Homes - Under 65 Leaning Disability,10/11/2023,5686,,3111548970,"-56,598.09",Community Homes of Intensive Care
http://statistics.data.gov.uk/id/local-authority/38,Oxfordshire County Council,CORONER,06/11/2023,5505,Payments to Health Authorities,2201166024,"-54,982.50",Oxford University Hospitals NHS Tru
http://statistics.data.gov.uk/id/local-authority/38,Oxfordshire County Council,Care Homes - Under 65 Leaning Disability,10/11/2023,5686,,3111548976,"-54,832.51",Community Homes of Intensive Care
http://statistics.data.gov.uk/id/local-authority/38,Oxfordshire County Council,NURSERY ED FUND,02/11/2023,5537,Payments to Other Establishments,3111538001,"-46,273.12",Little Dots Daycare
http://statistics.data.gov.uk/id/local-authority/38,Oxfordshire County Council,Care Homes - Over 65 Physical Sypport,10/11/2023,5687,,3111548616,"-46,144.94",Grace Care Service Ltd T/A Burford
http://statistics.data.gov.uk/id/local-authority/38,Oxfordshire County Council,NURSERY ED FUND,02/11/2023,5537,Payments to Other Establishments,3111537139,"-46,118.91",Sunrise Nursery
http://statistics.data.gov.uk/id/local-authority/38,Oxfordshire County Council,NURSERY ED FUND,02/11/2023,5537,Payments to Other Establishments,3111536100,"-45,984.37",Culham Nursery and Pre-School
http://statistics.data.gov.uk/id/local-authority/38,Oxfordshire County Council,NURSERY ED FUND,02/11/2023,5537,Payments to Other Establishments,3111538510,"-44,434.91",Eynsham Community
http://statistics.data.gov.uk/id/local-authority/38,Oxfordshire County Council,NURSERY ED FUND,02/11/2023,5537,Payments to Other Establishments,3111534438,"-43,836.03",Julia Durbin Day Nursery
http://statistics.data.gov.uk/id/local-authority/38,Oxfordshire County Council,NURSERY ED FUND,02/11/2023,5537,Payments to Other Establishments,3111535088,"-43,836.03",Sandfield Day Nursery
http://statistics.data.gov.uk/id/local-authority/38,Oxfordshire County Council,NURSERY ED FUND,02/11/2023,5537,Payments to Other Establishments,3111533918,"-43,365.42",LITTLE TREASURES ACADEMY
http://statistics.data.gov.uk/id/local-authority/38,Oxfordshire County Council,NURSERY ED FUND,02/11/2023,5537,Payments to Other Establishments,3111537808,"-41,591.34",Co-Op Madley Park Nursery
http://statistics.data.gov.uk/id/local-authority/38,Oxfordshire County Council,NURSERY ED FUND,02/11/2023,5537,Payments to Other Establishments,3111540689,"-41,549.76",The Pod at St Frideswide CE School
http://statistics.data.gov.uk/id/local-authority/38,Oxfordshire County Council,ICT Operations & Maintenance,20/11/2023,8102,Payments to main contractor,3111554865,"-41,299.00",NEOS NETWORKS LIMITED
http://statistics.data.gov.uk/id/local-authority/38,Oxfordshire County Council,COMM DRAWDOWN FUNDNG,14/11/2023,8102,Payments to main contractor,2201169423,"-40,384.97",Milestone Infrastructure Limited
http://statistics.data.gov.uk/id/local-authority/38,Oxfordshire County Council,Care Homes - Over 65 Physical Sypport,10/11/2023,5687,,3111550797,"-40,361.83",Valorum Care Limited
http://statistics.data.gov.uk/id/local-authority/38,Oxfordshire County Council,NURSERY ED FUND,02/11/2023,5537,Payments to Other Establishments,3111537352,"-39,541.82",Child First (Banbury)
http://statistics.data.gov.uk/id/local-authority/38,Oxfordshire County Council,NURSERY ED FUND,02/11/2023,5537,Payments to Other Establishments,3111534110,"-38,095.60",The Manor Preparatory Sc
http://statistics.data.gov.uk/id/local-authority/38,Oxfordshire County Council,NURSERY ED FUND,02/11/2023,5537,Payments to Other Establishments,3111537945,"-37,306.08",Faringdon Infant School - Adademy
http://statistics.data.gov.uk/id/local-authority/38,Oxfordshire County Council,NURSERY ED FUND,02/11/2023,5537,Payments to Other Establishments,3111534928,"-36,460.62",Robin Playgroup
http://statistics.data.gov.uk/id/local-authority/38,Oxfordshire County Council,COMM DRAWDOWN FUNDNG,14/11/2023,8102,Payments to main contractor,2201169555,"-36,363.47",Milestone Infrastructure Limited
http://statistics.data.gov.uk/id/local-authority/38,Oxfordshire County Council,NURSERY ED FUND,02/11/2023,5537,Payments to Other Establishments,3111539409,"-36,299.84",West Kidlington Primary &NurserySch
http://statistics.data.gov.uk/id/local-authority/38,Oxfordshire County Council,NURSERY ED FUND,02/11/2023,5537,Payments to Other Establishments,3111539187,"-36,214.92",Southwold Primary School Academy
http://statistics.data.gov.uk/id/local-authority/38,Oxfordshire County Council,NURSERY ED FUND,02/11/2023,5537,Payments to Other Establishments,3111537610,"-34,045.20",Co-Op Carterton Nursery
http://statistics.data.gov.uk/id/local-authority/38,Oxfordshire County Council,NURSERY ED FUND,02/11/2023,5537,Payments to Other Establishments,3111536814,"-33,963.53",Chandlings
http://statistics.data.gov.uk/id/local-authority/38,Oxfordshire County Council,Care Homes - Under 65 Leaning Disability,10/11/2023,5686,,3111548961,"-33,787.64",Community Homes of Intensive Care
http://statistics.data.gov.uk/id/local-authority/38,Oxfordshire County Council,NURSERY ED FUND,02/11/2023,5537,Payments to Other Establishments,3111536063,"-33,371.35",Bramley Nursery Busy Bees
http://statistics.data.gov.uk/id/local-authority/38,Oxfordshire County Council,NURSERY ED FUND,02/11/2023,5537,Payments to Other Establishments,3111537482,"-33,103.98",PUDDLEDUCK NURSERY
http://statistics.data.gov.uk/id/local-authority/38,Oxfordshire County Council,NURSERY ED FUND,02/11/2023,5537,Payments to Other Establishments,3111537296,"-32,793.85",Child First (Bicester)
http://statistics.data.gov.uk/id/local-authority/38,Oxfordshire County Council,NURSERY ED FUND,02/11/2023,5537,Payments to Other Establishments,3111539144,"-32,708.34",Didcot Primary Academy
http://statistics.data.gov.uk/id/local-authority/38,Oxfordshire County Council,NURSERY ED FUND,02/11/2023,5537,Payments to Other Establishments,3111537050,"-32,644.50",Busy Bees Day Nursery (Bicester)
http://statistics.data.gov.uk/id/local-authority/38,Oxfordshire County Council,COMM DRAWDOWN FUNDNG,14/11/2023,8102,Payments to main contractor,2201169567,"-32,544.87",Milestone Infrastructure Limited
http://statistics.data.gov.uk/id/local-authority/38,Oxfordshire County Council,NURSERY ED FUND,02/11/2023,5537,Payments to Other Establishments,3111535964,"-32,014.58",Jack & Jill Playgroup
http://statistics.data.gov.uk/id/local-authority/38,Oxfordshire County Council,NURSERY ED FUND,02/11/2023,5537,Payments to Other Establishments,3111538064,"-31,138.38",Dashwood Banbury Academy
http://statistics.data.gov.uk/id/local-authority/38,Oxfordshire County Council,NURSERY ED FUND,02/11/2023,5537,Payments to Other Establishments,3111537394,"-30,356.76",Toad Hall Day Nursery
http://statistics.data.gov.uk/id/local-authority/38,Oxfordshire County Council,NURSERY ED FUND,02/11/2023,5537,Payments to Other Establishments,3111538840,"-30,036.38",Busy Bees at Oxford
http://statistics.data.gov.uk/id/local-authority/38,Oxfordshire County Council,NURSERY ED FUND,02/11/2023,5537,Payments to Other Establishments,3111537431,"-29,442.50",The Old Station Nursery
http://statistics.data.gov.uk/id/local-authority/38,Oxfordshire County Council,NURSERY ED FUND,02/11/2023,5537,Payments to Other Establishments,3111534023,"-29,419.18",Windrush Valley School
http://statistics.data.gov.uk/id/local-authority/38,Oxfordshire County Council,NURSERY ED FUND,02/11/2023,5537,Payments to Other Establishments,3111538445,"-28,732.03",Wantage CE Primary School # Academy
http://statistics.data.gov.uk/id/local-authority/38,Oxfordshire County Council,NURSERY ED FUND,02/11/2023,5537,Payments to Other Establishments,3111535894,"-27,621.68",Camel Pre-School (PFSU)
http://statistics.data.gov.uk/id/local-authority/38,Oxfordshire County Council,COMM DRAWDOWN FUNDNG,14/11/2023,8004,Design Consultant,2201169563,"-27,045.36",Milestone Infrastructure Limited
http://statistics.data.gov.uk/id/local-authority/38,Oxfordshire County Council,Care Homes - Under 65 Leaning Disability,10/11/2023,5686,,3111548979,"-26,894.93",Community Homes of Intensive Care
http://statistics.data.gov.uk/id/local-authority/38,Oxfordshire County Council,NURSERY ED FUND,02/11/2023,5537,Payments to Other Establishments,3111534288,"-26,679.74",Little Acorns
http://statistics.data.gov.uk/id/local-authority/38,Oxfordshire County Council,NURSERY ED FUND,02/11/2023,5537,Payments to Other Establishments,3111535014,"-26,562.31",Brize Norton Village Pre
http://statistics.data.gov.uk/id/local-authority/38,Oxfordshire County Council,NURSERY ED FUND,02/11/2023,5537,Payments to Other Establishments,3111537537,"-25,803.54",Co-Op JR Nursery
http://statistics.data.gov.uk/id/local-authority/38,Oxfordshire County Council,OPPB BLOCK PURCHASE,10/11/2023,5687,,3111547756,"-25,454.01",Vale House
http://statistics.data.gov.uk/id/local-authority/38,Oxfordshire County Council,NURSERY ED FUND,02/11/2023,5537,Payments to Other Establishments,3111537509,"-25,397.06",Scamps of Benson Ltd
http://statistics.data.gov.uk/id/local-authority/38,Oxfordshire County Council,NURSERY ED FUND,02/11/2023,5537,Payments to Other Establishments,3111535000,"-25,302.73",Rainbow Pre-School
http://statistics.data.gov.uk/id/local-authority/38,Oxfordshire County Council,CHC Fast Track - Care Homes - Over 65,10/11/2023,5687,,3111549847,"-25,257.14",Lincroft Meadow
http://statistics.data.gov.uk/id/local-authority/38,Oxfordshire County Council,NURSERY ED FUND,02/11/2023,5537,Payments to Other Establishments,3111536743,"-25,226.04",Mongewell Park Nursery S
http://statistics.data.gov.uk/id/local-authority/38,Oxfordshire County Council,NURSERY ED FUND,02/11/2023,5537,Payments to Other Establishments,3111537803,"-25,105.08",Rainbows Day Nursery
http://statistics.data.gov.uk/id/local-authority/38,Oxfordshire County Council,Support at Home U65 Learning Disability,10/11/2023,5688,,3111551135,"-25,065.02",Dimensions (UK) Ltd
http://statistics.data.gov.uk/id/local-authority/38,Oxfordshire County Council,NURSERY ED FUND,02/11/2023,5537,Payments to Other Establishments,3111533978,"-25,012.26",Harriers Banbury Academy
http://statistics.data.gov.uk/id/local-authority/38,Oxfordshire County Council,NURSERY ED FUND,02/11/2023,5537,Payments to Other Establishments,3111539350,"-24,883.99",Edith Moorhouse Primary School
http://statistics.data.gov.uk/id/local-authority/38,Oxfordshire County Council,COMM DRAWDOWN FUNDNG,14/11/2023,8102,Payments to main contractor,2201169556,"-24,741.77",Milestone Infrastructure Limited
http://statistics.data.gov.uk/id/local-authority/38,Oxfordshire County Council,NURSERY ED FUND,02/11/2023,5537,Payments to Other Establishments,3111537584,"-24,575.04",Co-Op Rose Hill Nursery
http://statistics.data.gov.uk/id/local-authority/38,Oxfordshire County Council,NURSERY ED FUND,02/11/2023,5537,Payments to Other Establishments,3111534495,"-24,552.78",Willow Cottage Nurseries Limited
http://statistics.data.gov.uk/id/local-authority/38,Oxfordshire County Council,NURSERY ED FUND,02/11/2023,5537,Payments to Other Establishments,3111536602,"-24,383.52",Courtyard Pre-School
http://statistics.data.gov.uk/id/local-authority/38,Oxfordshire County Council,COMM DRAWDOWN FUNDNG,16/11/2023,8102,Payments to main contractor,2201170270,"-24,271.04",Milestone Infrastructure Limited
http://statistics.data.gov.uk/id/local-authority/38,Oxfordshire County Council,NURSERY ED FUND,02/11/2023,5537,Payments to Other Establishments,3111536906,"-23,729.58",Ladygrove Day Nursery and Nursery S
http://statistics.data.gov.uk/id/local-authority/38,Oxfordshire County Council,NURSERY ED FUND,02/11/2023,5537,Payments to Other Establishments,3111534715,"-23,551.67",Wantage Preschool
http://statistics.data.gov.uk/id/local-authority/38,Oxfordshire County Council,NURSERY ED FUND,02/11/2023,5537,Payments to Other Establishments,3111536454,"-23,431.19",Filkins Nursery School
http://statistics.data.gov.uk/id/local-authority/38,Oxfordshire County Council,NURSERY ED FUND,02/11/2023,5537,Payments to Other Establishments,3111536203,"-23,142.42",Bright Start Pre-school
http://statistics.data.gov.uk/id/local-authority/38,Oxfordshire County Council,NURSERY ED FUND,02/11/2023,5537,Payments to Other Establishments,3111538711,"-22,853.38",NOAs Ark Nursery
http://statistics.data.gov.uk/id/local-authority/38,Oxfordshire County Council,NURSERY ED FUND,02/11/2023,5537,Payments to Other Establishments,3111535801,"-22,599.11",Tiddlywinks Pre-School
http://statistics.data.gov.uk/id/local-authority/38,Oxfordshire County Council,NURSERY ED FUND,02/11/2023,5537,Payments to Other Establishments,3111535443,"-22,575.17",Bloxham Pre-School
http://statistics.data.gov.uk/id/local-authority/38,Oxfordshire County Council,NURSERY ED FUND,02/11/2023,5537,Payments to Other Establishments,3111536986,"-22,446.90",St Marys Day Nursery
http://statistics.data.gov.uk/id/local-authority/38,Oxfordshire County Council,NURSERY ED FUND,02/11/2023,5537,Payments to Other Establishments,3111534840,"-22,318.63",Cholsey Pre-School (PFSU)
http://statistics.data.gov.uk/id/local-authority/38,Oxfordshire County Council,CHC Fast Track - Care Homes - Over 65,10/11/2023,5687,,3111550576,"-22,275.00",The Close Nursing Home
http://statistics.data.gov.uk/id/local-authority/38,Oxfordshire County Council,NURSERY ED FUND,02/11/2023,5537,Payments to Other Establishments,3111535581,"-22,072.93",Farmhouse Nursery School
http://statistics.data.gov.uk/id/local-authority/38,Oxfordshire County Council,NURSERY ED FUND,02/11/2023,5537,Payments to Other Establishments,3111534597,"-21,859.74",Kiddies Korner
http://statistics.data.gov.uk/id/local-authority/38,Oxfordshire County Council,NURSERY ED FUND,02/11/2023,5537,Payments to Other Establishments,3111537260,"-21,829.75",St Marys Playgroup
http://statistics.data.gov.uk/id/local-authority/38,Oxfordshire County Council,NURSERY ED FUND,02/11/2023,5537,Payments to Other Establishments,3111540302,"-21,762.80",Benson C of E Primary School
http://statistics.data.gov.uk/id/local-authority/38,Oxfordshire County Council,NURSERY ED FUND,02/11/2023,5537,Payments to Other Establishments,3111536490,"-21,634.99",Little Oak Pre-School
http://statistics.data.gov.uk/id/local-authority/38,Oxfordshire County Council,NURSERY ED FUND,02/11/2023,5537,Payments to Other Establishments,3111534224,"-21,559.87",Early Days Nursery Schoo
http://statistics.data.gov.uk/id/local-authority/38,Oxfordshire County Council,NURSERY ED FUND,02/11/2023,5537,Payments to Other Establishments,3111537166,"-21,380.28",Kidsunlimited (Milton Park)
http://statistics.data.gov.uk/id/local-authority/38,Oxfordshire County Council,NURSERY ED FUND,02/11/2023,5537,Payments to Other Establishments,3111539564,"-21,164.22",Thameside Primary School
http://statistics.data.gov.uk/id/local-authority/38,Oxfordshire County Council,COMM DRAWDOWN FUNDNG,14/11/2023,8004,Design Consultant,2201169551,"-21,036.50",Milestone Infrastructure Limited
http://statistics.data.gov.uk/id/local-authority/38,Oxfordshire County Council,NURSERY ED FUND,02/11/2023,5537,Payments to Other Establishments,3111534526,"-20,929.36",Peachcroft Pre-School
http://statistics.data.gov.uk/id/local-authority/38,Oxfordshire County Council,NURSERY ED FUND,02/11/2023,5537,Payments to Other Establishments,3111534391,"-20,850.22",Little Pippins Pre-Schoo
http://statistics.data.gov.uk/id/local-authority/38,Oxfordshire County Council,NURSERY ED FUND,02/11/2023,5537,Payments to Other Establishments,3111538638,"-20,686.18",Aflah Nursery
http://statistics.data.gov.uk/id/local-authority/38,Oxfordshire County Council,NURSERY ED FUND,02/11/2023,5537,Payments to Other Establishments,3111534819,"-20,672.82",Cygnet Nursery
http://statistics.data.gov.uk/id/local-authority/38,Oxfordshire County Council,NURSERY ED FUND,02/11/2023,5537,Payments to Other Establishments,3111539310,"-20,613.73",Butterflies Pre-School Didcot CIO
http://statistics.data.gov.uk/id/local-authority/38,Oxfordshire County Council,COMM DRAWDOWN FUNDNG,14/11/2023,8102,Payments to main contractor,2201169552,"-20,528.50",Milestone Infrastructure Limited
http://statistics.data.gov.uk/id/local-authority/38,Oxfordshire County Council,NURSERY ED FUND,02/11/2023,5537,Payments to Other Establishments,3111538066,"-20,522.88",John Henry Newman Academy
http://statistics.data.gov.uk/id/local-authority/38,Oxfordshire County Council,NURSERY ED FUND,02/11/2023,5537,Payments to Other Establishments,3111538119,"-20,522.88",The The Old Station Nursery Ltd
http://statistics.data.gov.uk/id/local-authority/38,Oxfordshire County Council,NURSERY ED FUND,02/11/2023,5537,Payments to Other Establishments,3111537731,"-19,796.03",Little Troopers Day Nursery Ltd
http://statistics.data.gov.uk/id/local-authority/38,Oxfordshire County Council,NURSERY ED FUND,02/11/2023,5537,Payments to Other Establishments,3111534874,"-19,766.63",Broadhill Pre-School
http://statistics.data.gov.uk/id/local-authority/38,Oxfordshire County Council,NURSERY ED FUND,02/11/2023,5537,Payments to Other Establishments,3111538941,"-19,555.81",The Treehouse Thame Limited
http://statistics.data.gov.uk/id/local-authority/38,Oxfordshire County Council,NURSERY ED FUND,02/11/2023,5537,Payments to Other Establishments,3111535584,"-19,428.44",The Cottage Nursery
http://statistics.data.gov.uk/id/local-authority/38,Oxfordshire County Council,NURSERY ED FUND,02/11/2023,5537,Payments to Other Establishments,3111538546,"-19,240.20",St Christophers Primary School -
http://statistics.data.gov.uk/id/local-authority/38,Oxfordshire County Council,NURSERY ED FUND,02/11/2023,5537,Payments to Other Establishments,3111537980,"-19,176.36",Little Monkeys Charlbury Limited
http://statistics.data.gov.uk/id/local-authority/38,Oxfordshire County Council,NURSERY ED FUND,02/11/2023,5537,Payments to Other Establishments,3111535533,"-18,620.53",Red Dragon Pre-School Gr
http://statistics.data.gov.uk/id/local-authority/38,Oxfordshire County Council,Mainstream Res,08/11/2023,5558,,3111546492,"-18,427.49",Witherslack Group Ltd
http://statistics.data.gov.uk/id/local-authority/38,Oxfordshire County Council,NURSERY ED FUND,02/11/2023,5537,Payments to Other Establishments,3111537641,"-18,407.34",Rainbow Village Nursery
http://statistics.data.gov.uk/id/local-authority/38,Oxfordshire County Council,NURSERY ED FUND,02/11/2023,5537,Payments to Other Establishments,3111535201,"-18,038.33",Dalton Pre-School Nurser
http://statistics.data.gov.uk/id/local-authority/38,Oxfordshire County Council,NURSERY ED FUND,02/11/2023,5537,Payments to Other Establishments,3111536324,"-18,021.95",Hanborough Meadows Pre-School
http://statistics.data.gov.uk/id/local-authority/38,Oxfordshire County Council,NURSERY ED FUND,02/11/2023,5537,Payments to Other Establishments,3111536643,"-17,960.04",Complete Childcare Ltd
http://statistics.data.gov.uk/id/local-authority/38,Oxfordshire County Council,NURSERY ED FUND,02/11/2023,5537,Payments to Other Establishments,3111539550,"-17,957.52",Hill View Primary School
http://statistics.data.gov.uk/id/local-authority/38,Oxfordshire County Council,NURSERY ED FUND,02/11/2023,5537,Payments to Other Establishments,3111538269,"-17,957.52",Watchfield Primary School - Academy
http://statistics.data.gov.uk/id/local-authority/38,Oxfordshire County Council,NURSERY ED FUND,02/11/2023,5537,Payments to Other Establishments,3111536504,"-17,742.16",Kids Unlimited Harwell
http://statistics.data.gov.uk/id/local-authority/38,Oxfordshire County Council,NURSERY ED FUND,02/11/2023,5537,Payments to Other Establishments,3111536892,"-17,718.68",The Lighthouse Nursery
http://statistics.data.gov.uk/id/local-authority/38,Oxfordshire County Council,CHC Fast Track - Care Homes - Over 65,10/11/2023,5687,,3111551036,"-17,657.15",SANCTUARY CARE LTD
http://statistics.data.gov.uk/id/local-authority/38,Oxfordshire County Council,NURSERY ED FUND,02/11/2023,5537,Payments to Other Establishments,3111534680,"-17,636.85",Deddington (PFSU)
http://statistics.data.gov.uk/id/local-authority/38,Oxfordshire County Council,Care Homes - Over 65 Physical Sypport,10/11/2023,5687,,3111549258,"-17,549.99",Freeland House
http://statistics.data.gov.uk/id/local-authority/38,Oxfordshire County Council,NURSERY ED FUND,02/11/2023,5537,Payments to Other Establishments,3111534915,"-17,529.96",The Town Nursery School
http://statistics.data.gov.uk/id/local-authority/38,Oxfordshire County Council,NURSERY ED FUND,02/11/2023,5537,Payments to Other Establishments,3111536562,"-17,265.11",Bubbles Pre School
http://statistics.data.gov.uk/id/local-authority/38,Oxfordshire County Council,NURSERY ED FUND,02/11/2023,5537,Payments to Other Establishments,3111536852,"-16,974.72",A B C Nursery
http://statistics.data.gov.uk/id/local-authority/38,Oxfordshire County Council,NURSERY ED FUND,02/11/2023,5537,Payments to Other Establishments,3111536346,"-16,824.78",The Wantage Nursery and Pre-School
http://statistics.data.gov.uk/id/local-authority/38,Oxfordshire County Council,Support at Home U65 Learning Disability,10/11/2023,5688,,3111551221,"-16,813.00",ADVANCE HOUSING & SUPPORT LTD
http://statistics.data.gov.uk/id/local-authority/38,Oxfordshire County Council,NURSERY ED FUND,02/11/2023,5537,Payments to Other Establishments,3111537851,"-16,429.14",Cherubs Nursery and After Class Lim
http://statistics.data.gov.uk/id/local-authority/38,Oxfordshire County Council,Continuing Care - Care Homes - 65+,10/11/2023,5687,,3111550679,"-16,231.71",Four Seasons (Headington) Ltd
http://statistics.data.gov.uk/id/local-authority/38,Oxfordshire County Council,NURSERY ED FUND,02/11/2023,5537,Payments to Other Establishments,3111540119,"-16,194.28",Abingdon Learning Trust
http://statistics.data.gov.uk/id/local-authority/38,Oxfordshire County Council,NURSERY ED FUND,02/11/2023,5537,Payments to Other Establishments,3111539059,"-16,033.50",Wolvercote Primary School
http://statistics.data.gov.uk/id/local-authority/38,Oxfordshire County Council,NURSERY ED FUND,02/11/2023,5537,Payments to Other Establishments,3111536942,"-15,905.23",Cygnets of Henley Ltd
http://statistics.data.gov.uk/id/local-authority/38,Oxfordshire County Council,NURSERY ED FUND,02/11/2023,5537,Payments to Other Establishments,3111536424,"-15,686.05",Little Stars Nursery
http://statistics.data.gov.uk/id/local-authority/38,Oxfordshire County Council,NURSERY ED FUND,02/11/2023,5537,Payments to Other Establishments,3111536159,"-15,563.19",Horspath Pre-School Nursery
http://statistics.data.gov.uk/id/local-authority/38,Oxfordshire County Council,NURSERY ED FUND,02/11/2023,5537,Payments to Other Establishments,3111535878,"-15,474.26",Emmanuel Christian Schoo
http://statistics.data.gov.uk/id/local-authority/38,Oxfordshire County Council,NURSERY ED FUND,02/11/2023,5537,Payments to Other Establishments,3111536408,"-15,467.43",South Moreton Pre-School
http://statistics.data.gov.uk/id/local-authority/38,Oxfordshire County Council,NURSERY ED FUND,02/11/2023,5537,Payments to Other Establishments,3111535222,"-15,339.58",Paddocks Pre-School
http://statistics.data.gov.uk/id/local-authority/38,Oxfordshire County Council,Care Homes - Over 65 Memory & Cognition,10/11/2023,5687,,3111549714,"-15,324.54",Huntercombe Hall Care Home
http://statistics.data.gov.uk/id/local-authority/38,Oxfordshire County Council,Support at Home 65+ Mental Health,10/11/2023,5686,,3111550734,"-15,300.01",The Langston
http://statistics.data.gov.uk/id/local-authority/38,Oxfordshire County Council,NURSERY ED FUND,02/11/2023,5537,Payments to Other Establishments,3111535287,"-15,296.40",North Hinksey Pre School & Childcar
http://statistics.data.gov.uk/id/local-authority/38,Oxfordshire County Council,CHC Fast Track - Care Homes - Under 65,10/11/2023,5687,,3111550221,"-15,190.71",RICHMOND VILLAGE WITNEY
http://statistics.data.gov.uk/id/local-authority/38,Oxfordshire County Council,NURSERY ED FUND,02/11/2023,5537,Payments to Other Establishments,3111536956,"-15,146.46",Clanfield Pre-School
http://statistics.data.gov.uk/id/local-authority/38,Oxfordshire County Council,NURSERY ED FUND,02/11/2023,5537,Payments to Other Establishments,3111539450,"-15,135.62",The Willow On The Farm Nursery Ltd
http://statistics.data.gov.uk/id/local-authority/38,Oxfordshire County Council,NURSERY ED FUND,02/11/2023,5537,Payments to Other Establishments,3111535140,"-15,135.62",Willow Cottage Kindergar
http://statistics.data.gov.uk/id/local-authority/38,Oxfordshire County Council,NURSERY ED FUND,02/11/2023,5537,Payments to Other Establishments,3111536761,"-15,089.00",Stanford in the Vale Pre School
http://statistics.data.gov.uk/id/local-authority/38,Oxfordshire County Council,NURSERY ED FUND,02/11/2023,5537,Payments to Other Establishments,3111534367,"-15,050.70",Kingfisher Kindergarten
http://statistics.data.gov.uk/id/local-authority/38,Oxfordshire County Council,NURSERY ED FUND,02/11/2023,5537,Payments to Other Establishments,3111537037,"-15,029.03",Lake Street Nursery
http://statistics.data.gov.uk/id/local-authority/38,Oxfordshire County Council,NURSERY ED FUND,02/11/2023,5537,Payments to Other Establishments,3111535359,"-14,686.68",St Nicolas Pre-School and Playgroup
http://statistics.data.gov.uk/id/local-authority/38,Oxfordshire County Council,NURSERY ED FUND,02/11/2023,5537,Payments to Other Establishments,3111536181,"-14,674.21",Sunningwell Pre-School
http://statistics.data.gov.uk/id/local-authority/38,Oxfordshire County Council,NURSERY ED FUND,02/11/2023,5537,Payments to Other Establishments,3111539035,"-14,635.91",Tower Hill School
http://statistics.data.gov.uk/id/local-authority/38,Oxfordshire County Council,NURSERY ED FUND,02/11/2023,5537,Payments to Other Establishments,3111537269,"-14,633.78",Berinsfield Early Years Pre-School
http://statistics.data.gov.uk/id/local-authority/38,Oxfordshire County Council,Continuing Care - Care Homes - 65+,10/11/2023,5687,,3111548399,"-14,597.70",Bridge House
http://statistics.data.gov.uk/id/local-authority/38,Oxfordshire County Council,NURSERY ED FUND,02/11/2023,5537,Payments to Other Establishments,3111538619,"-14,549.26",St Johns Priory School
http://statistics.data.gov.uk/id/local-authority/38,Oxfordshire County Council,NURSERY ED FUND,02/11/2023,5537,Payments to Other Establishments,3111534888,"-14,494.29",Marcham Playgroup
http://statistics.data.gov.uk/id/local-authority/38,Oxfordshire County Council,NURSERY ED FUND,02/11/2023,5537,Payments to Other Establishments,3111535466,"-14,391.30",Bishopswood Day Nursery
http://statistics.data.gov.uk/id/local-authority/38,Oxfordshire County Council,NURSERY ED FUND,02/11/2023,5537,Payments to Other Establishments,3111534189,"-14,366.02",Freeland Pre-School (PFSU)
http://statistics.data.gov.uk/id/local-authority/38,Oxfordshire County Council,NURSERY ED FUND,02/11/2023,5537,Payments to Other Establishments,3111535773,"-14,366.02",Jack and Jill Pre School
http://statistics.data.gov.uk/id/local-authority/38,Oxfordshire County Council,NURSERY ED FUND,02/11/2023,5537,Payments to Other Establishments,3111535621,"-14,227.21",The Warborough and Shillingford
http://statistics.data.gov.uk/id/local-authority/38,Oxfordshire County Council,NURSERY ED FUND,02/11/2023,5537,Payments to Other Establishments,3111538158,"-14,109.48","Cutteslowe Primary, Cherwell School"
http://statistics.data.gov.uk/id/local-authority/38,Oxfordshire County Council,NURSERY ED FUND,02/11/2023,5537,Payments to Other Establishments,3111535924,"-14,035.40",Sonning Common Pre-School
http://statistics.data.gov.uk/id/local-authority/38,Oxfordshire County Council,Funded Nursing Care  - Over 65,10/11/2023,5692,,3111551001,"-13,920.19",Wytham House
http://statistics.data.gov.uk/id/local-authority/38,Oxfordshire County Council,NURSERY ED FUND,02/11/2023,5537,Payments to Other Establishments,3111535515,"-13,767.43",Combe Pre-school
http://statistics.data.gov.uk/id/local-authority/38,Oxfordshire County Council,NURSERY ED FUND,02/11/2023,5537,Payments to Other Establishments,3111534348,"-13,692.76",Charlbury Pre-School
http://statistics.data.gov.uk/id/local-authority/38,Oxfordshire County Council,NURSERY ED FUND,02/11/2023,5537,Payments to Other Establishments,3111535493,"-13,617.93",Childrey Little Ducks Pre-School
http://statistics.data.gov.uk/id/local-authority/38,Oxfordshire County Council,NURSERY ED FUND,02/11/2023,5537,Payments to Other Establishments,3111538595,"-13,605.57",The Kings School
http://statistics.data.gov.uk/id/local-authority/38,Oxfordshire County Council,NURSERY ED FUND,02/11/2023,5537,Payments to Other Establishments,3111535709,"-13,489.81",Sandhills Pre-School Playgroup
http://statistics.data.gov.uk/id/local-authority/38,Oxfordshire County Council,NURSERY ED FUND,02/11/2023,5537,Payments to Other Establishments,3111539081,"-13,468.14",Checkendon Pre-School CIO
http://statistics.data.gov.uk/id/local-authority/38,Oxfordshire County Council,NURSERY ED FUND,02/11/2023,5537,Payments to Other Establishments,3111535141,"-13,372.38",Co-Op Oxford Nursery
http://statistics.data.gov.uk/id/local-authority/38,Oxfordshire County Council,NURSERY ED FUND,02/11/2023,5537,Payments to Other Establishments,3111536026,"-13,339.87",Ladybird Pre-School
http://statistics.data.gov.uk/id/local-authority/38,Oxfordshire County Council,NURSERY ED FUND,02/11/2023,5537,Payments to Other Establishments,3111534548,"-13,339.87",Oxford Brookes University Nursery
http://statistics.data.gov.uk/id/local-authority/38,Oxfordshire County Council,NURSERY ED FUND,02/11/2023,5537,Payments to Other Establishments,3111535402,"-13,297.12",Brightwell Pre-school
http://statistics.data.gov.uk/id/local-authority/38,Oxfordshire County Council,NURSERY ED FUND,02/11/2023,5537,Payments to Other Establishments,3111536264,"-13,247.98",Dorchester Pre-School
http://statistics.data.gov.uk/id/local-authority/38,Oxfordshire County Council,NURSERY ED FUND,02/11/2023,5537,Payments to Other Establishments,3111536616,"-13,175.82",Chasewell Playgroup
http://statistics.data.gov.uk/id/local-authority/38,Oxfordshire County Council,Support at Home U65 Physical Support,10/11/2023,5685,B*Cycle tracks,3111550724,"-12,983.20",The Langston
http://statistics.data.gov.uk/id/local-authority/38,Oxfordshire County Council,NURSERY ED FUND,02/11/2023,5537,Payments to Other Establishments,3111534260,"-12,826.80",Highmoor Nursery School Ltd
http://statistics.data.gov.uk/id/local-authority/38,Oxfordshire County Council,NURSERY ED FUND,02/11/2023,5537,Payments to Other Establishments,3111538433,"-12,741.88",Ladybirds @ Riverside
http://statistics.data.gov.uk/id/local-authority/38,Oxfordshire County Council,NURSERY ED FUND,02/11/2023,5537,Payments to Other Establishments,3111535369,"-12,621.92",Kingsfield Nursery
http://statistics.data.gov.uk/id/local-authority/38,Oxfordshire County Council,NURSERY ED FUND,02/11/2023,5537,Payments to Other Establishments,3111534317,"-12,485.34",Hagbourne Pre-School
http://statistics.data.gov.uk/id/local-authority/38,Oxfordshire County Council,NURSERY ED FUND,02/11/2023,5537,Payments to Other Establishments,3111535325,"-12,424.52",Hanborough Pre-School
http://statistics.data.gov.uk/id/local-authority/38,Oxfordshire County Council,NURSERY ED FUND,02/11/2023,5537,Payments to Other Establishments,3111535838,"-12,421.50",Cherry Tree Nursery (Oxford)
http://statistics.data.gov.uk/id/local-authority/38,Oxfordshire County Council,NURSERY ED FUND,02/11/2023,5537,Payments to Other Establishments,3111534067,"-12,356.48",Busy Bees Playgroup (Thame)
http://statistics.data.gov.uk/id/local-authority/38,Oxfordshire County Council,NURSERY ED FUND,02/11/2023,5537,Payments to Other Establishments,3111534566,"-12,323.21",Burford Pre-School
http://statistics.data.gov.uk/id/local-authority/38,Oxfordshire County Council,NURSERY ED FUND,02/11/2023,5537,Payments to Other Establishments,3111535151,"-12,245.43",Broadshires Pre-School
http://statistics.data.gov.uk/id/local-authority/38,Oxfordshire County Council,Continuing Care - Care Homes - 65+,10/11/2023,5687,,3111547869,"-12,239.99",ACER HEALTHCARE LTD
http://statistics.data.gov.uk/id/local-authority/38,Oxfordshire County Council,NURSERY ED FUND,02/11/2023,5537,Payments to Other Establishments,3111539116,"-12,196.30",The Early Years Nursery
http://statistics.data.gov.uk/id/local-authority/38,Oxfordshire County Council,NURSERY ED FUND,02/11/2023,5537,Payments to Other Establishments,3111534740,"-12,185.46",Annabelles Pre-school (Longcot)
http://statistics.data.gov.uk/id/local-authority/38,Oxfordshire County Council,NURSERY ED FUND,02/11/2023,5537,Payments to Other Establishments,3111538645,"-12,185.46",Buckland Primary School
http://statistics.data.gov.uk/id/local-authority/38,Oxfordshire County Council,NURSERY ED FUND,02/11/2023,5537,Payments to Other Establishments,3111538696,"-12,185.46",St Josephs Catholic Primary School
http://statistics.data.gov.uk/id/local-authority/38,Oxfordshire County Council,NURSERY ED FUND,02/11/2023,5537,Payments to Other Establishments,3111534160,"-12,057.19",Small World Nursery and
http://statistics.data.gov.uk/id/local-authority/38,Oxfordshire County Council,NURSERY ED FUND,02/11/2023,5537,Payments to Other Establishments,3111536698,"-11,988.90",Minster Lovell Playgroup
http://statistics.data.gov.uk/id/local-authority/38,Oxfordshire County Council,NURSERY ED FUND,02/11/2023,5537,Payments to Other Establishments,3111537313,"-11,928.92",The Oxford Nursery (Eynsham)
http://statistics.data.gov.uk/id/local-authority/38,Oxfordshire County Council,CHC Fast Track - Care Homes - Over 65,10/11/2023,5687,,3111548302,"-11,857.14",Orders of St John
http://statistics.data.gov.uk/id/local-authority/38,Oxfordshire County Council,NURSERY ED FUND,02/11/2023,5537,Payments to Other Establishments,3111538441,"-11,844.00",Little Treasure Day Nursery
http://statistics.data.gov.uk/id/local-authority/38,Oxfordshire County Council,NURSERY ED FUND,02/11/2023,5537,Payments to Other Establishments,3111537408,"-11,683.22",Chipping Norton Pre-school
http://statistics.data.gov.uk/id/local-authority/38,Oxfordshire County Council,NURSERY ED FUND,02/11/2023,5537,Payments to Other Establishments,3111535863,"-11,672.39",Shelswell & Fringford Playgroup
http://statistics.data.gov.uk/id/local-authority/38,Oxfordshire County Council,NURSERY ED FUND,02/11/2023,5537,Payments to Other Establishments,3111535933,"-11,544.12",Treetops Nursery
http://statistics.data.gov.uk/id/local-authority/38,Oxfordshire County Council,NURSERY ED FUND,02/11/2023,5537,Payments to Other Establishments,3111535688,"-11,415.85",Cogges Under 5s Associa
http://statistics.data.gov.uk/id/local-authority/38,Oxfordshire County Council,NURSERY ED FUND,02/11/2023,5537,Payments to Other Establishments,3111534478,"-11,347.55",Rainbow Corner Day Nurse
http://statistics.data.gov.uk/id/local-authority/38,Oxfordshire County Council,POST18 UASC DCSF FND,29/11/2023,5785,Client Lodgings and Accommodation,3111559711,"-11,163.03",Response Organisation
http://statistics.data.gov.uk/id/local-authority/38,Oxfordshire County Council,CHC Fast Track - Care Homes - Over 65,10/11/2023,5687,,3111548442,"-11,128.58",Bridge House
http://statistics.data.gov.uk/id/local-authority/38,Oxfordshire County Council,NURSERY ED FUND,02/11/2023,5537,Payments to Other Establishments,3111535223,"-10,913.61",Steeple Aston Pre-School
http://statistics.data.gov.uk/id/local-authority/38,Oxfordshire County Council,Homes2Inspire Block,29/11/2023,5558,,3111559729,"-10,852.80",Homes 2 Inspire Limited
http://statistics.data.gov.uk/id/local-authority/38,Oxfordshire County Council,NURSERY ED FUND,02/11/2023,5537,Payments to Other Establishments,3111536403,"-10,517.98",The Village Nursery
http://statistics.data.gov.uk/id/local-authority/38,Oxfordshire County Council,NURSERY ED FUND,02/11/2023,5537,Payments to Other Establishments,3111535316,"-10,433.05",Hendreds Pre-School
http://statistics.data.gov.uk/id/local-authority/38,Oxfordshire County Council,NURSERY ED FUND,02/11/2023,5537,Payments to Other Establishments,3111535989,"-10,411.38",Hardwick & Arden Pre-School
http://statistics.data.gov.uk/id/local-authority/38,Oxfordshire County Council,NURSERY ED FUND,02/11/2023,5537,Payments to Other Establishments,3111539330,"-10,261.44",Chalgrove Community Primary School
http://statistics.data.gov.uk/id/local-authority/38,Oxfordshire County Council,NURSERY ED FUND,02/11/2023,5537,Payments to Other Establishments,3111537022,"-10,133.17",The Nursery
http://statistics.data.gov.uk/id/local-authority/38,Oxfordshire County Council,NURSERY ED FUND,02/11/2023,5537,Payments to Other Establishments,3111537888,"-10,101.25",Cygnets Playschool
http://statistics.data.gov.uk/id/local-authority/38,Oxfordshire County Council,NURSERY ED FUND,02/11/2023,5537,Payments to Other Establishments,3111537111,"-10,065.72",Kidsunlimited Oxford Business Park
http://statistics.data.gov.uk/id/local-authority/38,Oxfordshire County Council,NURSERY ED FUND,02/11/2023,5537,Payments to Other Establishments,3111536380,"-10,036.98",Ascott-under-Wychwood Pre-School
http://statistics.data.gov.uk/id/local-authority/38,Oxfordshire County Council,NURSERY ED FUND,02/11/2023,5537,Payments to Other Establishments,3111535510,"-9,674.28",Queensdown Nursery School
http://statistics.data.gov.uk/id/local-authority/38,Oxfordshire County Council,NURSERY ED FUND,02/11/2023,5537,Payments to Other Establishments,3111538928,"-9,620.10",Burford Primary School (Academy)
http://statistics.data.gov.uk/id/local-authority/38,Oxfordshire County Council,NURSERY ED FUND,02/11/2023,5537,Payments to Other Establishments,3111539806,"-9,620.10",Madley Brook Community Primary Scho
http://statistics.data.gov.uk/id/local-authority/38,Oxfordshire County Council,NURSERY ED FUND,02/11/2023,5537,Payments to Other Establishments,3111534147,"-9,534.58",Lord Williams School Da
http://statistics.data.gov.uk/id/local-authority/38,Oxfordshire County Council,NURSERY ED FUND,02/11/2023,5537,Payments to Other Establishments,3111535162,"-9,513.51",Grovelands Park Pre-School
http://statistics.data.gov.uk/id/local-authority/38,Oxfordshire County Council,NURSERY ED FUND,02/11/2023,5537,Payments to Other Establishments,3111538650,"-9,491.83",St Peters Church of England Primary
http://statistics.data.gov.uk/id/local-authority/38,Oxfordshire County Council,NURSERY ED FUND,02/11/2023,5537,Payments to Other Establishments,3111536861,"-9,449.08",Hadden Hill Nursery and Pre-School
http://statistics.data.gov.uk/id/local-authority/38,Oxfordshire County Council,Mainstream Res,01/11/2023,5558,,3111533704,"-9,222.84",Calcot Services For Children
http://statistics.data.gov.uk/id/local-authority/38,Oxfordshire County Council,NURSERY ED FUND,02/11/2023,5537,Payments to Other Establishments,3111538142,"-9,107.03",Peapods Nursery School
http://statistics.data.gov.uk/id/local-authority/38,Oxfordshire County Council,CHC Fast Track - Care Homes - Over 65,10/11/2023,5687,,3111549857,"-8,985.71",Lincroft Meadow
http://statistics.data.gov.uk/id/local-authority/38,Oxfordshire County Council,NURSERY ED FUND,02/11/2023,5537,Payments to Other Establishments,3111534336,"-8,985.29",Long Wittenham Pre-School
http://statistics.data.gov.uk/id/local-authority/38,Oxfordshire County Council,Support at Home 65+ Physical Support,07/11/2023,5699,,3111545138,"-8,982.69",Direct Link Care Ltd
http://statistics.data.gov.uk/id/local-authority/38,Oxfordshire County Council,NURSERY ED FUND,02/11/2023,5537,Payments to Other Establishments,3111534811,"-8,910.46",Middle Barton Pre-School
http://statistics.data.gov.uk/id/local-authority/38,Oxfordshire County Council,NURSERY ED FUND,02/11/2023,5537,Payments to Other Establishments,3111537099,"-8,814.70",Littlemore Playgroup
http://statistics.data.gov.uk/id/local-authority/38,Oxfordshire County Council,NURSERY ED FUND,02/11/2023,5537,Payments to Other Establishments,3111535830,"-8,763.05",Leafield Pre-School
http://statistics.data.gov.uk/id/local-authority/38,Oxfordshire County Council,NURSERY ED FUND,02/11/2023,5537,Payments to Other Establishments,3111535251,"-8,604.79",Woodcote Pre-School Group
http://statistics.data.gov.uk/id/local-authority/38,Oxfordshire County Council,NURSERY ED FUND,02/11/2023,5537,Payments to Other Establishments,3111535256,"-8,393.24",Great Tew Pre-School
http://statistics.data.gov.uk/id/local-authority/38,Oxfordshire County Council,NURSERY ED FUND,02/11/2023,5537,Payments to Other Establishments,3111535732,"-8,337.42",Rye St Antony School
http://statistics.data.gov.uk/id/local-authority/38,Oxfordshire County Council,NURSERY ED FUND,02/11/2023,5537,Payments to Other Establishments,3111538884,"-8,337.42",The Warriner Multi Academy Trust
http://statistics.data.gov.uk/id/local-authority/38,Oxfordshire County Council,NURSERY ED FUND,02/11/2023,5537,Payments to Other Establishments,3111535321,"-8,123.64",Oxford Montessori Nursery
http://statistics.data.gov.uk/id/local-authority/38,Oxfordshire County Council,COMM DRAWDOWN FUNDNG,14/11/2023,8004,Design Consultant,2201169564,"-8,120.85",Milestone Infrastructure Limited
http://statistics.data.gov.uk/id/local-authority/38,Oxfordshire County Council,NURSERY ED FUND,02/11/2023,5537,Payments to Other Establishments,3111538702,"-8,080.89",Standlake CE Primary School
http://statistics.data.gov.uk/id/local-authority/38,Oxfordshire County Council,CHC Fast Track - Care Homes - Over 65,10/11/2023,5687,,3111550758,"-7,971.43",MARIPOSA CARE GROUP LIMITED
http://statistics.data.gov.uk/id/local-authority/38,Oxfordshire County Council,CHC Fast Track - Care Homes - Over 65,10/11/2023,5687,,3111548452,"-7,871.43",Bridge House
http://statistics.data.gov.uk/id/local-authority/38,Oxfordshire County Council,NURSERY ED FUND,02/11/2023,5537,Payments to Other Establishments,3111538821,"-7,846.02",Rabia Sharma
http://statistics.data.gov.uk/id/local-authority/38,Oxfordshire County Council,NURSERY ED FUND,02/11/2023,5537,Payments to Other Establishments,3111537761,"-7,696.08",Kids Unlimited (Clearwater Place)
http://statistics.data.gov.uk/id/local-authority/38,Oxfordshire County Council,NURSERY ED FUND,02/11/2023,5537,Payments to Other Establishments,3111537204,"-7,653.32",Harpsden Pre-School Playgroup
http://statistics.data.gov.uk/id/local-authority/38,Oxfordshire County Council,LANDLORD & TENANT,01/11/2023,4001,Uniform Business Rates,3111533792,"-7,613.97",Oxford City Council
http://statistics.data.gov.uk/id/local-authority/38,Oxfordshire County Council,Funded Nursing Care  - Over 65,10/11/2023,5692,,3111548126,"-7,613.36",Orders of St John
http://statistics.data.gov.uk/id/local-authority/38,Oxfordshire County Council,Funded Nursing Care  - Over 65,10/11/2023,5692,,3111550274,"-7,583.47",SANCTUARY CARE PROPERTY (2) LTD
http://statistics.data.gov.uk/id/local-authority/38,Oxfordshire County Council,NURSERY ED FUND,02/11/2023,5537,Payments to Other Establishments,3111537485,"-7,578.65",The Oxford Nursery (Summertown)
http://statistics.data.gov.uk/id/local-authority/38,Oxfordshire County Council,CHC Fast Track - Care Homes - Over 65,10/11/2023,5687,,3111550407,"-7,542.85",Stowford House
http://statistics.data.gov.uk/id/local-authority/38,Oxfordshire County Council,CHC Fast Track - Care Homes - Over 65,10/11/2023,5687,,3111551038,"-7,344.86",SANCTUARY CARE LTD
http://statistics.data.gov.uk/id/local-authority/38,Oxfordshire County Council,NURSERY ED FUND,02/11/2023,5537,Payments to Other Establishments,3111535673,"-7,183.01",Cumnor Pre-School Nurser
http://statistics.data.gov.uk/id/local-authority/38,Oxfordshire County Council,Funded Nursing Care  - Over 65,10/11/2023,5692,,3111548226,"-7,075.44",Banbury Heights Nursing Home
http://statistics.data.gov.uk/id/local-authority/38,Oxfordshire County Council,NURSERY ED FUND,02/11/2023,5537,Payments to Other Establishments,3111538892,"-7,054.74",Florence Darby
http://statistics.data.gov.uk/id/local-authority/38,Oxfordshire County Council,Support at Home U65 Learning Disability,10/11/2023,5688,,3111551080,"-6,991.43",Community Integrated Care
http://statistics.data.gov.uk/id/local-authority/38,Oxfordshire County Council,NURSERY ED FUND,02/11/2023,5537,Payments to Other Establishments,3111537896,"-6,948.15",Rockwell House Day Nursery & Sch
http://statistics.data.gov.uk/id/local-authority/38,Oxfordshire County Council,Care Homes - Under 65 MH - OBC Contract,10/11/2023,5686,,3111550197,"-6,922.93",2 Care
http://statistics.data.gov.uk/id/local-authority/38,Oxfordshire County Council,Continuing Care - Care Homes - 65+,10/11/2023,5687,,3111551018,"-6,864.29",Wytham House
http://statistics.data.gov.uk/id/local-authority/38,Oxfordshire County Council,Support at Home 65+ Physical Support,07/11/2023,5699,,3111545616,"-6,713.17",Rynes Healthcare Ltd
http://statistics.data.gov.uk/id/local-authority/38,Oxfordshire County Council,CHC Fast Track - Care Homes - Over 65,10/11/2023,5687,,3111549346,"-6,628.57",LAWTON GROUP LTD
http://statistics.data.gov.uk/id/local-authority/38,Oxfordshire County Council,NURSERY ED FUND,02/11/2023,5537,Payments to Other Establishments,3111538808,"-6,413.40",Bampton CofE School
http://statistics.data.gov.uk/id/local-authority/38,Oxfordshire County Council,COMM DRAWDOWN FUNDNG,14/11/2023,8102,Payments to main contractor,2201169566,"-6,258.35",Milestone Infrastructure Limited
http://statistics.data.gov.uk/id/local-authority/38,Oxfordshire County Council,2 YEAR OLD FUNDING,02/11/2023,5537,Payments to Other Establishments,3111533939,"-6,014.48",The Ace Centre
http://statistics.data.gov.uk/id/local-authority/38,Oxfordshire County Council,Funded Nursing Care  - Over 65,10/11/2023,5692,,3111550915,"-5,932.16",SANCTUARY CARE LTD
http://statistics.data.gov.uk/id/local-authority/38,Oxfordshire County Council,CHC Fast Track - Care Homes - Over 65,10/11/2023,5687,,3111548741,"-5,860.93",WT UK Opco 4 Ltd C/O Care UK
http://statistics.data.gov.uk/id/local-authority/38,Oxfordshire County Council,NURSERY ED FUND,02/11/2023,5537,Payments to Other Establishments,3111534142,"-5,772.06",Balliol Day Nursery
http://statistics.data.gov.uk/id/local-authority/38,Oxfordshire County Council,CHC Fast Track - Care Homes - Over 65,10/11/2023,5687,,3111548827,"-5,750.00",Chacombe Park Care Home
http://statistics.data.gov.uk/id/local-authority/38,Oxfordshire County Council,NURSERY ED FUND,02/11/2023,5537,Payments to Other Establishments,3111536137,"-5,736.53",Begbroke Playgroup
http://statistics.data.gov.uk/id/local-authority/38,Oxfordshire County Council,SIGNING & LINING,30/11/2023,5500,Payments to Other Local Authorities,2201175439,"-5,600.00",Oxford Direct Services Trading Ltd
http://statistics.data.gov.uk/id/local-authority/38,Oxfordshire County Council,NURSERY ED FUND,02/11/2023,5537,Payments to Other Establishments,3111538530,"-5,387.26",Stanton Harcourt CE
http://statistics.data.gov.uk/id/local-authority/38,Oxfordshire County Council,Funded Nursing Care  - Over 65,10/11/2023,5692,,3111549464,"-5,367.19",Green Gates NH (BUPA)
http://statistics.data.gov.uk/id/local-authority/38,Oxfordshire County Council,COMM DRAWDOWN FUNDNG,14/11/2023,8102,Payments to main contractor,2201169565,"-5,269.23",Milestone Infrastructure Limited
http://statistics.data.gov.uk/id/local-authority/38,Oxfordshire County Council,2 YEAR OLD FUNDING,02/11/2023,5537,Payments to Other Establishments,3111537726,"-5,184.90",Deddington Village Nursery
http://statistics.data.gov.uk/id/local-authority/38,Oxfordshire County Council,Development Management,14/11/2023,5526,Payments to Private Contractors,2201169586,"-5,145.42",Milestone Infrastructure Limited
http://statistics.data.gov.uk/id/local-authority/38,Oxfordshire County Council,Care Homes - Over 65 Memory & Cognition,10/11/2023,5686,,3111550362,"-5,134.20",St Andrews Residential Care Home L
http://statistics.data.gov.uk/id/local-authority/38,Oxfordshire County Council,NURSERY ED FUND,02/11/2023,5537,Payments to Other Establishments,3111537023,"-5,002.45",Forest Farm (Oxford Montessori Nurs
http://statistics.data.gov.uk/id/local-authority/38,Oxfordshire County Council,Support at Home U65 Learning Disability,07/11/2023,5682,,3111543473,"-4,846.93",The Brandon Trust
http://statistics.data.gov.uk/id/local-authority/38,Oxfordshire County Council,NURSERY ED FUND,02/11/2023,5537,Payments to Other Establishments,3111536563,"-4,764.24",Joscas Preparatory School
http://statistics.data.gov.uk/id/local-authority/38,Oxfordshire County Council,NURSERY ED FUND,02/11/2023,5537,Payments to Other Establishments,3111537877,"-4,596.56",Summertown Montessori Nursery
http://statistics.data.gov.uk/id/local-authority/38,Oxfordshire County Council,NURSERY ED FUND,02/11/2023,5537,Payments to Other Establishments,3111535567,"-4,510.76",Whitchurch Pre-School Group
http://statistics.data.gov.uk/id/local-authority/38,Oxfordshire County Council,NURSERY ED FUND,02/11/2023,5537,Payments to Other Establishments,3111537853,"-4,489.38",St Annes College Day Nursery
http://statistics.data.gov.uk/id/local-authority/38,Oxfordshire County Council,NURSERY ED FUND,02/11/2023,5537,Payments to Other Establishments,3111536361,"-4,489.38",Wolfson College Day Nurs
http://statistics.data.gov.uk/id/local-authority/38,Oxfordshire County Council,CHC Fast Track - Care Homes - Over 65,10/11/2023,5687,,3111549343,"-4,428.57",LAWTON GROUP LTD
http://statistics.data.gov.uk/id/local-authority/38,Oxfordshire County Council,MAINSTREAM-SECONDARY,21/11/2023,4322,"Season Tickets - Bus, Rail & Ferry",3111554939,"-4,200.00",Oxford Bus Company Ltd
http://statistics.data.gov.uk/id/local-authority/38,Oxfordshire County Council,Care Homes - Under 65 Physical Sypport,10/11/2023,5687,,3111550796,"-4,173.21",Valorum Care Limited
http://statistics.data.gov.uk/id/local-authority/38,Oxfordshire County Council,Support at Home U65 Mental Health,10/11/2023,5690,,3111547386,"-4,137.91",Autism at Kingwood Limited
http://statistics.data.gov.uk/id/local-authority/38,Oxfordshire County Council,CHC Fast Track - Care Homes - Over 65,10/11/2023,5687,,3111548543,"-4,071.43",METHODIST HOMES
http://statistics.data.gov.uk/id/local-authority/38,Oxfordshire County Council,Care Homes - Over 65 Memory & Cognition,10/11/2023,5687,,3111550865,"-4,019.29",Wardington House Nursing Home
http://statistics.data.gov.uk/id/local-authority/38,Oxfordshire County Council,NURSERY ED FUND,02/11/2023,5537,Payments to Other Establishments,3111534792,"-3,987.14",The Orchard Pre-School
http://statistics.data.gov.uk/id/local-authority/38,Oxfordshire County Council,Care Homes - Over 65 Physical Sypport,10/11/2023,5687,,3111547604,"-3,930.38",Orders of St John
http://statistics.data.gov.uk/id/local-authority/38,Oxfordshire County Council,Care Homes - Over 65 Physical Sypport,10/11/2023,5686,,3111549190,"-3,788.06",Featherton House
http://statistics.data.gov.uk/id/local-authority/38,Oxfordshire County Council,COMM DRAWDOWN FUNDNG,14/11/2023,8004,Design Consultant,2201169602,"-3,755.70",Milestone Infrastructure Limited
http://statistics.data.gov.uk/id/local-authority/38,Oxfordshire County Council,CHC Fast Track - Care Homes - Over 65,10/11/2023,5687,,3111548854,"-3,718.00",Chacombe Park Care Home
http://statistics.data.gov.uk/id/local-authority/38,Oxfordshire County Council,Support at Home U65 Physical Support,10/11/2023,5686,,3111549073,"-3,657.14",CUMNOR HILL HOUSE
http://statistics.data.gov.uk/id/local-authority/38,Oxfordshire County Council,Funded Nursing Care  - Over 65,10/11/2023,5692,,3111548372,"-3,640.90",Bondcare (Henley) Ltd
http://statistics.data.gov.uk/id/local-authority/38,Oxfordshire County Council,NURSERY ED FUND,02/11/2023,5537,Payments to Other Establishments,3111536567,"-3,634.26",EWELME PRE SCHOOL
http://statistics.data.gov.uk/id/local-authority/38,Oxfordshire County Council,Continuing Care - Care Homes - 65+,10/11/2023,5687,,3111548512,"-3,631.05",METHODIST HOMES
http://statistics.data.gov.uk/id/local-authority/38,Oxfordshire County Council,Support at Home U65 Learning Disability,10/11/2023,5688,,3111551370,"-3,603.57",H F TRUST LTD
http://statistics.data.gov.uk/id/local-authority/38,Oxfordshire County Council,NURSERY ED FUND,02/11/2023,5537,Payments to Other Establishments,3111538823,"-3,602.34",Rebecca Sandwell
http://statistics.data.gov.uk/id/local-authority/38,Oxfordshire County Council,Care Homes - Over 65 Physical Sypport,10/11/2023,5686,,3111549193,"-3,581.43",Ferendune Court (Anchor Trust)
http://statistics.data.gov.uk/id/local-authority/38,Oxfordshire County Council,COMM DRAWDOWN FUNDNG,14/11/2023,8004,Design Consultant,2201169190,"-3,554.29",Milestone Infrastructure Limited
http://statistics.data.gov.uk/id/local-authority/38,Oxfordshire County Council,PLACEMENTS- RELEVANT,08/11/2023,5558,,3111546452,"-3,542.86",Collaborative Care Services
http://statistics.data.gov.uk/id/local-authority/38,Oxfordshire County Council,CHC Fast Track - Care Homes - Over 65,10/11/2023,5687,,3111548417,"-3,528.57",Bridge House
http://statistics.data.gov.uk/id/local-authority/38,Oxfordshire County Council,CHC Fast Track - Care Homes - Over 65,10/11/2023,5687,,3111549928,"-3,471.43",Meadow View Nursing Home
http://statistics.data.gov.uk/id/local-authority/38,Oxfordshire County Council,NURSERY ED FUND,02/11/2023,5537,Payments to Other Establishments,3111538875,"-3,431.32",Sally Anne Skellington
http://statistics.data.gov.uk/id/local-authority/38,Oxfordshire County Council,PLACEMENTS- RELEVANT,08/11/2023,5558,,3111546451,"-3,428.57",Collaborative Care Services
http://statistics.data.gov.uk/id/local-authority/38,Oxfordshire County Council,Funded Nursing Care  - Over 65,10/11/2023,5692,,3111548366,"-3,389.80",Bondcare (Henley) Ltd
http://statistics.data.gov.uk/id/local-authority/38,Oxfordshire County Council,SEN TRANSPORT,27/11/2023,4330,Transport to School Activities,3111558798,"-3,370.00",Go Green Taxis
http://statistics.data.gov.uk/id/local-authority/38,Oxfordshire County Council,Funded Nursing Care  - Over 65,10/11/2023,5692,,3111549467,"-3,327.03",Green Gates NH (BUPA)
http://statistics.data.gov.uk/id/local-authority/38,Oxfordshire County Council,Support at Home 65+ Memory & Cognition,10/11/2023,5686,,3111549386,"-3,300.00",GCH (St Katherines) Ltd
http://statistics.data.gov.uk/id/local-authority/38,Oxfordshire County Council,Support at Home 65+ Physical Support,10/11/2023,5686,,3111550366,"-3,300.00",ST ANNES RESIDENTIAL  HOME
http://statistics.data.gov.uk/id/local-authority/38,Oxfordshire County Council,Funded Nursing Care  - Over 65,10/11/2023,5692,,3111549910,"-3,264.26",Meadow View Nursing Home
http://statistics.data.gov.uk/id/local-authority/38,Oxfordshire County Council,Care Homes - Over 65 Physical Sypport,10/11/2023,5687,,3111549546,"-3,253.71",HAMBERLEY CARE 2 LIMITED
http://statistics.data.gov.uk/id/local-authority/38,Oxfordshire County Council,CHC Fast Track - Care Homes - Over 65,10/11/2023,5687,,3111550305,"-3,100.00",Barchester Healthcare Homes Ltd
http://statistics.data.gov.uk/id/local-authority/38,Oxfordshire County Council,CHC Fast Track - Care Homes - Over 65,10/11/2023,5687,,3111548513,"-3,100.00",METHODIST HOMES
http://statistics.data.gov.uk/id/local-authority/38,Oxfordshire County Council,Care Homes - Over 65 Memory & Cognition,10/11/2023,5687,,3111549270,"-3,085.71",Freeland House
http://statistics.data.gov.uk/id/local-authority/38,Oxfordshire County Council,Funded Nursing Care  - Over 65,10/11/2023,5692,,3111547670,"-3,013.16",Orders of St John
http://statistics.data.gov.uk/id/local-authority/38,Oxfordshire County Council,Support at Home 65+ Physical Support,10/11/2023,5686,,3111548267,"-2,985.71",Beech Haven Care Home
http://statistics.data.gov.uk/id/local-authority/38,Oxfordshire County Council,CHC Fast Track - Care Homes - Under 65,10/11/2023,5687,,3111550004,"-2,971.43",Mill House Nursing Home
http://statistics.data.gov.uk/id/local-authority/38,Oxfordshire County Council,Care Homes - Over 65 Memory & Cognition,10/11/2023,5686,,3111548221,"-2,967.29",Orders of St John
http://statistics.data.gov.uk/id/local-authority/38,Oxfordshire County Council,Support at Home 65+ Physical Support,10/11/2023,5686,,3111550764,"-2,958.57",The Ridings (Anchor Trust)
http://statistics.data.gov.uk/id/local-authority/38,Oxfordshire County Council,Funded Nursing Care  - Over 65,10/11/2023,5692,,3111547875,"-2,950.38",ACER HEALTHCARE LTD
http://statistics.data.gov.uk/id/local-authority/38,Oxfordshire County Council,Funded Nursing Care  - Over 65,10/11/2023,5692,,3111547890,"-2,919.00",ACER HEALTHCARE LTD
http://statistics.data.gov.uk/id/local-authority/38,Oxfordshire County Council,CAP CHRGES-PRIM SCHS,06/11/2023,8102,Payments to main contractor,2201166364,"-2,874.46",RPS
http://statistics.data.gov.uk/id/local-authority/38,Oxfordshire County Council,Continuing Care - Care Homes - 65+,10/11/2023,5687,,3111551035,"-2,785.71",SANCTUARY CARE LTD
http://statistics.data.gov.uk/id/local-authority/38,Oxfordshire County Council,Support at Home 65+ Learning Disability,10/11/2023,5688,,3111551319,"-2,704.68",Dimensions (UK) Ltd
http://statistics.data.gov.uk/id/local-authority/38,Oxfordshire County Council,Support at Home 65+ Learning Disability,10/11/2023,5688,,3111551323,"-2,704.68",Dimensions (UK) Ltd
http://statistics.data.gov.uk/id/local-authority/38,Oxfordshire County Council,Support at Home 65+ Learning Disability,10/11/2023,5688,,3111551336,"-2,704.68",Dimensions (UK) Ltd
http://statistics.data.gov.uk/id/local-authority/38,Oxfordshire County Council,Reactive Maintenance,22/11/2023,4111,Security Costs,2201172137,"-2,618.48",Oxford Security Services Ltd
http://statistics.data.gov.uk/id/local-authority/38,Oxfordshire County Council,Support at Home 65+ Physical Support,07/11/2023,5693,,3111543549,"-2,592.52",CaringPlus Healthcare Services Ltd
http://statistics.data.gov.uk/id/local-authority/38,Oxfordshire County Council,Support at Home 65+ Physical Support,07/11/2023,5699,,3111545394,"-2,589.36",KCARE NURSING AGENCY
http://statistics.data.gov.uk/id/local-authority/38,Oxfordshire County Council,Funded Nursing Care  - Over 65,10/11/2023,5692,,3111548928,"-2,573.74",Cherwood House Care Centre
http://statistics.data.gov.uk/id/local-authority/38,Oxfordshire County Council,NURSERY ED FUND,02/11/2023,5537,Payments to Other Establishments,3111536771,"-2,565.36","St Pauls Nursery, Somerville"
http://statistics.data.gov.uk/id/local-authority/38,Oxfordshire County Council,COMM DRAWDOWN FUNDNG,07/11/2023,8102,Payments to main contractor,2201166646,"-2,526.53",Milestone Infrastructure Limited
http://statistics.data.gov.uk/id/local-authority/38,Oxfordshire County Council,Funded Nursing Care  - Over 65,10/11/2023,5692,,3111549474,"-2,448.19",Green Gates NH (BUPA)
http://statistics.data.gov.uk/id/local-authority/38,Oxfordshire County Council,Care Homes - Over 65 Physical Sypport,10/11/2023,5685,B*Cycle tracks,3111548347,"-2,427.86",Orders of St John
http://statistics.data.gov.uk/id/local-authority/38,Oxfordshire County Council,Health Acquired Brain Injury C Homes U65,10/11/2023,5687,,3111548049,"-2,385.73",Didcot Care Home Ltd
http://statistics.data.gov.uk/id/local-authority/38,Oxfordshire County Council,Funded Nursing Care  - Over 65,10/11/2023,5692,,3111549465,"-2,385.42",Green Gates NH (BUPA)
http://statistics.data.gov.uk/id/local-authority/38,Oxfordshire County Council,Support at Home U65 Learning Disability,10/11/2023,5688,,3111551442,"-2,268.22",The Brandon Trust
http://statistics.data.gov.uk/id/local-authority/38,Oxfordshire County Council,Support at Home 65+ Physical Support,07/11/2023,5699,,3111545537,"-2,266.28",PLL Care Services
http://statistics.data.gov.uk/id/local-authority/38,Oxfordshire County Council,CHC Fast Track - Care Homes - Over 65,10/11/2023,5687,,3111550021,"-2,228.57",Mill House Nursing Home
http://statistics.data.gov.uk/id/local-authority/38,Oxfordshire County Council,Care Homes - Over 65 Memory & Cognition,10/11/2023,5686,,3111549414,"-2,180.00",GCH (St Katherines) Ltd
http://statistics.data.gov.uk/id/local-authority/38,Oxfordshire County Council,CHC Fast Track - Care Homes - Over 65,10/11/2023,5687,,3111550073,"-2,121.43",Oakenholt Care Ltd
http://statistics.data.gov.uk/id/local-authority/38,Oxfordshire County Council,2 YEAR OLD FUNDING,02/11/2023,5537,Payments to Other Establishments,3111538753,"-2,073.96",Caryn Hornby
http://statistics.data.gov.uk/id/local-authority/38,Oxfordshire County Council,Funded Nursing Care  - Over 65,10/11/2023,5692,,3111547811,"-2,071.55",Abbey Crest Nursing Home
http://statistics.data.gov.uk/id/local-authority/38,Oxfordshire County Council,Procurement Rebates & Income,16/11/2023,7203,Other Miscellaneous Income,3111553641,"-2,064.70",GRUNDON WASTE MANAGEMENT LTD
http://statistics.data.gov.uk/id/local-authority/38,Oxfordshire County Council,Support at Home 65+ Physical Support,07/11/2023,5699,,3111544009,"-2,060.25",Eleanor Nursing & Social Care Ltd
http://statistics.data.gov.uk/id/local-authority/38,Oxfordshire County Council,COMM DRAWDOWN FUNDNG,27/11/2023,8102,Payments to main contractor,2201173885,"-2,040.00",Stantec UK Limited
http://statistics.data.gov.uk/id/local-authority/38,Oxfordshire County Council,Support at Home U65 Learning Disability,10/11/2023,5688,,3111551318,"-1,990.00",Enriched Care Support Services Ltd
http://statistics.data.gov.uk/id/local-authority/38,Oxfordshire County Council,Support at Home U65 Memory & Cognition,10/11/2023,5686,,3111547897,"-1,978.19",Orders of St John
http://statistics.data.gov.uk/id/local-authority/38,Oxfordshire County Council,Refuse,15/11/2023,4092,General Refuse Collection and Disposal,2201169723,"-1,976.80",GRUNDON WASTE MANAGEMENT LTD
http://statistics.data.gov.uk/id/local-authority/38,Oxfordshire County Council,MAINSTREAM-SECONDARY,20/11/2023,4322,"Season Tickets - Bus, Rail & Ferry",3111554871,"-1,939.75",Oxford Bus Company Ltd
http://statistics.data.gov.uk/id/local-authority/38,Oxfordshire County Council,CHC Fast Track - Care Homes - Over 65,10/11/2023,5687,,3111548457,"-1,900.00",Bridge House
http://statistics.data.gov.uk/id/local-authority/38,Oxfordshire County Council,Support at Home 65+ Memory & Cognition,10/11/2023,5690,,3111547236,"-1,899.40",Orders of St John
http://statistics.data.gov.uk/id/local-authority/38,Oxfordshire County Council,Care Homes - Over 65 Memory & Cognition,10/11/2023,5687,,3111550332,"-1,885.71",Barchester Healthcare Homes Ltd
http://statistics.data.gov.uk/id/local-authority/38,Oxfordshire County Council,Funded Nursing Care  - Over 65,10/11/2023,5692,,3111547935,"-1,883.23",ACER HEALTHCARE LTD
http://statistics.data.gov.uk/id/local-authority/38,Oxfordshire County Council,SEN TRANSPORT,28/11/2023,4330,Transport to School Activities,3111559601,"-1,827.00",OXO Hire Ltd
http://statistics.data.gov.uk/id/local-authority/38,Oxfordshire County Council,ICT Operations & Maintenance,13/11/2023,5072,Telephone - Equipment,2201168656,"-1,811.18",Vodafone
http://statistics.data.gov.uk/id/local-authority/38,Oxfordshire County Council,Care Homes - Over 65 Memory & Cognition,10/11/2023,5686,,3111550065,"-1,728.57",Oakenholt Care Ltd
http://statistics.data.gov.uk/id/local-authority/38,Oxfordshire County Council,Independent Foster,01/11/2023,5561,B* Bus Shelter Reps & Cleansing,3111533785,"-1,717.82",Orange Grove Foster Care Ltd
http://statistics.data.gov.uk/id/local-authority/38,Oxfordshire County Council,PLACEMENTS- RELEVANT,08/11/2023,5558,,3111546450,"-1,714.61",Collaborative Care Services
http://statistics.data.gov.uk/id/local-authority/38,Oxfordshire County Council,Funded Nursing Care  - Over 65,10/11/2023,5692,,3111548334,"-1,694.90",Orders of St John
http://statistics.data.gov.uk/id/local-authority/38,Oxfordshire County Council,Support at Home U65 Learning Disability,10/11/2023,5690,,3111547551,"-1,685.40",The Camden Society
http://statistics.data.gov.uk/id/local-authority/38,Oxfordshire County Council,NURSERY ED FUND,02/11/2023,5537,Payments to Other Establishments,3111537554,"-1,678.32",Little Bears Pre-School (PFSU)
http://statistics.data.gov.uk/id/local-authority/38,Oxfordshire County Council,Care Homes - Over 65 Physical Sypport,10/11/2023,5686,,3111547535,"-1,607.28",Orders of St John
http://statistics.data.gov.uk/id/local-authority/38,Oxfordshire County Council,Support at Home 65+ Physical Support,07/11/2023,5699,,3111545511,"-1,593.26",Pechiv Ltd
http://statistics.data.gov.uk/id/local-authority/38,Oxfordshire County Council,Support at Home 65+ Physical Support,07/11/2023,5699,,3111545536,"-1,587.60",PLL Care Services
http://statistics.data.gov.uk/id/local-authority/38,Oxfordshire County Council,Funded Nursing Care  - Over 65,10/11/2023,5692,,3111549877,"-1,475.19",Lincroft Meadow
http://statistics.data.gov.uk/id/local-authority/38,Oxfordshire County Council,Support at Home 65+ Physical Support,10/11/2023,5686,,3111547647,"-1,438.00",Orders of St John
http://statistics.data.gov.uk/id/local-authority/38,Oxfordshire County Council,Funded Nursing Care  - Over 65,10/11/2023,5692,,3111549876,"-1,318.26",Lincroft Meadow
http://statistics.data.gov.uk/id/local-authority/38,Oxfordshire County Council,Care Homes - Over 65 Memory & Cognition,10/11/2023,5687,,3111547946,"-1,290.51",Acacia Lodge Care Home
http://statistics.data.gov.uk/id/local-authority/38,Oxfordshire County Council,NURSERY ED FUND,02/11/2023,5537,Payments to Other Establishments,3111538460,"-1,282.68",Abbey Woods Academy
http://statistics.data.gov.uk/id/local-authority/38,Oxfordshire County Council,NURSERY ED FUND,02/11/2023,5537,Payments to Other Establishments,3111538750,"-1,282.68",Carol Pohlman
http://statistics.data.gov.uk/id/local-authority/38,Oxfordshire County Council,NURSERY ED FUND,02/11/2023,5537,Payments to Other Establishments,3111538998,"-1,282.68",Finstock CE Primary School
http://statistics.data.gov.uk/id/local-authority/38,Oxfordshire County Council,NURSERY ED FUND,02/11/2023,5537,Payments to Other Establishments,3111533940,"-1,282.68",Kerry Lydiate
http://statistics.data.gov.uk/id/local-authority/38,Oxfordshire County Council,Funded Nursing Care  - Over 65,10/11/2023,5692,,3111550507,"-1,255.48",Tall Trees
http://statistics.data.gov.uk/id/local-authority/38,Oxfordshire County Council,Care Homes - Over 65 Physical Sypport,10/11/2023,5685,B*Cycle tracks,3111550025,"-1,213.07",Mill House Nursing Home
http://statistics.data.gov.uk/id/local-authority/38,Oxfordshire County Council,Continuing Care - Care Homes - 65+,10/11/2023,5687,,3111548603,"-1,200.00",Grace Care Service Ltd T/A Burford
http://statistics.data.gov.uk/id/local-authority/38,Oxfordshire County Council,Funded Nursing Care  - Over 65,10/11/2023,5692,,3111549867,"-1,192.71",Lincroft Meadow
http://statistics.data.gov.uk/id/local-authority/38,Oxfordshire County Council,Early Years SEN Funding,29/11/2023,5537,Payments to Other Establishments,2201174956,"-1,173.60",Kids Unlimited Harwell
http://statistics.data.gov.uk/id/local-authority/38,Oxfordshire County Council,RESIDENTIAL TREATMEN,01/11/2023,5686,,2201164394,"-1,162.50",Adferiad Recovery
http://statistics.data.gov.uk/id/local-authority/38,Oxfordshire County Council,CHC Fast Track - Care Homes - Over 65,10/11/2023,5687,,3111549350,"-1,142.86",LAWTON GROUP LTD
http://statistics.data.gov.uk/id/local-authority/38,Oxfordshire County Council,Independent Foster,08/11/2023,5559,,3111546518,"-1,118.61",Compass Fostering West Limited
http://statistics.data.gov.uk/id/local-authority/38,Oxfordshire County Council,TRAINING MANAGEMENT,14/11/2023,3100,Educational and Vocational Training,2201169230,"-1,100.00",Fire Service College Ltd
http://statistics.data.gov.uk/id/local-authority/38,Oxfordshire County Council,Early Years SEN Funding,29/11/2023,5537,Payments to Other Establishments,2201174959,"-1,095.36",Kids Unlimited Harwell
http://statistics.data.gov.uk/id/local-authority/38,Oxfordshire County Council,Funded Nursing Care  - Over 65,10/11/2023,5692,,3111549152,"-1,067.16",Oakland Wantage Care Home Limited
http://statistics.data.gov.uk/id/local-authority/38,Oxfordshire County Council,2 YEAR OLD FUNDING,02/11/2023,5537,Payments to Other Establishments,3111533941,"-1,036.98",Wendy Dawson
http://statistics.data.gov.uk/id/local-authority/38,Oxfordshire County Council,Funded Nursing Care  - Over 65,10/11/2023,5692,,3111547957,"-1,035.77",Acacia Lodge Care Home
http://statistics.data.gov.uk/id/local-authority/38,Oxfordshire County Council,Support at Home 65+ Mental Health,10/11/2023,5686,,3111549850,"-1,033.71",Lincroft Meadow
http://statistics.data.gov.uk/id/local-authority/38,Oxfordshire County Council,NURSERY ED FUND,02/11/2023,5537,Payments to Other Establishments,3111538784,"-1,026.14",Catherine Emma Waddy
http://statistics.data.gov.uk/id/local-authority/38,Oxfordshire County Council,Care Homes - Over 65 Memory & Cognition,10/11/2023,5687,,3111550649,"-1,021.80",Four Seasons (Headington) Ltd
http://statistics.data.gov.uk/id/local-authority/38,Oxfordshire County Council,Care Homes - Over 65 Memory & Cognition,10/11/2023,5687,,3111548265,"-1,020.59",Beech Haven Care Home
http://statistics.data.gov.uk/id/local-authority/38,Oxfordshire County Council,Support at Home 65+ Physical Support,07/11/2023,5699,,3111543965,-988.92,Care Outlook Ltd
http://statistics.data.gov.uk/id/local-authority/38,Oxfordshire County Council,Care Homes - Over 65 Memory & Cognition,10/11/2023,5687,,3111549700,-967.86,Huntercombe Hall Care Home
http://statistics.data.gov.uk/id/local-authority/38,Oxfordshire County Council,NURSERY ED FUND,02/11/2023,5537,Payments to Other Establishments,3111538456,-913.5,Wantage CE Primary School # Academy
http://statistics.data.gov.uk/id/local-authority/38,Oxfordshire County Council,L&D CORE PROGRAMME,15/11/2023,3103,Other Training Courses and Qualification,2201170168,-895,Premier Partnership
http://statistics.data.gov.uk/id/local-authority/38,Oxfordshire County Council,Continuing Care - Care Homes - 65+,10/11/2023,5687,,3111550214,-883.01,RICHMOND VILLAGE WITNEY
http://statistics.data.gov.uk/id/local-authority/38,Oxfordshire County Council,NURSERY ED FUND,02/11/2023,5537,Payments to Other Establishments,3111539802,-861.3,Madley Brook Community Primary Scho
http://statistics.data.gov.uk/id/local-authority/38,Oxfordshire County Council,Funded Nursing Care  - Over 65,10/11/2023,5692,,3111549845,-847.45,Lincroft Meadow
http://statistics.data.gov.uk/id/local-authority/38,Oxfordshire County Council,Funded Nursing Care  - Over 65,10/11/2023,5692,,3111547565,-847.45,Orders of St John
http://statistics.data.gov.uk/id/local-authority/38,Oxfordshire County Council,Disability Access Fund,02/11/2023,5537,Payments to Other Establishments,3111536282,-828,St Hugh of Lincoln Nursery School
http://statistics.data.gov.uk/id/local-authority/38,Oxfordshire County Council,NURSERY ED FUND,02/11/2023,5537,Payments to Other Establishments,3111533962,-824.4,Harriers Banbury Academy
http://statistics.data.gov.uk/id/local-authority/38,Oxfordshire County Council,NURSERY ED FUND,02/11/2023,5537,Payments to Other Establishments,3111538708,-824.4,NOAs Ark Nursery
http://statistics.data.gov.uk/id/local-authority/38,Oxfordshire County Council,NURSERY ED FUND,02/11/2023,5537,Payments to Other Establishments,3111539118,-824.4,The Early Years Nursery
http://statistics.data.gov.uk/id/local-authority/38,Oxfordshire County Council,Early Years SEN Funding,29/11/2023,5537,Payments to Other Establishments,2201174975,-821.52,Kids Unlimited Harwell
http://statistics.data.gov.uk/id/local-authority/38,Oxfordshire County Council,Funded Nursing Care  - Over 65,10/11/2023,5692,,3111550292,-816.07,Barchester Healthcare Homes Ltd
http://statistics.data.gov.uk/id/local-authority/38,Oxfordshire County Council,Care Homes - Over 65 Physical Sypport,10/11/2023,5687,,3111550022,-811.26,Mill House Nursing Home
http://statistics.data.gov.uk/id/local-authority/38,Oxfordshire County Council,Disability Access Fund,02/11/2023,5537,Payments to Other Establishments,3111535676,-800,Cogges Under 5s Associa
http://statistics.data.gov.uk/id/local-authority/38,Oxfordshire County Council,Disability Access Fund,02/11/2023,5537,Payments to Other Establishments,3111535236,-800,Steeple Aston Pre-School
http://statistics.data.gov.uk/id/local-authority/38,Oxfordshire County Council,COMM DRAWDOWN FUNDNG,14/11/2023,8004,Design Consultant,2201169411,-793.76,Milestone Infrastructure Limited
http://statistics.data.gov.uk/id/local-authority/38,Oxfordshire County Council,COMM DRAWDOWN FUNDNG,22/11/2023,8102,Payments to main contractor,2201172138,-790.21,VolkerHighways
http://statistics.data.gov.uk/id/local-authority/38,Oxfordshire County Council,Funded Nursing Care  - Over 65,10/11/2023,5692,,3111548687,-784.68,CARE UK COMMUNITY PARTNERSHIPS LIMI
http://statistics.data.gov.uk/id/local-authority/38,Oxfordshire County Council,Care Homes - Over 65 Memory & Cognition,10/11/2023,5686,,3111547858,-741.82,Orders of St John
http://statistics.data.gov.uk/id/local-authority/38,Oxfordshire County Council,Funded Nursing Care  - Over 65,10/11/2023,5692,,3111550300,-690.52,Barchester Healthcare Homes Ltd
http://statistics.data.gov.uk/id/local-authority/38,Oxfordshire County Council,Support at Home 65+ Physical Support,10/11/2023,5686,,3111547937,-680.57,Orders of St John
http://statistics.data.gov.uk/id/local-authority/38,Oxfordshire County Council,Support at Home 65+ Physical Support,07/11/2023,5689,,3111544307,-663.13,AVR (Oxon) Ltd
http://statistics.data.gov.uk/id/local-authority/38,Oxfordshire County Council,Funded Nursing Care  - Over 65,10/11/2023,5692,,3111549864,-659.13,Lincroft Meadow
http://statistics.data.gov.uk/id/local-authority/38,Oxfordshire County Council,Care Homes - Over 65 Physical Sypport,10/11/2023,5687,,3111548338,-655.06,Orders of St John
http://statistics.data.gov.uk/id/local-authority/38,Oxfordshire County Council,Support at Home U65 Learning Disability,10/11/2023,5690,,3111547327,-636.35,Style Acre
http://statistics.data.gov.uk/id/local-authority/38,Oxfordshire County Council,Funded Nursing Care  - Over 65,10/11/2023,5692,,3111548384,-627.74,Bondcare (Henley) Ltd
http://statistics.data.gov.uk/id/local-authority/38,Oxfordshire County Council,Funded Nursing Care  - Over 65,10/11/2023,5692,,3111548915,-627.74,Cherwood House Care Centre
http://statistics.data.gov.uk/id/local-authority/38,Oxfordshire County Council,COMM DRAWDOWN FUNDNG,14/11/2023,8004,Design Consultant,2201169598,-626.24,Milestone Infrastructure Limited
http://statistics.data.gov.uk/id/local-authority/38,Oxfordshire County Council,NURSERY ED FUND,02/11/2023,5537,Payments to Other Establishments,3111533937,-619.96,Karen Hynds
http://statistics.data.gov.uk/id/local-authority/38,Oxfordshire County Council,Support at Home 65+ Physical Support,07/11/2023,5699,,3111545787,-619.57,Xperience Recruitment Ltd
http://statistics.data.gov.uk/id/local-authority/38,Oxfordshire County Council,Support at Home 65+ Physical Support,07/11/2023,5699,,3111545159,-618.09,Direct Link Care Ltd
http://statistics.data.gov.uk/id/local-authority/38,Oxfordshire County Council,SEN Inclusion Fund,02/11/2023,5537,Payments to Other Establishments,3111541803,-616,Cumnor Pre-School Nurser
http://statistics.data.gov.uk/id/local-authority/38,Oxfordshire County Council,SEN Inclusion Fund,03/11/2023,5537,Payments to Other Establishments,3111542693,-616,The Manor Preparatory Sc
http://statistics.data.gov.uk/id/local-authority/38,Oxfordshire County Council,COMM DRAWDOWN FUNDNG,14/11/2023,8102,Payments to main contractor,2201169191,-612.22,Milestone Infrastructure Limited
http://statistics.data.gov.uk/id/local-authority/38,Oxfordshire County Council,CHC Fast Track - Care Homes - Over 65,10/11/2023,5687,,3111550056,-600,Newland House
http://statistics.data.gov.uk/id/local-authority/38,Oxfordshire County Council,Funded Nursing Care  - Over 65,10/11/2023,5692,,3111547768,-596.36,Abbey Crest Nursing Home
http://statistics.data.gov.uk/id/local-authority/38,Oxfordshire County Council,Funded Nursing Care  - Over 65,10/11/2023,5692,,3111550342,-596.36,Barchester Healthcare Homes Ltd
http://statistics.data.gov.uk/id/local-authority/38,Oxfordshire County Council,CONTRACEPTION,03/11/2023,4933,,3111543070,-572,Long Furlong Medical Centre
http://statistics.data.gov.uk/id/local-authority/38,Oxfordshire County Council,Funded Nursing Care  - Over 65,10/11/2023,5692,,3111550307,-564.97,Barchester Healthcare Homes Ltd
http://statistics.data.gov.uk/id/local-authority/38,Oxfordshire County Council,Funded Nursing Care  - Over 65,10/11/2023,5692,,3111548775,-564.97,WT UK Opco 4 Ltd C/O Care UK
http://statistics.data.gov.uk/id/local-authority/38,Oxfordshire County Council,MAINSTREAM-SECONDARY,29/11/2023,4322,"Season Tickets - Bus, Rail & Ferry",3111559919,-552,Oxford Bus Company Ltd
http://statistics.data.gov.uk/id/local-authority/38,Oxfordshire County Council,NURSERY ED FUND,02/11/2023,5537,Payments to Other Establishments,3111537344,-549.6,Child First (Banbury)
http://statistics.data.gov.uk/id/local-authority/38,Oxfordshire County Council,SEN Inclusion Fund,03/11/2023,5537,Payments to Other Establishments,3111542746,-539,Bainton Road Nursery
http://statistics.data.gov.uk/id/local-authority/38,Oxfordshire County Council,SEN Inclusion Fund,03/11/2023,5537,Payments to Other Establishments,3111542718,-539,Bloxham Pre-School
http://statistics.data.gov.uk/id/local-authority/38,Oxfordshire County Council,SEN Inclusion Fund,03/11/2023,5537,Payments to Other Establishments,3111542751,-539,Buckland Primary School
http://statistics.data.gov.uk/id/local-authority/38,Oxfordshire County Council,SEN Inclusion Fund,03/11/2023,5537,Payments to Other Establishments,3111542752,-539,Buckland Primary School
http://statistics.data.gov.uk/id/local-authority/38,Oxfordshire County Council,SEN Inclusion Fund,03/11/2023,5537,Payments to Other Establishments,3111542699,-539,Burford Pre-School
http://statistics.data.gov.uk/id/local-authority/38,Oxfordshire County Council,SEN Inclusion Fund,03/11/2023,5537,Payments to Other Establishments,3111542703,-539,Camel Pre-School (PFSU)
http://statistics.data.gov.uk/id/local-authority/38,Oxfordshire County Council,SEN Inclusion Fund,03/11/2023,5537,Payments to Other Establishments,3111542707,-539,Camel Pre-School (PFSU)
http://statistics.data.gov.uk/id/local-authority/38,Oxfordshire County Council,SEN Inclusion Fund,03/11/2023,5537,Payments to Other Establishments,3111542709,-539,Camel Pre-School (PFSU)
http://statistics.data.gov.uk/id/local-authority/38,Oxfordshire County Council,SEN Inclusion Fund,03/11/2023,5537,Payments to Other Establishments,3111542723,-539,Clanfield Pre-School
http://statistics.data.gov.uk/id/local-authority/38,Oxfordshire County Council,SEN Inclusion Fund,03/11/2023,5537,Payments to Other Establishments,3111542716,-539,Cogges Under 5s Associa
http://statistics.data.gov.uk/id/local-authority/38,Oxfordshire County Council,SEN Inclusion Fund,03/11/2023,5537,Payments to Other Establishments,3111542702,-539,Cumnor Pre-School Nurser
http://statistics.data.gov.uk/id/local-authority/38,Oxfordshire County Council,SEN Inclusion Fund,03/11/2023,5537,Payments to Other Establishments,3111542724,-539,"Cutteslowe Primary, Cherwell School"
http://statistics.data.gov.uk/id/local-authority/38,Oxfordshire County Council,SEN Inclusion Fund,03/11/2023,5537,Payments to Other Establishments,3111542738,-539,"Cutteslowe Primary, Cherwell School"
http://statistics.data.gov.uk/id/local-authority/38,Oxfordshire County Council,SEN Inclusion Fund,03/11/2023,5537,Payments to Other Establishments,3111542684,-539,Dalton Pre-School Nurser
http://statistics.data.gov.uk/id/local-authority/38,Oxfordshire County Council,SEN Inclusion Fund,03/11/2023,5537,Payments to Other Establishments,3111542714,-539,Dalton Pre-School Nurser
http://statistics.data.gov.uk/id/local-authority/38,Oxfordshire County Council,SEN Inclusion Fund,03/11/2023,5537,Payments to Other Establishments,3111542692,-539,Deddington (PFSU)
http://statistics.data.gov.uk/id/local-authority/38,Oxfordshire County Council,SEN Inclusion Fund,03/11/2023,5537,Payments to Other Establishments,3111542758,-539,Didcot Primary Academy
http://statistics.data.gov.uk/id/local-authority/38,Oxfordshire County Council,SEN Inclusion Fund,03/11/2023,5537,Payments to Other Establishments,3111542688,-539,Early Days Nursery Schoo
http://statistics.data.gov.uk/id/local-authority/38,Oxfordshire County Council,SEN Inclusion Fund,03/11/2023,5537,Payments to Other Establishments,3111542741,-539,Eynsham Community
http://statistics.data.gov.uk/id/local-authority/38,Oxfordshire County Council,SEN Inclusion Fund,03/11/2023,5537,Payments to Other Establishments,3111542743,-539,Eynsham Community
http://statistics.data.gov.uk/id/local-authority/38,Oxfordshire County Council,SEN Inclusion Fund,03/11/2023,5537,Payments to Other Establishments,3111542744,-539,Eynsham Community
http://statistics.data.gov.uk/id/local-authority/38,Oxfordshire County Council,SEN Inclusion Fund,03/11/2023,5537,Payments to Other Establishments,3111542747,-539,Eynsham Community
http://statistics.data.gov.uk/id/local-authority/38,Oxfordshire County Council,SEN Inclusion Fund,03/11/2023,5537,Payments to Other Establishments,3111542755,-539,Eynsham Community
http://statistics.data.gov.uk/id/local-authority/38,Oxfordshire County Council,SEN Inclusion Fund,03/11/2023,5537,Payments to Other Establishments,3111542721,-539,Filkins Nursery School
http://statistics.data.gov.uk/id/local-authority/38,Oxfordshire County Council,SEN Inclusion Fund,03/11/2023,5537,Payments to Other Establishments,3111542704,-539,Hanborough Pre-School
http://statistics.data.gov.uk/id/local-authority/38,Oxfordshire County Council,SEN Inclusion Fund,03/11/2023,5537,Payments to Other Establishments,3111542706,-539,Hanborough Pre-School
http://statistics.data.gov.uk/id/local-authority/38,Oxfordshire County Council,SEN Inclusion Fund,03/11/2023,5537,Payments to Other Establishments,3111542736,-539,Harpsden Pre-School Playgroup
http://statistics.data.gov.uk/id/local-authority/38,Oxfordshire County Council,SEN Inclusion Fund,03/11/2023,5537,Payments to Other Establishments,3111542775,-539,Hill View Primary School
http://statistics.data.gov.uk/id/local-authority/38,Oxfordshire County Council,SEN Inclusion Fund,03/11/2023,5537,Payments to Other Establishments,3111542717,-539,Horspath Pre-School Nursery
http://statistics.data.gov.uk/id/local-authority/38,Oxfordshire County Council,SEN Inclusion Fund,03/11/2023,5537,Payments to Other Establishments,3111542701,-539,Jack & Jill Playgroup
http://statistics.data.gov.uk/id/local-authority/38,Oxfordshire County Council,SEN Inclusion Fund,03/11/2023,5537,Payments to Other Establishments,3111542705,-539,Jack & Jill Playgroup
http://statistics.data.gov.uk/id/local-authority/38,Oxfordshire County Council,SEN Inclusion Fund,03/11/2023,5537,Payments to Other Establishments,3111542719,-539,Jack & Jill Playgroup
http://statistics.data.gov.uk/id/local-authority/38,Oxfordshire County Council,SEN Inclusion Fund,03/11/2023,5537,Payments to Other Establishments,3111542680,-539,Kiddies Korner
http://statistics.data.gov.uk/id/local-authority/38,Oxfordshire County Council,SEN Inclusion Fund,03/11/2023,5537,Payments to Other Establishments,3111542697,-539,Kiddies Korner
http://statistics.data.gov.uk/id/local-authority/38,Oxfordshire County Council,SEN Inclusion Fund,03/11/2023,5537,Payments to Other Establishments,3111542708,-539,Kirtlington Pre-School (PFSU)
http://statistics.data.gov.uk/id/local-authority/38,Oxfordshire County Council,SEN Inclusion Fund,03/11/2023,5537,Payments to Other Establishments,3111542730,-539,Little Bears Pre-School (PFSU)
http://statistics.data.gov.uk/id/local-authority/38,Oxfordshire County Council,SEN Inclusion Fund,03/11/2023,5537,Payments to Other Establishments,3111542733,-539,Little Dots Daycare
http://statistics.data.gov.uk/id/local-authority/38,Oxfordshire County Council,SEN Inclusion Fund,03/11/2023,5537,Payments to Other Establishments,3111542734,-539,Little Dots Daycare
http://statistics.data.gov.uk/id/local-authority/38,Oxfordshire County Council,SEN Inclusion Fund,03/11/2023,5537,Payments to Other Establishments,3111542760,-539,Longford Park Primary School
http://statistics.data.gov.uk/id/local-authority/38,Oxfordshire County Council,SEN Inclusion Fund,03/11/2023,5537,Payments to Other Establishments,3111542691,-539,Marcham Playgroup
http://statistics.data.gov.uk/id/local-authority/38,Oxfordshire County Council,SEN Inclusion Fund,03/11/2023,5537,Payments to Other Establishments,3111542757,-539,Millbrook Primary School
http://statistics.data.gov.uk/id/local-authority/38,Oxfordshire County Council,SEN Inclusion Fund,03/11/2023,5537,Payments to Other Establishments,3111542683,-539,New Trinity Pre-School
http://statistics.data.gov.uk/id/local-authority/38,Oxfordshire County Council,SEN Inclusion Fund,03/11/2023,5537,Payments to Other Establishments,3111542686,-539,Peachcroft Pre-School
http://statistics.data.gov.uk/id/local-authority/38,Oxfordshire County Council,SEN Inclusion Fund,03/11/2023,5537,Payments to Other Establishments,3111542689,-539,Rainbow Corner Day Nurse
http://statistics.data.gov.uk/id/local-authority/38,Oxfordshire County Council,SEN Inclusion Fund,03/11/2023,5537,Payments to Other Establishments,3111542694,-539,Rainbow Corner Day Nurse
http://statistics.data.gov.uk/id/local-authority/38,Oxfordshire County Council,SEN Inclusion Fund,03/11/2023,5537,Payments to Other Establishments,3111542720,-539,Rainbows Day Nursery
http://statistics.data.gov.uk/id/local-authority/38,Oxfordshire County Council,SEN Inclusion Fund,03/11/2023,5537,Payments to Other Establishments,3111542715,-539,Sonning Common Pre-School
http://statistics.data.gov.uk/id/local-authority/38,Oxfordshire County Council,SEN Inclusion Fund,03/11/2023,5537,Payments to Other Establishments,3111542739,-539,South Moreton Pre-School
http://statistics.data.gov.uk/id/local-authority/38,Oxfordshire County Council,SEN Inclusion Fund,03/11/2023,5537,Payments to Other Establishments,3111542748,-539,Southwold Primary School Academy
http://statistics.data.gov.uk/id/local-authority/38,Oxfordshire County Council,SEN Inclusion Fund,03/11/2023,5537,Payments to Other Establishments,3111542740,-539,St Christophers Primary School -
http://statistics.data.gov.uk/id/local-authority/38,Oxfordshire County Council,SEN Inclusion Fund,03/11/2023,5537,Payments to Other Establishments,3111542742,-539,St Christophers Primary School -
http://statistics.data.gov.uk/id/local-authority/38,Oxfordshire County Council,SEN Inclusion Fund,03/11/2023,5537,Payments to Other Establishments,3111542759,-539,St Christophers Primary School -
http://statistics.data.gov.uk/id/local-authority/38,Oxfordshire County Council,SEN Inclusion Fund,03/11/2023,5537,Payments to Other Establishments,3111542700,-539,St Nicolas Pre-School and Playgroup
http://statistics.data.gov.uk/id/local-authority/38,Oxfordshire County Council,SEN Inclusion Fund,03/11/2023,5537,Payments to Other Establishments,3111542711,-539,St Nicolas Pre-School and Playgroup
http://statistics.data.gov.uk/id/local-authority/38,Oxfordshire County Council,SEN Inclusion Fund,03/11/2023,5537,Payments to Other Establishments,3111542682,-539,Wantage Preschool
http://statistics.data.gov.uk/id/local-authority/38,Oxfordshire County Council,SEN Inclusion Fund,03/11/2023,5537,Payments to Other Establishments,3111542749,-539,William Morris Primary School
http://statistics.data.gov.uk/id/local-authority/38,Oxfordshire County Council,SEN Inclusion Fund,03/11/2023,5537,Payments to Other Establishments,3111542725,-539,Willowcroft Community School
http://statistics.data.gov.uk/id/local-authority/38,Oxfordshire County Council,SEN Inclusion Fund,03/11/2023,5537,Payments to Other Establishments,3111542726,-539,Willowcroft Community School
http://statistics.data.gov.uk/id/local-authority/38,Oxfordshire County Council,Support at Home 65+ Physical Support,07/11/2023,5696,,3111544675,-537.78,All Care GB Ltd
http://statistics.data.gov.uk/id/local-authority/38,Oxfordshire County Council,Funded Nursing Care  - Over 65,10/11/2023,5692,,3111550302,-533.58,Barchester Healthcare Homes Ltd
http://statistics.data.gov.uk/id/local-authority/38,Oxfordshire County Council,NURSERY ED FUND,02/11/2023,5537,Payments to Other Establishments,3111534785,-527.62,Cygnet Nursery
http://statistics.data.gov.uk/id/local-authority/38,Oxfordshire County Council,Funded Nursing Care  - Over 65,10/11/2023,5692,,3111550925,-516.25,SANCTUARY CARE LTD
http://statistics.data.gov.uk/id/local-authority/38,Oxfordshire County Council,Funded Nursing Care  - Over 65,10/11/2023,5692,,3111548456,-502.19,Bridge House
http://statistics.data.gov.uk/id/local-authority/38,Oxfordshire County Council,Funded Nursing Care  - Over 65,10/11/2023,5692,,3111550857,-502.19,Wardington House Nursing Home
http://statistics.data.gov.uk/id/local-authority/38,Oxfordshire County Council,SEN Inclusion Fund,02/11/2023,5537,Payments to Other Establishments,3111541663,-500.5,Harriers Banbury Academy
http://statistics.data.gov.uk/id/local-authority/38,Oxfordshire County Council,SEN Inclusion Fund,03/11/2023,5537,Payments to Other Establishments,3111542685,-500.5,The Manor Preparatory Sc
http://statistics.data.gov.uk/id/local-authority/38,Oxfordshire County Council,SEN Inclusion Fund,03/11/2023,5537,Payments to Other Establishments,3111542687,-500.5,The Manor Preparatory Sc
http://statistics.data.gov.uk/id/local-authority/38,Oxfordshire County Council,SEN Inclusion Fund,03/11/2023,5537,Payments to Other Establishments,3111542690,-500.5,The Manor Preparatory Sc
http://statistics.data.gov.uk/id/local-authority/38,Oxfordshire County Council,SEN Inclusion Fund,03/11/2023,5537,Payments to Other Establishments,3111542695,-500.5,The Manor Preparatory Sc
http://statistics.data.gov.uk/id/local-authority/38,Oxfordshire County Council,SEN Inclusion Fund,03/11/2023,5537,Payments to Other Establishments,3111542781,-500.5,The Pod at St Frideswide CE School
http://statistics.data.gov.uk/id/local-authority/38,Oxfordshire County Council,SEN Inclusion Fund,03/11/2023,5537,Payments to Other Establishments,3111542728,-500.5,The Sunshine Centre
http://statistics.data.gov.uk/id/local-authority/38,Oxfordshire County Council,SEN Inclusion Fund,03/11/2023,5537,Payments to Other Establishments,3111542732,-500.5,The Sunshine Centre
http://statistics.data.gov.uk/id/local-authority/38,Oxfordshire County Council,SEN Inclusion Fund,03/11/2023,5537,Payments to Other Establishments,3111542737,-500.5,The Sunshine Centre
http://statistics.data.gov.uk/id/local-authority/38,Oxfordshire County Council,CAP CHRGES-PRIM SCHS,15/11/2023,8102,Payments to main contractor,2201170173,500,Amity Insulation Services Limited
http://statistics.data.gov.uk/id/local-authority/38,Oxfordshire County Council,CAP CHRGES-PRIM SCHS,15/11/2023,8102,Payments to main contractor,2201170174,500,Amity Insulation Services Limited
http://statistics.data.gov.uk/id/local-authority/38,Oxfordshire County Council,CHC Fast Track - Care Homes - Over 65,10/11/2023,5687,,3111548843,500,Chacombe Park Care Home
http://statistics.data.gov.uk/id/local-authority/38,Oxfordshire County Council,WIDER TOBACCO CONTRL,06/11/2023,5195,Grant Aid and Donations,2201165911,500,CITIZENS ADVICE WEST NORTHAMPTONSHI
http://statistics.data.gov.uk/id/local-authority/38,Oxfordshire County Council,GOVERNANCE,24/11/2023,5380,"Author, Speaker and Lecturer Fees",2201173584,500,Clever Cats Education Services
http://statistics.data.gov.uk/id/local-authority/38,Oxfordshire County Council,Support at Home 65+ Physical Support,06/11/2023,5227,Other Transport Arrangements,3111543110,500,Faringdon Cars
http://statistics.data.gov.uk/id/local-authority/38,Oxfordshire County Council,Oxfordshire Adoption Support Fund,01/11/2023,4861,Hired and Contracted Services,2201164281,500,Heads & Hearts Ltd
http://statistics.data.gov.uk/id/local-authority/38,Oxfordshire County Council,Reading Adoption Support Fund,10/11/2023,4861,Hired and Contracted Services,2201168088,500,Holistic Health Ltd
http://statistics.data.gov.uk/id/local-authority/38,Oxfordshire County Council,FOSTER CARE RECRUIT,20/11/2023,4940,Other Services,2201171363,500,JC Decaux
http://statistics.data.gov.uk/id/local-authority/38,Oxfordshire County Council,CHC Fast Track - Care Homes - Over 65,10/11/2023,5687,,3111549862,500,Lincroft Meadow
http://statistics.data.gov.uk/id/local-authority/38,Oxfordshire County Council,Pause Programme,27/11/2023,3103,Other Training Courses and Qualification,2201173895,500,MEET in Oxford
http://statistics.data.gov.uk/id/local-authority/38,Oxfordshire County Council,Music Service - ACE funded,03/11/2023,5186,Licences,3111542916,500,OCC One Time Vendor
http://statistics.data.gov.uk/id/local-authority/38,Oxfordshire County Council,Business Rates and Insurance Payout,03/11/2023,5055,Insurance Costs,3111542959,500,OCC One Time Vendor
http://statistics.data.gov.uk/id/local-authority/38,Oxfordshire County Council,PROPERTY LEGAL,08/11/2023,5251,Legal Costs,3111546392,500,OCC One Time Vendor
http://statistics.data.gov.uk/id/local-authority/38,Oxfordshire County Council,Business Rates and Insurance Payout,13/11/2023,5055,Insurance Costs,3111551930,500,OCC One Time Vendor
http://statistics.data.gov.uk/id/local-authority/38,Oxfordshire County Council,Business Rates and Insurance Payout,13/11/2023,5055,Insurance Costs,3111551932,500,OCC One Time Vendor
http://statistics.data.gov.uk/id/local-authority/38,Oxfordshire County Council,Business Rates and Insurance Payout,20/11/2023,5055,Insurance Costs,3111554910,500,OCC One Time Vendor
http://statistics.data.gov.uk/id/local-authority/38,Oxfordshire County Council,Business Rates and Insurance Payout,20/11/2023,5055,Insurance Costs,3111554915,500,OCC One Time Vendor
http://statistics.data.gov.uk/id/local-authority/38,Oxfordshire County Council,SCHOOLS H&S,29/11/2023,3105,Training related expenditure,2201174743,500,OCCUPATIONAL SAFETY & HEALTH
http://statistics.data.gov.uk/id/local-authority/38,Oxfordshire County Council,SKILLS & LEARNING,10/11/2023,4940,Other Services,2201168300,500,Oxfordshire LEP Ltd
http://statistics.data.gov.uk/id/local-authority/38,Oxfordshire County Council,L&D CORE PROGRAMME,03/11/2023,3103,Other Training Courses and Qualification,2201165776,500,Premier Partnership
http://statistics.data.gov.uk/id/local-authority/38,Oxfordshire County Council,LEGAL BUDGET,09/11/2023,5251,Legal Costs,2201167892,500,Rowberry Morris Thames Valley LLP
http://statistics.data.gov.uk/id/local-authority/38,Oxfordshire County Council,SEN Alternative Provision,10/11/2023,4861,Hired and Contracted Services,3111547055,500,THE DARE2DREAM FOUNDATION
http://statistics.data.gov.uk/id/local-authority/38,Oxfordshire County Council,SEN Alternative Provision,10/11/2023,4861,Hired and Contracted Services,3111547066,500,THE DARE2DREAM FOUNDATION
http://statistics.data.gov.uk/id/local-authority/38,Oxfordshire County Council,RESPITE,17/11/2023,4330,Transport to School Activities,3111554126,500,The Oxfordshire Taxi Company Ltd T/
http://statistics.data.gov.uk/id/local-authority/38,Oxfordshire County Council,SEN TRANSPORT,21/11/2023,5227,Other Transport Arrangements,3111557027,500,The Oxfordshire Taxi Company Ltd T/
http://statistics.data.gov.uk/id/local-authority/38,Oxfordshire County Council,SEN Inclusion Fund,02/11/2023,5537,Payments to Other Establishments,3111541790,500.5,Bloxham Pre-School
http://statistics.data.gov.uk/id/local-authority/38,Oxfordshire County Council,SEN Inclusion Fund,02/11/2023,5537,Payments to Other Establishments,3111542032,500.5,Burford Primary School (Academy)
http://statistics.data.gov.uk/id/local-authority/38,Oxfordshire County Council,SEN Inclusion Fund,02/11/2023,5537,Payments to Other Establishments,3111541958,500.5,Hanwell Field School - Academy
http://statistics.data.gov.uk/id/local-authority/38,Oxfordshire County Council,SEN Inclusion Fund,02/11/2023,5537,Payments to Other Establishments,3111541763,500.5,St Nicolas Pre-School and Playgroup
http://statistics.data.gov.uk/id/local-authority/38,Oxfordshire County Council,SEN Inclusion Fund,02/11/2023,5537,Payments to Other Establishments,3111541765,500.5,St Nicolas Pre-School and Playgroup
http://statistics.data.gov.uk/id/local-authority/38,Oxfordshire County Council,SEN Inclusion Fund,02/11/2023,5537,Payments to Other Establishments,3111541766,500.5,St Nicolas Pre-School and Playgroup
http://statistics.data.gov.uk/id/local-authority/38,Oxfordshire County Council,SEN Inclusion Fund,02/11/2023,5537,Payments to Other Establishments,3111541787,500.5,St Nicolas Pre-School and Playgroup
http://statistics.data.gov.uk/id/local-authority/38,Oxfordshire County Council,SEN Inclusion Fund,02/11/2023,5537,Payments to Other Establishments,3111541788,500.5,St Nicolas Pre-School and Playgroup
http://statistics.data.gov.uk/id/local-authority/38,Oxfordshire County Council,SEN Inclusion Fund,02/11/2023,5537,Payments to Other Establishments,3111541789,500.5,St Nicolas Pre-School and Playgroup
http://statistics.data.gov.uk/id/local-authority/38,Oxfordshire County Council,SEN Inclusion Fund,02/11/2023,5537,Payments to Other Establishments,3111541888,500.5,St Thomas Day Nursery
http://statistics.data.gov.uk/id/local-authority/38,Oxfordshire County Council,SEN Inclusion Fund,02/11/2023,5537,Payments to Other Establishments,3111542023,500.5,Standlake CE Primary School
http://statistics.data.gov.uk/id/local-authority/38,Oxfordshire County Council,SEN Inclusion Fund,02/11/2023,5537,Payments to Other Establishments,3111541758,500.5,Steeple Aston Pre-School
http://statistics.data.gov.uk/id/local-authority/38,Oxfordshire County Council,SEN Inclusion Fund,02/11/2023,5537,Payments to Other Establishments,3111541806,500.5,Stonesfield Pre-School
http://statistics.data.gov.uk/id/local-authority/38,Oxfordshire County Council,SEN Inclusion Fund,02/11/2023,5537,Payments to Other Establishments,3111541810,500.5,The Cottage Nursery
http://statistics.data.gov.uk/id/local-authority/38,Oxfordshire County Council,SEN Inclusion Fund,02/11/2023,5537,Payments to Other Establishments,3111541895,500.5,The Lighthouse Nursery
http://statistics.data.gov.uk/id/local-authority/38,Oxfordshire County Council,SEN Inclusion Fund,02/11/2023,5537,Payments to Other Establishments,3111541664,500.5,The Manor Preparatory Sc
http://statistics.data.gov.uk/id/local-authority/38,Oxfordshire County Council,SEN Inclusion Fund,02/11/2023,5537,Payments to Other Establishments,3111541666,500.5,The Manor Preparatory Sc
http://statistics.data.gov.uk/id/local-authority/38,Oxfordshire County Council,SEN Inclusion Fund,02/11/2023,5537,Payments to Other Establishments,3111541668,500.5,The Manor Preparatory Sc
http://statistics.data.gov.uk/id/local-authority/38,Oxfordshire County Council,SEN Inclusion Fund,02/11/2023,5537,Payments to Other Establishments,3111541670,500.5,The Manor Preparatory Sc
http://statistics.data.gov.uk/id/local-authority/38,Oxfordshire County Council,SEN Inclusion Fund,02/11/2023,5537,Payments to Other Establishments,3111541673,500.5,The Manor Preparatory Sc
http://statistics.data.gov.uk/id/local-authority/38,Oxfordshire County Council,SEN Inclusion Fund,02/11/2023,5537,Payments to Other Establishments,3111541677,500.5,The Manor Preparatory Sc
http://statistics.data.gov.uk/id/local-authority/38,Oxfordshire County Council,SEN Inclusion Fund,02/11/2023,5537,Payments to Other Establishments,3111541679,500.5,The Manor Preparatory Sc
http://statistics.data.gov.uk/id/local-authority/38,Oxfordshire County Council,SEN Inclusion Fund,02/11/2023,5537,Payments to Other Establishments,3111541680,500.5,The Manor Preparatory Sc
http://statistics.data.gov.uk/id/local-authority/38,Oxfordshire County Council,SEN Inclusion Fund,02/11/2023,5537,Payments to Other Establishments,3111541681,500.5,The Manor Preparatory Sc
http://statistics.data.gov.uk/id/local-authority/38,Oxfordshire County Council,SEN Inclusion Fund,02/11/2023,5537,Payments to Other Establishments,3111541909,500.5,The Old Station Nursery
http://statistics.data.gov.uk/id/local-authority/38,Oxfordshire County Council,SEN Inclusion Fund,02/11/2023,5537,Payments to Other Establishments,3111541915,500.5,The Old Station Nursery
http://statistics.data.gov.uk/id/local-authority/38,Oxfordshire County Council,SEN Inclusion Fund,02/11/2023,5537,Payments to Other Establishments,3111541920,500.5,The Old Station Nursery
http://statistics.data.gov.uk/id/local-authority/38,Oxfordshire County Council,SEN Inclusion Fund,02/11/2023,5537,Payments to Other Establishments,3111541939,500.5,The Old Station Nursery
http://statistics.data.gov.uk/id/local-authority/38,Oxfordshire County Council,SEN Inclusion Fund,02/11/2023,5537,Payments to Other Establishments,3111541940,500.5,The Old Station Nursery
http://statistics.data.gov.uk/id/local-authority/38,Oxfordshire County Council,SEN Inclusion Fund,02/11/2023,5537,Payments to Other Establishments,3111542129,500.5,The Pod at St Frideswide CE School
http://statistics.data.gov.uk/id/local-authority/38,Oxfordshire County Council,SEN Inclusion Fund,02/11/2023,5537,Payments to Other Establishments,3111542142,500.5,The Pod at St Frideswide CE School
http://statistics.data.gov.uk/id/local-authority/38,Oxfordshire County Council,SEN Inclusion Fund,02/11/2023,5537,Payments to Other Establishments,3111542143,500.5,The Pod at St Frideswide CE School
http://statistics.data.gov.uk/id/local-authority/38,Oxfordshire County Council,SEN Inclusion Fund,02/11/2023,5537,Payments to Other Establishments,3111542144,500.5,The Pod at St Frideswide CE School
http://statistics.data.gov.uk/id/local-authority/38,Oxfordshire County Council,SEN Inclusion Fund,02/11/2023,5537,Payments to Other Establishments,3111542145,500.5,The Pod at St Frideswide CE School
http://statistics.data.gov.uk/id/local-authority/38,Oxfordshire County Council,SEN Inclusion Fund,02/11/2023,5537,Payments to Other Establishments,3111542146,500.5,The Pod at St Frideswide CE School
http://statistics.data.gov.uk/id/local-authority/38,Oxfordshire County Council,SEN Inclusion Fund,02/11/2023,5537,Payments to Other Establishments,3111542152,500.5,The Pod at St Frideswide CE School
http://statistics.data.gov.uk/id/local-authority/38,Oxfordshire County Council,SEN Inclusion Fund,02/11/2023,5537,Payments to Other Establishments,3111542153,500.5,The Pod at St Frideswide CE School
http://statistics.data.gov.uk/id/local-authority/38,Oxfordshire County Council,SEN Inclusion Fund,02/11/2023,5537,Payments to Other Establishments,3111542155,500.5,The Pod at St Frideswide CE School
http://statistics.data.gov.uk/id/local-authority/38,Oxfordshire County Council,SEN Inclusion Fund,02/11/2023,5537,Payments to Other Establishments,3111542156,500.5,The Pod at St Frideswide CE School
http://statistics.data.gov.uk/id/local-authority/38,Oxfordshire County Council,SEN Inclusion Fund,02/11/2023,5537,Payments to Other Establishments,3111541926,500.5,The Sunshine Centre
http://statistics.data.gov.uk/id/local-authority/38,Oxfordshire County Council,SEN Inclusion Fund,02/11/2023,5537,Payments to Other Establishments,3111541929,500.5,The Sunshine Centre
http://statistics.data.gov.uk/id/local-authority/38,Oxfordshire County Council,SEN Inclusion Fund,02/11/2023,5537,Payments to Other Establishments,3111541933,500.5,The Sunshine Centre
http://statistics.data.gov.uk/id/local-authority/38,Oxfordshire County Council,SEN Inclusion Fund,02/11/2023,5537,Payments to Other Establishments,3111541934,500.5,The Sunshine Centre
http://statistics.data.gov.uk/id/local-authority/38,Oxfordshire County Council,SEN Inclusion Fund,02/11/2023,5537,Payments to Other Establishments,3111541936,500.5,The Sunshine Centre
http://statistics.data.gov.uk/id/local-authority/38,Oxfordshire County Council,SEN Inclusion Fund,02/11/2023,5537,Payments to Other Establishments,3111541937,500.5,The Sunshine Centre
http://statistics.data.gov.uk/id/local-authority/38,Oxfordshire County Council,SEN Inclusion Fund,02/11/2023,5537,Payments to Other Establishments,3111541938,500.5,The Sunshine Centre
http://statistics.data.gov.uk/id/local-authority/38,Oxfordshire County Council,SEN Inclusion Fund,02/11/2023,5537,Payments to Other Establishments,3111542024,500.5,The Treehouse Thame Limited
http://statistics.data.gov.uk/id/local-authority/38,Oxfordshire County Council,SEN Inclusion Fund,02/11/2023,5537,Payments to Other Establishments,3111542034,500.5,The Treehouse Thame Limited
http://statistics.data.gov.uk/id/local-authority/38,Oxfordshire County Council,SEN Inclusion Fund,02/11/2023,5537,Payments to Other Establishments,3111541826,500.5,Tiddlywinks Pre-School
http://statistics.data.gov.uk/id/local-authority/38,Oxfordshire County Council,SEN Inclusion Fund,02/11/2023,5537,Payments to Other Establishments,3111541828,500.5,Tiddlywinks Pre-School
http://statistics.data.gov.uk/id/local-authority/38,Oxfordshire County Council,SEN Inclusion Fund,02/11/2023,5537,Payments to Other Establishments,3111541833,500.5,Tiddlywinks Pre-School
http://statistics.data.gov.uk/id/local-authority/38,Oxfordshire County Council,SEN Inclusion Fund,02/11/2023,5537,Payments to Other Establishments,3111541840,500.5,Tiddlywinks Pre-School
http://statistics.data.gov.uk/id/local-authority/38,Oxfordshire County Council,SEN Inclusion Fund,02/11/2023,5537,Payments to Other Establishments,3111541734,500.5,Wantage Preschool
http://statistics.data.gov.uk/id/local-authority/38,Oxfordshire County Council,SEN Inclusion Fund,02/11/2023,5537,Payments to Other Establishments,3111542042,500.5,William Morris Primary School
http://statistics.data.gov.uk/id/local-authority/38,Oxfordshire County Council,SEN Inclusion Fund,02/11/2023,5537,Payments to Other Establishments,3111542044,500.5,William Morris Primary School
http://statistics.data.gov.uk/id/local-authority/38,Oxfordshire County Council,SEN Inclusion Fund,02/11/2023,5537,Payments to Other Establishments,3111542046,500.5,William Morris Primary School
http://statistics.data.gov.uk/id/local-authority/38,Oxfordshire County Council,LIBRARY COLLECTIONS,23/11/2023,4539,"Books, DVDs and CDs",3111557386,501.35,ASKEWS & HOLTS LIBRARY SERVICES LTD
http://statistics.data.gov.uk/id/local-authority/38,Oxfordshire County Council,LANDLORD & TENANT,30/11/2023,4001,Uniform Business Rates,3500101463,502,West Oxfordshire District Council
http://statistics.data.gov.uk/id/local-authority/38,Oxfordshire County Council,LANDLORD & TENANT,30/11/2023,4001,Uniform Business Rates,3500101467,502,West Oxfordshire District Council
http://statistics.data.gov.uk/id/local-authority/38,Oxfordshire County Council,UASC 16&17,21/11/2023,5365,Non-Staff Subsistence and Expenses,9300061955,503.2,OCC SS Oxford City Div 1 Cash
http://statistics.data.gov.uk/id/local-authority/38,Oxfordshire County Council,Support at Home U65 Learning Disability,22/11/2023,5697,,3111557169,504,CaringPlus Healthcare Services Ltd
http://statistics.data.gov.uk/id/local-authority/38,Oxfordshire County Council,Support at Home U65 Learning Disability,22/11/2023,5697,,3111557173,504,CaringPlus Healthcare Services Ltd
http://statistics.data.gov.uk/id/local-authority/38,Oxfordshire County Council,Support at Home U65 Physical Support,21/11/2023,5899,Social Care - Direct Payments,3111555182,504,Redacted Personal Data
http://statistics.data.gov.uk/id/local-authority/38,Oxfordshire County Council,Support at Home U65 Learning Disability,10/11/2023,5690,,3111547365,504,Style Acre
http://statistics.data.gov.uk/id/local-authority/38,Oxfordshire County Council,Support at Home U65 Learning Disability,10/11/2023,5690,,3111547431,504,Style Acre
http://statistics.data.gov.uk/id/local-authority/38,Oxfordshire County Council,Support at Home U65 Learning Disability,10/11/2023,5690,,3111547257,504,Turnstyle
http://statistics.data.gov.uk/id/local-authority/38,Oxfordshire County Council,Support at Home 65+ Mental Health,07/11/2023,5696,,3111544878,504.85,Radis Community Care
http://statistics.data.gov.uk/id/local-authority/38,Oxfordshire County Council,Support at Home U65 Learning Disability,21/11/2023,5899,Social Care - Direct Payments,3111556630,505.36,Purple Conversation Com In Co (DP)
http://statistics.data.gov.uk/id/local-authority/38,Oxfordshire County Council,LEGAL BUDGET,09/11/2023,5251,Legal Costs,2201167840,505.95,Derek Edward Perkins
http://statistics.data.gov.uk/id/local-authority/38,Oxfordshire County Council,UASC 16&17,07/11/2023,5365,Non-Staff Subsistence and Expenses,9300061782,506,OCC SS Oxford City Div 1 Cash
http://statistics.data.gov.uk/id/local-authority/38,Oxfordshire County Council,LIBRARY COLLECTIONS,02/11/2023,4539,"Books, DVDs and CDs",3111542232,506.45,ASKEWS & HOLTS LIBRARY SERVICES LTD
http://statistics.data.gov.uk/id/local-authority/38,Oxfordshire County Council,Children in Care Non-staffing - South,07/11/2023,5553,B*Skill Fees,9300061781,508,OCC SS Oxford City Div 1 Cash
http://statistics.data.gov.uk/id/local-authority/38,Oxfordshire County Council,SENSS TRAINING,23/11/2023,3100,Educational and Vocational Training,2201173102,508,TEAM-TEACH LTD
http://statistics.data.gov.uk/id/local-authority/38,Oxfordshire County Council,Support at Home U65 Learning Disability,10/11/2023,5690,,3111547483,508.11,The Brandon Trust
http://statistics.data.gov.uk/id/local-authority/38,Oxfordshire County Council,Support at Home 65+ Physical Support,07/11/2023,5699,,3111544075,508.2,BBC CARE SERVICE LIMITED
http://statistics.data.gov.uk/id/local-authority/38,Oxfordshire County Council,Support at Home 65+ Physical Support,07/11/2023,5699,,3111544652,508.2,CaringPlus Healthcare Services Ltd
http://statistics.data.gov.uk/id/local-authority/38,Oxfordshire County Council,Support at Home 65+ Physical Support,07/11/2023,5699,,3111545020,508.2,Clarissa�s Home Healthcare Services
http://statistics.data.gov.uk/id/local-authority/38,Oxfordshire County Council,Support at Home 65+ Physical Support,07/11/2023,5699,,3111545667,508.2,SureCare Oxfordshire
http://statistics.data.gov.uk/id/local-authority/38,Oxfordshire County Council,TRO Costs and Income,16/11/2023,4790,"Publicity, Promotions and Advertisement",2201170445,508.97,PEOPLESCOUT LIMITED
http://statistics.data.gov.uk/id/local-authority/38,Oxfordshire County Council,Support at Home U65 Physical Support,21/11/2023,5899,Social Care - Direct Payments,3111556846,509.12,Purple Conversation Com In Co (DP)
http://statistics.data.gov.uk/id/local-authority/38,Oxfordshire County Council,OPERATIONS,16/11/2023,4685,Clothing and Uniforms,2201170644,509.5,Northern Diver International Limite
http://statistics.data.gov.uk/id/local-authority/38,Oxfordshire County Council,Catering Management Soft FM,05/11/2023,4665,Catering,2201165889,509.84,Whitco Catering & Bakery Equipment
http://statistics.data.gov.uk/id/local-authority/38,Oxfordshire County Council,Support at Home 65+ Physical Support,07/11/2023,5689,,3111544280,509.99,Prestige Nursing Ltd
http://statistics.data.gov.uk/id/local-authority/38,Oxfordshire County Council,NHS HEALTHCHECK PROG,03/11/2023,4933,,3111542633,510,27 Beaumont Street
http://statistics.data.gov.uk/id/local-authority/38,Oxfordshire County Council,Support at Home U65 Learning Disability,14/11/2023,5227,Other Transport Arrangements,3111553226,510,Abingdon Taxis FKN Autotaxis
http://statistics.data.gov.uk/id/local-authority/38,Oxfordshire County Council,Afghanistan settler holding hotel fund,17/11/2023,3942,Hire of Accommodation and Facilities,2201170810,510,COTSWOLD WILDLIFE PARK
http://statistics.data.gov.uk/id/local-authority/38,Oxfordshire County Council,ON ST PARK OXFD P&D,24/11/2023,4861,Hired and Contracted Services,2201173816,510,Flowbird Smart City
http://statistics.data.gov.uk/id/local-authority/38,Oxfordshire County Council,DISABILITIES TEAM-N,02/11/2023,5227,Other Transport Arrangements,3111533860,510,OX TAXIS LTD
http://statistics.data.gov.uk/id/local-authority/38,Oxfordshire County Council,Support at Home U65 Learning Disability,10/11/2023,5690,,3111547225,510.32,MacIntyre Care (Womaston)
http://statistics.data.gov.uk/id/local-authority/38,Oxfordshire County Council,Support at Home U65 Learning Disability,07/11/2023,5682,,3111543508,510.41,The Brandon Trust
http://statistics.data.gov.uk/id/local-authority/38,Oxfordshire County Council,Support at Home U65 Physical Support,07/11/2023,5699,,3111543707,510.48,Acquire Care Ltd
http://statistics.data.gov.uk/id/local-authority/38,Oxfordshire County Council,LEGAL BUDGET,09/11/2023,5251,Legal Costs,2201168055,510.6,Derek Edward Perkins
http://statistics.data.gov.uk/id/local-authority/38,Oxfordshire County Council,LIBRARY COLLECTIONS,23/11/2023,4539,"Books, DVDs and CDs",3111557390,510.82,ASKEWS & HOLTS LIBRARY SERVICES LTD
http://statistics.data.gov.uk/id/local-authority/38,Oxfordshire County Council,Support at Home 65+ Physical Support,07/11/2023,5689,,3111544203,510.9,Oxfordshire Crossroads
http://statistics.data.gov.uk/id/local-authority/38,Oxfordshire County Council,LANDLORD & TENANT,30/11/2023,4001,Uniform Business Rates,3500101485,511,South Oxfordshire District Council
http://statistics.data.gov.uk/id/local-authority/38,Oxfordshire County Council,Support at Home 65+ Physical Support,10/11/2023,5690,,3111547337,511.07,ADVANCE HOUSING & SUPPORT LTD
http://statistics.data.gov.uk/id/local-authority/38,Oxfordshire County Council,Support at Home 65+ Learning Disability,10/11/2023,5690,,3111547469,511.07,Style Acre
http://statistics.data.gov.uk/id/local-authority/38,Oxfordshire County Council,Support at Home U65 Learning Disability,21/11/2023,5899,Social Care - Direct Payments,3111556464,511.96,Purple Conversation Com In Co (DP)
http://statistics.data.gov.uk/id/local-authority/38,Oxfordshire County Council,Support at Home 65+ Other /Soc Isolation,24/11/2023,5693,,3111557620,512,Redacted Personal Data
http://statistics.data.gov.uk/id/local-authority/38,Oxfordshire County Council,Support at Home U65 Learning Disability,24/11/2023,5227,Other Transport Arrangements,3111557677,512,LINK SHIRES LTD
http://statistics.data.gov.uk/id/local-authority/38,Oxfordshire County Council,Supervised Consumption APL,01/11/2023,4934,,3111543263,512.48,Jericho Pharma Ltd
http://statistics.data.gov.uk/id/local-authority/38,Oxfordshire County Council,Support at Home U65 Physical Support,07/11/2023,5689,,3111543362,512.96,Acquire Care Ltd
http://statistics.data.gov.uk/id/local-authority/38,Oxfordshire County Council,Support at Home 65+ Physical Support,21/11/2023,5899,Social Care - Direct Payments,3111556883,513.2,Purple Conversation Com In Co (DP)
http://statistics.data.gov.uk/id/local-authority/38,Oxfordshire County Council,Support at Home 65+ Physical Support,14/11/2023,5696,,3111552003,513.33,Orders of St John Care Trust
http://statistics.data.gov.uk/id/local-authority/38,Oxfordshire County Council,Support at Home U65 Learning Disability,10/11/2023,5690,,3111547200,513.86,The Laurels (Witney)
http://statistics.data.gov.uk/id/local-authority/38,Oxfordshire County Council,Voice of Customer,01/11/2023,4861,Hired and Contracted Services,2201164289,514,Judith Miller
http://statistics.data.gov.uk/id/local-authority/38,Oxfordshire County Council,Support at Home 65+ Physical Support,10/11/2023,5693,,3111547021,514.53,TOPKARE LIMITED
http://statistics.data.gov.uk/id/local-authority/38,Oxfordshire County Council,Support at Home 65+ Physical Support,07/11/2023,5689,,3111543782,514.57,Golden Services Care Ltd
http://statistics.data.gov.uk/id/local-authority/38,Oxfordshire County Council,Supported Internships for YP with SEND,07/11/2023,5537,Payments to Other Establishments,3111543335,514.85,Activate Learning
http://statistics.data.gov.uk/id/local-authority/38,Oxfordshire County Council,Support at Home U65 Learning Disability,07/11/2023,5689,,3111544251,515.03,Pechiv Ltd
http://statistics.data.gov.uk/id/local-authority/38,Oxfordshire County Council,Support at Home 65+ Physical Support,07/11/2023,5699,,3111543857,515.06,All Care GB Ltd
http://statistics.data.gov.uk/id/local-authority/38,Oxfordshire County Council,Support at Home 65+ Memory & Cognition,07/11/2023,5699,,3111544348,515.06,Care Outlook Ltd
http://statistics.data.gov.uk/id/local-authority/38,Oxfordshire County Council,Support at Home U65 Learning Disability,10/11/2023,5690,,3111547446,515.14,Style Acre
http://statistics.data.gov.uk/id/local-authority/38,Oxfordshire County Council,Support at Home U65 MH OBC Contract,14/11/2023,5696,,3111552051,515.74,Orders of St John Care Trust
http://statistics.data.gov.uk/id/local-authority/38,Oxfordshire County Council,EDUCATION MANAGEMENT,28/11/2023,4835,Management Consultant Fees,3111558829,516.2,OCC One Time Vendor
http://statistics.data.gov.uk/id/local-authority/38,Oxfordshire County Council,Support at Home U65 Mental Health,14/11/2023,5696,,3111552043,516.65,Orders of St John Care Trust
http://statistics.data.gov.uk/id/local-authority/38,Oxfordshire County Council,Support at Home U65 Learning Disability,21/11/2023,5899,Social Care - Direct Payments,3111556835,517.48,Purple Conversation Com In Co (DP)
http://statistics.data.gov.uk/id/local-authority/38,Oxfordshire County Council,Support at Home U65 Learning Disability,07/11/2023,5682,,3111543468,517.66,The Brandon Trust
http://statistics.data.gov.uk/id/local-authority/38,Oxfordshire County Council,Support at Home U65 Learning Disability,07/11/2023,5682,,3111543536,517.66,The Brandon Trust
http://statistics.data.gov.uk/id/local-authority/38,Oxfordshire County Council,LOOKED AFTER CITY 1,20/11/2023,5227,Other Transport Arrangements,9300061937,518,OCC SS Oxford City Div 1 Cash
http://statistics.data.gov.uk/id/local-authority/38,Oxfordshire County Council,Support at Home U65 Learning Disability,21/11/2023,5227,Other Transport Arrangements,3111556996,519.92,The Oxfordshire Taxi Company Ltd T/
http://statistics.data.gov.uk/id/local-authority/38,Oxfordshire County Council,Support at Home 65+ Memory & Cognition,21/11/2023,5899,Social Care - Direct Payments,3111556925,519.96,Purple Conversation Com In Co (DP)
http://statistics.data.gov.uk/id/local-authority/38,Oxfordshire County Council,COMM DRAWDOWN FUNDNG,02/11/2023,8510,Other expenses,2201164918,520,Intelligent Data (Collection) Ltd
http://statistics.data.gov.uk/id/local-authority/38,Oxfordshire County Council,COMM DRAWDOWN FUNDNG,22/11/2023,8510,Other expenses,2201172099,520,Intelligent Data (Collection) Ltd
http://statistics.data.gov.uk/id/local-authority/38,Oxfordshire County Council,SEN TRANSPORT,21/11/2023,5227,Other Transport Arrangements,3111554930,520,OXO Hire Ltd
http://statistics.data.gov.uk/id/local-authority/38,Oxfordshire County Council,SEN Alternative Provision,24/11/2023,4861,Hired and Contracted Services,3111557703,520,Teaching Personnel Ltd
http://statistics.data.gov.uk/id/local-authority/38,Oxfordshire County Council,SEN Alternative Provision,30/11/2023,4861,Hired and Contracted Services,3111560294,520,Teaching Personnel Ltd
http://statistics.data.gov.uk/id/local-authority/38,Oxfordshire County Council,ECH Central Costs,10/11/2023,5696,,3111547205,520.29,BPHA Limited
http://statistics.data.gov.uk/id/local-authority/38,Oxfordshire County Council,Support at Home 65+ Physical Support,07/11/2023,5696,,3111544474,521.31,All Care GB Ltd
http://statistics.data.gov.uk/id/local-authority/38,Oxfordshire County Council,Support at Home U65 Physical Support,07/11/2023,5696,,3111544540,521.31,All Care GB Ltd
http://statistics.data.gov.uk/id/local-authority/38,Oxfordshire County Council,Community Support Service Banbury,24/11/2023,2040,Agency Staff,2201173790,521.7,Completely Care Ltd
http://statistics.data.gov.uk/id/local-authority/38,Oxfordshire County Council,Support at Home 65+ Subsantance Abuse,07/11/2023,5699,,3111543805,521.93,Adult Transition Services Ltd (ATrS
http://statistics.data.gov.uk/id/local-authority/38,Oxfordshire County Council,Support at Home 65+ Physical Support,07/11/2023,5699,,3111545339,521.93,Greigcare Home Service
http://statistics.data.gov.uk/id/local-authority/38,Oxfordshire County Council,PROCUREMENT,02/11/2023,4495,IT Software,2201165046,522,C Track UK
http://statistics.data.gov.uk/id/local-authority/38,Oxfordshire County Council,TRANSPORT COSTS,21/11/2023,4330,Transport to School Activities,3111554957,522,STREAMLINE PEPPARD TAXIS LTD
http://statistics.data.gov.uk/id/local-authority/38,Oxfordshire County Council,NURSERY ED FUND,02/11/2023,5537,Payments to Other Establishments,3111538978,522.48,Millbrook Primary School
http://statistics.data.gov.uk/id/local-authority/38,Oxfordshire County Council,Support at Home 65+ Physical Support,07/11/2023,5699,,3111545489,522.85,Oxford Private Care
http://statistics.data.gov.uk/id/local-authority/38,Oxfordshire County Council,Support at Home U65 Learning Disability,10/11/2023,5690,,3111547312,522.86,Style Acre
http://statistics.data.gov.uk/id/local-authority/38,Oxfordshire County Council,Support at Home 65+ Sensory Support,21/11/2023,5899,Social Care - Direct Payments,3111556868,523.08,Purple Conversation Com In Co (DP)
http://statistics.data.gov.uk/id/local-authority/38,Oxfordshire County Council,Support at Home U65 Learning Disability,21/11/2023,5899,Social Care - Direct Payments,3111556696,523.56,Purple Conversation Com In Co (DP)
http://statistics.data.gov.uk/id/local-authority/38,Oxfordshire County Council,CONTRACT MANAGEMENT,30/11/2023,4001,Uniform Business Rates,3500101362,524,Cherwell District Council
http://statistics.data.gov.uk/id/local-authority/38,Oxfordshire County Council,Support at Home U65 Physical Support,07/11/2023,5698,,3111544146,524.64,Oxford Private Care
http://statistics.data.gov.uk/id/local-authority/38,Oxfordshire County Council,SEN TRANSPORT,08/11/2023,4330,Transport to School Activities,3111546417,525,ACE CARS BANBURY LTD
http://statistics.data.gov.uk/id/local-authority/38,Oxfordshire County Council,Oxfordshire Adoption Support Fund,23/11/2023,4861,Hired and Contracted Services,2201173059,525,Creative Therapy Options
http://statistics.data.gov.uk/id/local-authority/38,Oxfordshire County Council,Staff Travel Benefits,06/11/2023,4341,B*Staff Self Drive Vehicle Hire,2201166487,525,Cyclescheme Ltd
http://statistics.data.gov.uk/id/local-authority/38,Oxfordshire County Council,FAM GRP CONFERENCES,21/11/2023,4940,Other Services,2201172074,525.3,Angela Reynolds
http://statistics.data.gov.uk/id/local-authority/38,Oxfordshire County Council,Support at Home U65 Learning Disability,21/11/2023,5899,Social Care - Direct Payments,3111555680,525.4,Redacted Personal Data
http://statistics.data.gov.uk/id/local-authority/38,Oxfordshire County Council,Reactive Maintenance,03/11/2023,3787,Premises Repairs,2201165620,525.96,WB Power Services Ltd
http://statistics.data.gov.uk/id/local-authority/38,Oxfordshire County Council,Support at Home 65+ Physical Support,07/11/2023,5696,,3111544884,526.8,Radis Community Care
http://statistics.data.gov.uk/id/local-authority/38,Oxfordshire County Council,FAM GRP CONFERENCES,13/11/2023,4940,Other Services,2201168997,526.98,Sarah A Hart
http://statistics.data.gov.uk/id/local-authority/38,Oxfordshire County Council,LIBRARY COLLECTIONS,21/11/2023,4539,"Books, DVDs and CDs",2201171902,527.2,Bibliotheca Ltd
http://statistics.data.gov.uk/id/local-authority/38,Oxfordshire County Council,Support at Home 65+ Physical Support,21/11/2023,5899,Social Care - Direct Payments,3111556693,527.56,Purple Conversation Com In Co (DP)
http://statistics.data.gov.uk/id/local-authority/38,Oxfordshire County Council,SEN TRANSPORT,02/11/2023,4330,Transport to School Activities,3111533884,528,Daci Chauffeurs
http://statistics.data.gov.uk/id/local-authority/38,Oxfordshire County Council,Family Solutions Plus Non-staff - Centra,10/11/2023,4940,Other Services,2201168386,528,Early Days Nursery Schoo
http://statistics.data.gov.uk/id/local-authority/38,Oxfordshire County Council,Support at Home U65 Learning Disability,10/11/2023,5690,,3111547300,528.54,Style Acre
http://statistics.data.gov.uk/id/local-authority/38,Oxfordshire County Council,Reactive Maintenance,29/11/2023,3787,Premises Repairs,2201174623,528.58,Aspect Contracts Limited
http://statistics.data.gov.uk/id/local-authority/38,Oxfordshire County Council,FOSTERING MAIN,16/11/2023,4940,Other Services,2201170512,529,LITTLE GIANTS NURSERY (CARTERTON) L
http://statistics.data.gov.uk/id/local-authority/38,Oxfordshire County Council,Support at Home U65 Memory & Cognition,21/11/2023,5899,Social Care - Direct Payments,3111556809,529,Purple Conversation Com In Co (DP)
http://statistics.data.gov.uk/id/local-authority/38,Oxfordshire County Council,Support at Home U65 Mental Health,08/11/2023,5693,,3111546352,529.12,Henley Care Ltd
http://statistics.data.gov.uk/id/local-authority/38,Oxfordshire County Council,Support at Home U65 Mental Health,08/11/2023,5693,,3111546354,529.12,Henley Care Ltd
http://statistics.data.gov.uk/id/local-authority/38,Oxfordshire County Council,UASC 16&17,10/11/2023,5665,B*Fostering Project Care Fee,9300061840,529.56,OCC SS Oxford City Div 1 Cash
http://statistics.data.gov.uk/id/local-authority/38,Oxfordshire County Council,Support at Home U65 HFA,10/11/2023,5690,,3111547354,529.71,Autism at Kingwood Limited
http://statistics.data.gov.uk/id/local-authority/38,Oxfordshire County Council,Oxford City Team,27/11/2023,5526,Payments to Private Contractors,2201174158,530,Coast Care Homes Ltd
http://statistics.data.gov.uk/id/local-authority/38,Oxfordshire County Council,Family Solutions Plus Non-staff - Centra,28/11/2023,5394,Other Expenses,2201174487,530,Flourish Family Centre LTD
http://statistics.data.gov.uk/id/local-authority/38,Oxfordshire County Council,UASC 16&17,02/11/2023,4685,Clothing and Uniforms,9300061752,530,OCC SS Oxford City Div 1 Cash
http://statistics.data.gov.uk/id/local-authority/38,Oxfordshire County Council,OPERATIONS,09/11/2023,4719,Photocopying,2201167969,530.3,XMA Limited - Toner Orders Only
http://statistics.data.gov.uk/id/local-authority/38,Oxfordshire County Council,Support at Home U65 Other /Soc Isolation,21/11/2023,5899,Social Care - Direct Payments,3111556906,531.28,Purple Conversation Com In Co (DP)
http://statistics.data.gov.uk/id/local-authority/38,Oxfordshire County Council,Support at Home U65 Learning Disability,21/11/2023,5899,Social Care - Direct Payments,3111555013,531.48,Redacted Personal Data
http://statistics.data.gov.uk/id/local-authority/38,Oxfordshire County Council,Support at Home U65 Physical Support,21/11/2023,5899,Social Care - Direct Payments,3111556492,531.52,Purple Conversation Com In Co (DP)
http://statistics.data.gov.uk/id/local-authority/38,Oxfordshire County Council,POST18 UASC DCSF FND,29/11/2023,5604,,3111559661,531.96,A2dominion
http://statistics.data.gov.uk/id/local-authority/38,Oxfordshire County Council,,16/11/2023,1448,Blackfield Inc & Exp A/c,3111553914,532.05,OCC One Time Vendor
http://statistics.data.gov.uk/id/local-authority/38,Oxfordshire County Council,Community Support Service - Abingdon,01/11/2023,2040,Agency Staff,2201164598,532.8,Completely Care Ltd
http://statistics.data.gov.uk/id/local-authority/38,Oxfordshire County Council,Community Support Service Banbury,09/11/2023,2040,Agency Staff,2201167976,532.8,Completely Care Ltd
http://statistics.data.gov.uk/id/local-authority/38,Oxfordshire County Council,LEGAL BUDGET,14/11/2023,5251,Legal Costs,2201169613,533,DNA WORLDWIDE GROUP
http://statistics.data.gov.uk/id/local-authority/38,Oxfordshire County Council,LEGAL BUDGET,14/11/2023,5251,Legal Costs,2201169616,533,DNA WORLDWIDE GROUP
http://statistics.data.gov.uk/id/local-authority/38,Oxfordshire County Council,NURSERY ED FUND,02/11/2023,5537,Payments to Other Establishments,3111535474,534.45,Bishopswood Day Nursery
http://statistics.data.gov.uk/id/local-authority/38,Oxfordshire County Council,NURSERY ED FUND,02/11/2023,5537,Payments to Other Establishments,3111535455,534.45,Bloxham Pre-School
http://statistics.data.gov.uk/id/local-authority/38,Oxfordshire County Council,NURSERY ED FUND,02/11/2023,5537,Payments to Other Establishments,3111535494,534.45,Combe Pre-school
http://statistics.data.gov.uk/id/local-authority/38,Oxfordshire County Council,NURSERY ED FUND,02/11/2023,5537,Payments to Other Establishments,3111536580,534.45,EWELME PRE SCHOOL
http://statistics.data.gov.uk/id/local-authority/38,Oxfordshire County Council,NURSERY ED FUND,02/11/2023,5537,Payments to Other Establishments,3111535756,534.45,Stonesfield Pre-School
http://statistics.data.gov.uk/id/local-authority/38,Oxfordshire County Council,NURSERY ED FUND,02/11/2023,5537,Payments to Other Establishments,3111535758,534.45,Stonesfield Pre-School
http://statistics.data.gov.uk/id/local-authority/38,Oxfordshire County Council,NURSERY ED FUND,02/11/2023,5537,Payments to Other Establishments,3111535759,534.45,Stonesfield Pre-School
http://statistics.data.gov.uk/id/local-authority/38,Oxfordshire County Council,NURSERY ED FUND,02/11/2023,5537,Payments to Other Establishments,3111535761,534.45,Stonesfield Pre-School
http://statistics.data.gov.uk/id/local-authority/38,Oxfordshire County Council,NURSERY ED FUND,02/11/2023,5537,Payments to Other Establishments,3111535936,534.45,Treetops Nursery
http://statistics.data.gov.uk/id/local-authority/38,Oxfordshire County Council,NURSERY ED FUND,02/11/2023,5537,Payments to Other Establishments,3111535268,534.52,Great Tew Pre-School
http://statistics.data.gov.uk/id/local-authority/38,Oxfordshire County Council,NURSERY ED FUND,02/11/2023,5537,Payments to Other Establishments,3111537227,534.52,SKIPS
http://statistics.data.gov.uk/id/local-authority/38,Oxfordshire County Council,HOUSING & IMMIGRATION & SOUTHWARK S17,16/11/2023,5365,Non-Staff Subsistence and Expenses,9300061909,535.6,OCC SS Vale of White Horse Cash
http://statistics.data.gov.uk/id/local-authority/38,Oxfordshire County Council,Support at Home U65 Physical Support,07/11/2023,5699,,3111545418,535.66,Mega Resources Ltd
http://statistics.data.gov.uk/id/local-authority/38,Oxfordshire County Council,Support at Home U65 Physical Support,07/11/2023,5699,,3111545729,535.67,Trinity Carers Services Ltd
http://statistics.data.gov.uk/id/local-authority/38,Oxfordshire County Council,Support at Home U65 Other /Soc Isolation,10/11/2023,5690,,3111547404,535.71,Headway Oxford
http://statistics.data.gov.uk/id/local-authority/38,Oxfordshire County Council,Business Rates and Insurance Payout,30/11/2023,4001,Uniform Business Rates,3500101508,537,South Oxfordshire District Council
http://statistics.data.gov.uk/id/local-authority/38,Oxfordshire County Council,Support at Home U65 MH OBC Contract,21/11/2023,5899,Social Care - Direct Payments,3111554987,537.56,Redacted Personal Data
http://statistics.data.gov.uk/id/local-authority/38,Oxfordshire County Council,Support at Home 65+ Physical Support,10/11/2023,5693,,3111547022,538.22,SylvianCare Ltd
http://statistics.data.gov.uk/id/local-authority/38,Oxfordshire County Council,Support at Home 65+ Learning Disability,14/11/2023,5696,,3111552016,538.34,Orders of St John Care Trust
http://statistics.data.gov.uk/id/local-authority/38,Oxfordshire County Council,Support at Home U65 Physical Support,14/11/2023,5696,,3111552025,538.34,Orders of St John Care Trust
http://statistics.data.gov.uk/id/local-authority/38,Oxfordshire County Council,Community Support Service Bicester,17/11/2023,2040,Agency Staff,2201170729,538.35,Completely Care Ltd
http://statistics.data.gov.uk/id/local-authority/38,Oxfordshire County Council,Support at Home U65 Mental Health,07/11/2023,5699,,3111545647,538.41,Same Ways Care Ltd
http://statistics.data.gov.uk/id/local-authority/38,Oxfordshire County Council,SEN Inclusion Fund,02/11/2023,5537,Payments to Other Establishments,3111541703,539,Annabelles Nursery
http://statistics.data.gov.uk/id/local-authority/38,Oxfordshire County Council,SEN Inclusion Fund,02/11/2023,5537,Payments to Other Establishments,3111541724,539,Annabelles Nursery
http://statistics.data.gov.uk/id/local-authority/38,Oxfordshire County Council,SEN Inclusion Fund,02/11/2023,5537,Payments to Other Establishments,3111541728,539,Annabelles Nursery
http://statistics.data.gov.uk/id/local-authority/38,Oxfordshire County Council,SEN Inclusion Fund,02/11/2023,5537,Payments to Other Establishments,3111541730,539,Annabelles Nursery
http://statistics.data.gov.uk/id/local-authority/38,Oxfordshire County Council,SEN Inclusion Fund,02/11/2023,5537,Payments to Other Establishments,3111541731,539,Annabelles Nursery
http://statistics.data.gov.uk/id/local-authority/38,Oxfordshire County Council,SEN Inclusion Fund,02/11/2023,5537,Payments to Other Establishments,3111541869,539,Ascott-under-Wychwood Pre-School
http://statistics.data.gov.uk/id/local-authority/38,Oxfordshire County Council,SEN Inclusion Fund,02/11/2023,5537,Payments to Other Establishments,3111541871,539,Ascott-under-Wychwood Pre-School
http://statistics.data.gov.uk/id/local-authority/38,Oxfordshire County Council,SEN Inclusion Fund,02/11/2023,5537,Payments to Other Establishments,3111542051,539,Bainton Road Nursery
http://statistics.data.gov.uk/id/local-authority/38,Oxfordshire County Council,SEN Inclusion Fund,02/11/2023,5537,Payments to Other Establishments,3111542107,539,Benson C of E Primary School
http://statistics.data.gov.uk/id/local-authority/38,Oxfordshire County Council,SEN Inclusion Fund,02/11/2023,5537,Payments to Other Establishments,3111541906,539,Berinsfield Early Years Pre-School
http://statistics.data.gov.uk/id/local-authority/38,Oxfordshire County Council,SEN Inclusion Fund,02/11/2023,5537,Payments to Other Establishments,3111541907,539,Berinsfield Early Years Pre-School
http://statistics.data.gov.uk/id/local-authority/38,Oxfordshire County Council,SEN Inclusion Fund,02/11/2023,5537,Payments to Other Establishments,3111541910,539,Berinsfield Early Years Pre-School
http://statistics.data.gov.uk/id/local-authority/38,Oxfordshire County Council,SEN Inclusion Fund,02/11/2023,5537,Payments to Other Establishments,3111541921,539,Berinsfield Early Years Pre-School
http://statistics.data.gov.uk/id/local-authority/38,Oxfordshire County Council,SEN Inclusion Fund,02/11/2023,5537,Payments to Other Establishments,3111541782,539,Bloxham Pre-School
http://statistics.data.gov.uk/id/local-authority/38,Oxfordshire County Council,SEN Inclusion Fund,02/11/2023,5537,Payments to Other Establishments,3111541783,539,Bloxham Pre-School
http://statistics.data.gov.uk/id/local-authority/38,Oxfordshire County Council,SEN Inclusion Fund,02/11/2023,5537,Payments to Other Establishments,3111541784,539,Bloxham Pre-School
http://statistics.data.gov.uk/id/local-authority/38,Oxfordshire County Council,SEN Inclusion Fund,02/11/2023,5537,Payments to Other Establishments,3111541798,539,Bloxham Pre-School
http://statistics.data.gov.uk/id/local-authority/38,Oxfordshire County Council,SEN Inclusion Fund,02/11/2023,5537,Payments to Other Establishments,3111541799,539,Bloxham Pre-School
http://statistics.data.gov.uk/id/local-authority/38,Oxfordshire County Council,SEN Inclusion Fund,02/11/2023,5537,Payments to Other Establishments,3111541800,539,Bloxham Pre-School
http://statistics.data.gov.uk/id/local-authority/38,Oxfordshire County Council,SEN Inclusion Fund,02/11/2023,5537,Payments to Other Establishments,3111541801,539,Bloxham Pre-School
http://statistics.data.gov.uk/id/local-authority/38,Oxfordshire County Council,SEN Inclusion Fund,02/11/2023,5537,Payments to Other Establishments,3111541858,539,Bramley Nursery Busy Bees
http://statistics.data.gov.uk/id/local-authority/38,Oxfordshire County Council,SEN Inclusion Fund,02/11/2023,5537,Payments to Other Establishments,3111541761,539,Brize Norton Village Pre
http://statistics.data.gov.uk/id/local-authority/38,Oxfordshire County Council,SEN Inclusion Fund,02/11/2023,5537,Payments to Other Establishments,3111541736,539,Broadhill Pre-School
http://statistics.data.gov.uk/id/local-authority/38,Oxfordshire County Council,SEN Inclusion Fund,02/11/2023,5537,Payments to Other Establishments,3111541899,539,Bubbles Pre School
http://statistics.data.gov.uk/id/local-authority/38,Oxfordshire County Council,SEN Inclusion Fund,02/11/2023,5537,Payments to Other Establishments,3111542031,539,Buckland Primary School
http://statistics.data.gov.uk/id/local-authority/38,Oxfordshire County Council,SEN Inclusion Fund,02/11/2023,5537,Payments to Other Establishments,3111542033,539,Buckland Primary School
http://statistics.data.gov.uk/id/local-authority/38,Oxfordshire County Council,SEN Inclusion Fund,02/11/2023,5537,Payments to Other Establishments,3111541719,539,Burford Pre-School
http://statistics.data.gov.uk/id/local-authority/38,Oxfordshire County Council,SEN Inclusion Fund,02/11/2023,5537,Payments to Other Establishments,3111541720,539,Burford Pre-School
http://statistics.data.gov.uk/id/local-authority/38,Oxfordshire County Council,SEN Inclusion Fund,02/11/2023,5537,Payments to Other Establishments,3111541721,539,Burford Pre-School
http://statistics.data.gov.uk/id/local-authority/38,Oxfordshire County Council,SEN Inclusion Fund,02/11/2023,5537,Payments to Other Establishments,3111541662,539,Busy Bees Playgroup (Thame)
http://statistics.data.gov.uk/id/local-authority/38,Oxfordshire County Council,SEN Inclusion Fund,02/11/2023,5537,Payments to Other Establishments,3111541823,539,Camel Pre-School (PFSU)
http://statistics.data.gov.uk/id/local-authority/38,Oxfordshire County Council,SEN Inclusion Fund,02/11/2023,5537,Payments to Other Establishments,3111541827,539,Camel Pre-School (PFSU)
http://statistics.data.gov.uk/id/local-authority/38,Oxfordshire County Council,SEN Inclusion Fund,02/11/2023,5537,Payments to Other Establishments,3111541831,539,Camel Pre-School (PFSU)
http://statistics.data.gov.uk/id/local-authority/38,Oxfordshire County Council,SEN Inclusion Fund,02/11/2023,5537,Payments to Other Establishments,3111541834,539,Camel Pre-School (PFSU)
http://statistics.data.gov.uk/id/local-authority/38,Oxfordshire County Council,SEN Inclusion Fund,02/11/2023,5537,Payments to Other Establishments,3111542050,539,Chalgrove Community Primary School
http://statistics.data.gov.uk/id/local-authority/38,Oxfordshire County Council,SEN Inclusion Fund,02/11/2023,5537,Payments to Other Establishments,3111542052,539,Chalgrove Community Primary School
http://statistics.data.gov.uk/id/local-authority/38,Oxfordshire County Council,SEN Inclusion Fund,02/11/2023,5537,Payments to Other Establishments,3111542054,539,Chalgrove Community Primary School
http://statistics.data.gov.uk/id/local-authority/38,Oxfordshire County Council,SEN Inclusion Fund,02/11/2023,5537,Payments to Other Establishments,3111541889,539,Chasewell Playgroup
http://statistics.data.gov.uk/id/local-authority/38,Oxfordshire County Council,SEN Inclusion Fund,02/11/2023,5537,Payments to Other Establishments,3111541892,539,Chasewell Playgroup
http://statistics.data.gov.uk/id/local-authority/38,Oxfordshire County Council,SEN Inclusion Fund,02/11/2023,5537,Payments to Other Establishments,3111541894,539,Chasewell Playgroup
http://statistics.data.gov.uk/id/local-authority/38,Oxfordshire County Council,SEN Inclusion Fund,02/11/2023,5537,Payments to Other Establishments,3111541897,539,Chasewell Playgroup
http://statistics.data.gov.uk/id/local-authority/38,Oxfordshire County Council,SEN Inclusion Fund,02/11/2023,5537,Payments to Other Establishments,3111541900,539,Chasewell Playgroup
http://statistics.data.gov.uk/id/local-authority/38,Oxfordshire County Council,SEN Inclusion Fund,02/11/2023,5537,Payments to Other Establishments,3111542045,539,Checkendon Pre-School CIO
http://statistics.data.gov.uk/id/local-authority/38,Oxfordshire County Council,SEN Inclusion Fund,02/11/2023,5537,Payments to Other Establishments,3111542048,539,Checkendon Pre-School CIO
http://statistics.data.gov.uk/id/local-authority/38,Oxfordshire County Council,SEN Inclusion Fund,02/11/2023,5537,Payments to Other Establishments,3111542049,539,Checkendon Pre-School CIO
http://statistics.data.gov.uk/id/local-authority/38,Oxfordshire County Council,SEN Inclusion Fund,02/11/2023,5537,Payments to Other Establishments,3111541911,539,Child First (Banbury)
http://statistics.data.gov.uk/id/local-authority/38,Oxfordshire County Council,SEN Inclusion Fund,02/11/2023,5537,Payments to Other Establishments,3111541794,539,Childrey Little Ducks Pre-School
http://statistics.data.gov.uk/id/local-authority/38,Oxfordshire County Council,SEN Inclusion Fund,02/11/2023,5537,Payments to Other Establishments,3111541795,539,Childrey Little Ducks Pre-School
http://statistics.data.gov.uk/id/local-authority/38,Oxfordshire County Council,SEN Inclusion Fund,02/11/2023,5537,Payments to Other Establishments,3111541797,539,Childrey Little Ducks Pre-School
http://statistics.data.gov.uk/id/local-authority/38,Oxfordshire County Council,SEN Inclusion Fund,02/11/2023,5537,Payments to Other Establishments,3111541722,539,Cholsey Pre-School (PFSU)
http://statistics.data.gov.uk/id/local-authority/38,Oxfordshire County Council,SEN Inclusion Fund,02/11/2023,5537,Payments to Other Establishments,3111541727,539,Cholsey Pre-School (PFSU)
http://statistics.data.gov.uk/id/local-authority/38,Oxfordshire County Council,SEN Inclusion Fund,02/11/2023,5537,Payments to Other Establishments,3111541729,539,Cholsey Pre-School (PFSU)
http://statistics.data.gov.uk/id/local-authority/38,Oxfordshire County Council,SEN Inclusion Fund,02/11/2023,5537,Payments to Other Establishments,3111541732,539,Cholsey Pre-School (PFSU)
http://statistics.data.gov.uk/id/local-authority/38,Oxfordshire County Council,SEN Inclusion Fund,02/11/2023,5537,Payments to Other Establishments,3111541733,539,Cholsey Pre-School (PFSU)
http://statistics.data.gov.uk/id/local-authority/38,Oxfordshire County Council,SEN Inclusion Fund,02/11/2023,5537,Payments to Other Establishments,3111541884,539,Clanfield Pre-School
http://statistics.data.gov.uk/id/local-authority/38,Oxfordshire County Council,SEN Inclusion Fund,02/11/2023,5537,Payments to Other Establishments,3111541908,539,Clanfield Pre-School
http://statistics.data.gov.uk/id/local-authority/38,Oxfordshire County Council,SEN Inclusion Fund,02/11/2023,5537,Payments to Other Establishments,3111541805,539,Cogges Under 5s Associa
http://statistics.data.gov.uk/id/local-authority/38,Oxfordshire County Council,SEN Inclusion Fund,02/11/2023,5537,Payments to Other Establishments,3111541811,539,Cogges Under 5s Associa
http://statistics.data.gov.uk/id/local-authority/38,Oxfordshire County Council,SEN Inclusion Fund,02/11/2023,5537,Payments to Other Establishments,3111541812,539,Cogges Under 5s Associa
http://statistics.data.gov.uk/id/local-authority/38,Oxfordshire County Council,SEN Inclusion Fund,02/11/2023,5537,Payments to Other Establishments,3111541813,539,Cogges Under 5s Associa
http://statistics.data.gov.uk/id/local-authority/38,Oxfordshire County Council,SEN Inclusion Fund,02/11/2023,5537,Payments to Other Establishments,3111541814,539,Cogges Under 5s Associa
http://statistics.data.gov.uk/id/local-authority/38,Oxfordshire County Council,SEN Inclusion Fund,02/11/2023,5537,Payments to Other Establishments,3111541815,539,Cogges Under 5s Associa
http://statistics.data.gov.uk/id/local-authority/38,Oxfordshire County Council,SEN Inclusion Fund,02/11/2023,5537,Payments to Other Establishments,3111541816,539,Cogges Under 5s Associa
http://statistics.data.gov.uk/id/local-authority/38,Oxfordshire County Council,SEN Inclusion Fund,02/11/2023,5537,Payments to Other Establishments,3111541818,539,Cogges Under 5s Associa
http://statistics.data.gov.uk/id/local-authority/38,Oxfordshire County Council,SEN Inclusion Fund,02/11/2023,5537,Payments to Other Establishments,3111541901,539,Courtyard Pre-School
http://statistics.data.gov.uk/id/local-authority/38,Oxfordshire County Council,SEN Inclusion Fund,02/11/2023,5537,Payments to Other Establishments,3111541845,539,Culham Nursery and Pre-School
http://statistics.data.gov.uk/id/local-authority/38,Oxfordshire County Council,SEN Inclusion Fund,02/11/2023,5537,Payments to Other Establishments,3111541846,539,Culham Nursery and Pre-School
http://statistics.data.gov.uk/id/local-authority/38,Oxfordshire County Council,SEN Inclusion Fund,02/11/2023,5537,Payments to Other Establishments,3111541849,539,Culham Nursery and Pre-School
http://statistics.data.gov.uk/id/local-authority/38,Oxfordshire County Council,SEN Inclusion Fund,02/11/2023,5537,Payments to Other Establishments,3111541802,539,Cumnor Pre-School Nurser
http://statistics.data.gov.uk/id/local-authority/38,Oxfordshire County Council,SEN Inclusion Fund,02/11/2023,5537,Payments to Other Establishments,3111541804,539,Cumnor Pre-School Nurser
http://statistics.data.gov.uk/id/local-authority/38,Oxfordshire County Council,SEN Inclusion Fund,02/11/2023,5537,Payments to Other Establishments,3111541809,539,Cumnor Pre-School Nurser
http://statistics.data.gov.uk/id/local-authority/38,Oxfordshire County Council,SEN Inclusion Fund,02/11/2023,5537,Payments to Other Establishments,3111541960,539,"Cutteslowe Primary, Cherwell School"
http://statistics.data.gov.uk/id/local-authority/38,Oxfordshire County Council,SEN Inclusion Fund,02/11/2023,5537,Payments to Other Establishments,3111541964,539,"Cutteslowe Primary, Cherwell School"
http://statistics.data.gov.uk/id/local-authority/38,Oxfordshire County Council,SEN Inclusion Fund,02/11/2023,5537,Payments to Other Establishments,3111541965,539,"Cutteslowe Primary, Cherwell School"
http://statistics.data.gov.uk/id/local-authority/38,Oxfordshire County Council,SEN Inclusion Fund,02/11/2023,5537,Payments to Other Establishments,3111541966,539,"Cutteslowe Primary, Cherwell School"
http://statistics.data.gov.uk/id/local-authority/38,Oxfordshire County Council,SEN Inclusion Fund,02/11/2023,5537,Payments to Other Establishments,3111541973,539,"Cutteslowe Primary, Cherwell School"
http://statistics.data.gov.uk/id/local-authority/38,Oxfordshire County Council,SEN Inclusion Fund,02/11/2023,5537,Payments to Other Establishments,3111541974,539,"Cutteslowe Primary, Cherwell School"
http://statistics.data.gov.uk/id/local-authority/38,Oxfordshire County Council,SEN Inclusion Fund,02/11/2023,5537,Payments to Other Establishments,3111541739,539,Cygnet Nursery
http://statistics.data.gov.uk/id/local-authority/38,Oxfordshire County Council,SEN Inclusion Fund,02/11/2023,5537,Payments to Other Establishments,3111541928,539,Cygnets Playschool
http://statistics.data.gov.uk/id/local-authority/38,Oxfordshire County Council,SEN Inclusion Fund,02/11/2023,5537,Payments to Other Establishments,3111541944,539,Cygnets Playschool
http://statistics.data.gov.uk/id/local-authority/38,Oxfordshire County Council,SEN Inclusion Fund,02/11/2023,5537,Payments to Other Establishments,3111541947,539,Cygnets Playschool
http://statistics.data.gov.uk/id/local-authority/38,Oxfordshire County Council,SEN Inclusion Fund,02/11/2023,5537,Payments to Other Establishments,3111541949,539,Cygnets Playschool
http://statistics.data.gov.uk/id/local-authority/38,Oxfordshire County Council,SEN Inclusion Fund,02/11/2023,5537,Payments to Other Establishments,3111541952,539,Cygnets Playschool
http://statistics.data.gov.uk/id/local-authority/38,Oxfordshire County Council,SEN Inclusion Fund,02/11/2023,5537,Payments to Other Establishments,3111541957,539,Cygnets Playschool
http://statistics.data.gov.uk/id/local-authority/38,Oxfordshire County Council,SEN Inclusion Fund,02/11/2023,5537,Payments to Other Establishments,3111541746,539,Dalton Pre-School Nurser
http://statistics.data.gov.uk/id/local-authority/38,Oxfordshire County Council,SEN Inclusion Fund,02/11/2023,5537,Payments to Other Establishments,3111541747,539,Dalton Pre-School Nurser
http://statistics.data.gov.uk/id/local-authority/38,Oxfordshire County Council,SEN Inclusion Fund,02/11/2023,5537,Payments to Other Establishments,3111541749,539,Dalton Pre-School Nurser
http://statistics.data.gov.uk/id/local-authority/38,Oxfordshire County Council,SEN Inclusion Fund,02/11/2023,5537,Payments to Other Establishments,3111541751,539,Dalton Pre-School Nurser
http://statistics.data.gov.uk/id/local-authority/38,Oxfordshire County Council,SEN Inclusion Fund,02/11/2023,5537,Payments to Other Establishments,3111541752,539,Dalton Pre-School Nurser
http://statistics.data.gov.uk/id/local-authority/38,Oxfordshire County Council,SEN Inclusion Fund,02/11/2023,5537,Payments to Other Establishments,3111541753,539,Dalton Pre-School Nurser
http://statistics.data.gov.uk/id/local-authority/38,Oxfordshire County Council,SEN Inclusion Fund,02/11/2023,5537,Payments to Other Establishments,3111541754,539,Dalton Pre-School Nurser
http://statistics.data.gov.uk/id/local-authority/38,Oxfordshire County Council,SEN Inclusion Fund,02/11/2023,5537,Payments to Other Establishments,3111541756,539,Dalton Pre-School Nurser
http://statistics.data.gov.uk/id/local-authority/38,Oxfordshire County Council,SEN Inclusion Fund,02/11/2023,5537,Payments to Other Establishments,3111541945,539,Dashwood Banbury Academy
http://statistics.data.gov.uk/id/local-authority/38,Oxfordshire County Council,SEN Inclusion Fund,02/11/2023,5537,Payments to Other Establishments,3111541948,539,Dashwood Banbury Academy
http://statistics.data.gov.uk/id/local-authority/38,Oxfordshire County Council,SEN Inclusion Fund,02/11/2023,5537,Payments to Other Establishments,3111541950,539,Dashwood Banbury Academy
http://statistics.data.gov.uk/id/local-authority/38,Oxfordshire County Council,SEN Inclusion Fund,02/11/2023,5537,Payments to Other Establishments,3111541735,539,Deddington (PFSU)
http://statistics.data.gov.uk/id/local-authority/38,Oxfordshire County Council,SEN Inclusion Fund,02/11/2023,5537,Payments to Other Establishments,3111541738,539,Deddington (PFSU)
http://statistics.data.gov.uk/id/local-authority/38,Oxfordshire County Council,SEN Inclusion Fund,02/11/2023,5537,Payments to Other Establishments,3111541925,539,Deddington Village Nursery
http://statistics.data.gov.uk/id/local-authority/38,Oxfordshire County Council,SEN Inclusion Fund,02/11/2023,5537,Payments to Other Establishments,3111542060,539,Didcot Primary Academy
http://statistics.data.gov.uk/id/local-authority/38,Oxfordshire County Council,SEN Inclusion Fund,02/11/2023,5537,Payments to Other Establishments,3111541683,539,Early Days Nursery Schoo
http://statistics.data.gov.uk/id/local-authority/38,Oxfordshire County Council,SEN Inclusion Fund,02/11/2023,5537,Payments to Other Establishments,3111541685,539,Early Days Nursery Schoo
http://statistics.data.gov.uk/id/local-authority/38,Oxfordshire County Council,SEN Inclusion Fund,02/11/2023,5537,Payments to Other Establishments,3111541686,539,Early Days Nursery Schoo
http://statistics.data.gov.uk/id/local-authority/38,Oxfordshire County Council,SEN Inclusion Fund,02/11/2023,5537,Payments to Other Establishments,3111542061,539,Edith Moorhouse Primary School
http://statistics.data.gov.uk/id/local-authority/38,Oxfordshire County Council,SEN Inclusion Fund,02/11/2023,5537,Payments to Other Establishments,3111542002,539,Eynsham Community
http://statistics.data.gov.uk/id/local-authority/38,Oxfordshire County Council,SEN Inclusion Fund,02/11/2023,5537,Payments to Other Establishments,3111542004,539,Eynsham Community
http://statistics.data.gov.uk/id/local-authority/38,Oxfordshire County Council,SEN Inclusion Fund,02/11/2023,5537,Payments to Other Establishments,3111542005,539,Eynsham Community
http://statistics.data.gov.uk/id/local-authority/38,Oxfordshire County Council,SEN Inclusion Fund,02/11/2023,5537,Payments to Other Establishments,3111542006,539,Eynsham Community
http://statistics.data.gov.uk/id/local-authority/38,Oxfordshire County Council,SEN Inclusion Fund,02/11/2023,5537,Payments to Other Establishments,3111542008,539,Eynsham Community
http://statistics.data.gov.uk/id/local-authority/38,Oxfordshire County Council,SEN Inclusion Fund,02/11/2023,5537,Payments to Other Establishments,3111542009,539,Eynsham Community
http://statistics.data.gov.uk/id/local-authority/38,Oxfordshire County Council,SEN Inclusion Fund,02/11/2023,5537,Payments to Other Establishments,3111542013,539,Eynsham Community
http://statistics.data.gov.uk/id/local-authority/38,Oxfordshire County Council,SEN Inclusion Fund,02/11/2023,5537,Payments to Other Establishments,3111542015,539,Eynsham Community
http://statistics.data.gov.uk/id/local-authority/38,Oxfordshire County Council,SEN Inclusion Fund,02/11/2023,5537,Payments to Other Establishments,3111542017,539,Eynsham Community
http://statistics.data.gov.uk/id/local-authority/38,Oxfordshire County Council,SEN Inclusion Fund,02/11/2023,5537,Payments to Other Establishments,3111542018,539,Eynsham Community
http://statistics.data.gov.uk/id/local-authority/38,Oxfordshire County Council,SEN Inclusion Fund,02/11/2023,5537,Payments to Other Establishments,3111542019,539,Eynsham Community
http://statistics.data.gov.uk/id/local-authority/38,Oxfordshire County Council,SEN Inclusion Fund,02/11/2023,5537,Payments to Other Establishments,3111541946,539,Faringdon Infant School - Adademy
http://statistics.data.gov.uk/id/local-authority/38,Oxfordshire County Council,SEN Inclusion Fund,02/11/2023,5537,Payments to Other Establishments,3111541882,539,Filkins Nursery School
http://statistics.data.gov.uk/id/local-authority/38,Oxfordshire County Council,SEN Inclusion Fund,02/11/2023,5537,Payments to Other Establishments,3111541674,539,Freeland Pre-School (PFSU)
http://statistics.data.gov.uk/id/local-authority/38,Oxfordshire County Council,SEN Inclusion Fund,02/11/2023,5537,Payments to Other Establishments,3111541676,539,Freeland Pre-School (PFSU)
http://statistics.data.gov.uk/id/local-authority/38,Oxfordshire County Council,SEN Inclusion Fund,02/11/2023,5537,Payments to Other Establishments,3111541678,539,Freeland Pre-School (PFSU)
http://statistics.data.gov.uk/id/local-authority/38,Oxfordshire County Council,SEN Inclusion Fund,02/11/2023,5537,Payments to Other Establishments,3111541745,539,Great Tew Pre-School
http://statistics.data.gov.uk/id/local-authority/38,Oxfordshire County Council,SEN Inclusion Fund,02/11/2023,5537,Payments to Other Establishments,3111541755,539,Great Tew Pre-School
http://statistics.data.gov.uk/id/local-authority/38,Oxfordshire County Council,SEN Inclusion Fund,02/11/2023,5537,Payments to Other Establishments,3111541759,539,Grovelands Park Pre-School
http://statistics.data.gov.uk/id/local-authority/38,Oxfordshire County Council,SEN Inclusion Fund,02/11/2023,5537,Payments to Other Establishments,3111541867,539,Hanborough Meadows Pre-School
http://statistics.data.gov.uk/id/local-authority/38,Oxfordshire County Council,SEN Inclusion Fund,02/11/2023,5537,Payments to Other Establishments,3111541868,539,Hanborough Meadows Pre-School
http://statistics.data.gov.uk/id/local-authority/38,Oxfordshire County Council,SEN Inclusion Fund,02/11/2023,5537,Payments to Other Establishments,3111541870,539,Hanborough Meadows Pre-School
http://statistics.data.gov.uk/id/local-authority/38,Oxfordshire County Council,SEN Inclusion Fund,02/11/2023,5537,Payments to Other Establishments,3111541872,539,Hanborough Meadows Pre-School
http://statistics.data.gov.uk/id/local-authority/38,Oxfordshire County Council,SEN Inclusion Fund,02/11/2023,5537,Payments to Other Establishments,3111541875,539,Hanborough Meadows Pre-School
http://statistics.data.gov.uk/id/local-authority/38,Oxfordshire County Council,SEN Inclusion Fund,02/11/2023,5537,Payments to Other Establishments,3111541767,539,Hanborough Pre-School
http://statistics.data.gov.uk/id/local-authority/38,Oxfordshire County Council,SEN Inclusion Fund,02/11/2023,5537,Payments to Other Establishments,3111541768,539,Hanborough Pre-School
http://statistics.data.gov.uk/id/local-authority/38,Oxfordshire County Council,SEN Inclusion Fund,02/11/2023,5537,Payments to Other Establishments,3111541769,539,Hanborough Pre-School
http://statistics.data.gov.uk/id/local-authority/38,Oxfordshire County Council,SEN Inclusion Fund,02/11/2023,5537,Payments to Other Establishments,3111541777,539,Hanborough Pre-School
http://statistics.data.gov.uk/id/local-authority/38,Oxfordshire County Council,SEN Inclusion Fund,02/11/2023,5537,Payments to Other Establishments,3111541778,539,Hanborough Pre-School
http://statistics.data.gov.uk/id/local-authority/38,Oxfordshire County Council,SEN Inclusion Fund,02/11/2023,5537,Payments to Other Establishments,3111541780,539,Hanborough Pre-School
http://statistics.data.gov.uk/id/local-authority/38,Oxfordshire County Council,SEN Inclusion Fund,02/11/2023,5537,Payments to Other Establishments,3111541781,539,Hanborough Pre-School
http://statistics.data.gov.uk/id/local-authority/38,Oxfordshire County Council,SEN Inclusion Fund,02/11/2023,5537,Payments to Other Establishments,3111541843,539,Hardwick & Arden Pre-School
http://statistics.data.gov.uk/id/local-authority/38,Oxfordshire County Council,SEN Inclusion Fund,02/11/2023,5537,Payments to Other Establishments,3111541917,539,Harpsden Pre-School Playgroup
http://statistics.data.gov.uk/id/local-authority/38,Oxfordshire County Council,SEN Inclusion Fund,02/11/2023,5537,Payments to Other Establishments,3111541919,539,Harpsden Pre-School Playgroup
http://statistics.data.gov.uk/id/local-authority/38,Oxfordshire County Council,SEN Inclusion Fund,02/11/2023,5537,Payments to Other Establishments,3111541675,539,Harriers Banbury Academy
http://statistics.data.gov.uk/id/local-authority/38,Oxfordshire County Council,SEN Inclusion Fund,02/11/2023,5537,Payments to Other Establishments,3111541682,539,Highmoor Nursery School Ltd
http://statistics.data.gov.uk/id/local-authority/38,Oxfordshire County Council,SEN Inclusion Fund,02/11/2023,5537,Payments to Other Establishments,3111541697,539,Highmoor Nursery School Ltd
http://statistics.data.gov.uk/id/local-authority/38,Oxfordshire County Council,SEN Inclusion Fund,02/11/2023,5537,Payments to Other Establishments,3111541700,539,Highmoor Nursery School Ltd
http://statistics.data.gov.uk/id/local-authority/38,Oxfordshire County Council,SEN Inclusion Fund,02/11/2023,5537,Payments to Other Establishments,3111542073,539,Hill View Primary School
http://statistics.data.gov.uk/id/local-authority/38,Oxfordshire County Council,SEN Inclusion Fund,02/11/2023,5537,Payments to Other Establishments,3111542077,539,Hill View Primary School
http://statistics.data.gov.uk/id/local-authority/38,Oxfordshire County Council,SEN Inclusion Fund,02/11/2023,5537,Payments to Other Establishments,3111541779,539,Hobby Horse Childrens Centre
http://statistics.data.gov.uk/id/local-authority/38,Oxfordshire County Council,SEN Inclusion Fund,02/11/2023,5537,Payments to Other Establishments,3111541847,539,Horspath Pre-School Nursery
http://statistics.data.gov.uk/id/local-authority/38,Oxfordshire County Council,SEN Inclusion Fund,02/11/2023,5537,Payments to Other Establishments,3111541860,539,Horspath Pre-School Nursery
http://statistics.data.gov.uk/id/local-authority/38,Oxfordshire County Council,SEN Inclusion Fund,02/11/2023,5537,Payments to Other Establishments,3111541861,539,Horspath Pre-School Nursery
http://statistics.data.gov.uk/id/local-authority/38,Oxfordshire County Council,SEN Inclusion Fund,02/11/2023,5537,Payments to Other Establishments,3111541822,539,Jack & Jill Playgroup
http://statistics.data.gov.uk/id/local-authority/38,Oxfordshire County Council,SEN Inclusion Fund,02/11/2023,5537,Payments to Other Establishments,3111541830,539,Jack & Jill Playgroup
http://statistics.data.gov.uk/id/local-authority/38,Oxfordshire County Council,SEN Inclusion Fund,02/11/2023,5537,Payments to Other Establishments,3111541832,539,Jack & Jill Playgroup
http://statistics.data.gov.uk/id/local-authority/38,Oxfordshire County Council,SEN Inclusion Fund,02/11/2023,5537,Payments to Other Establishments,3111541835,539,Jack & Jill Playgroup
http://statistics.data.gov.uk/id/local-authority/38,Oxfordshire County Council,SEN Inclusion Fund,02/11/2023,5537,Payments to Other Establishments,3111541837,539,Jack & Jill Playgroup
http://statistics.data.gov.uk/id/local-authority/38,Oxfordshire County Council,SEN Inclusion Fund,02/11/2023,5537,Payments to Other Establishments,3111541838,539,Jack & Jill Playgroup
http://statistics.data.gov.uk/id/local-authority/38,Oxfordshire County Council,SEN Inclusion Fund,02/11/2023,5537,Payments to Other Establishments,3111541839,539,Jack & Jill Playgroup
http://statistics.data.gov.uk/id/local-authority/38,Oxfordshire County Council,SEN Inclusion Fund,02/11/2023,5537,Payments to Other Establishments,3111541841,539,Jack & Jill Playgroup
http://statistics.data.gov.uk/id/local-authority/38,Oxfordshire County Council,SEN Inclusion Fund,02/11/2023,5537,Payments to Other Establishments,3111541851,539,Jack & Jill Playgroup
http://statistics.data.gov.uk/id/local-authority/38,Oxfordshire County Council,SEN Inclusion Fund,02/11/2023,5537,Payments to Other Establishments,3111541852,539,Jack & Jill Playgroup
http://statistics.data.gov.uk/id/local-authority/38,Oxfordshire County Council,SEN Inclusion Fund,02/11/2023,5537,Payments to Other Establishments,3111541854,539,Jack & Jill Playgroup
http://statistics.data.gov.uk/id/local-authority/38,Oxfordshire County Council,SEN Inclusion Fund,02/11/2023,5537,Payments to Other Establishments,3111541856,539,Jack & Jill Playgroup
http://statistics.data.gov.uk/id/local-authority/38,Oxfordshire County Council,SEN Inclusion Fund,02/11/2023,5537,Payments to Other Establishments,3111541951,539,John Henry Newman Academy
http://statistics.data.gov.uk/id/local-authority/38,Oxfordshire County Council,SEN Inclusion Fund,02/11/2023,5537,Payments to Other Establishments,3111541956,539,John Henry Newman Academy
http://statistics.data.gov.uk/id/local-authority/38,Oxfordshire County Council,SEN Inclusion Fund,02/11/2023,5537,Payments to Other Establishments,3111541959,539,John Henry Newman Academy
http://statistics.data.gov.uk/id/local-authority/38,Oxfordshire County Council,SEN Inclusion Fund,02/11/2023,5537,Payments to Other Establishments,3111541961,539,John Henry Newman Academy
http://statistics.data.gov.uk/id/local-authority/38,Oxfordshire County Council,SEN Inclusion Fund,02/11/2023,5537,Payments to Other Establishments,3111541702,539,Kiddies Korner
http://statistics.data.gov.uk/id/local-authority/38,Oxfordshire County Council,SEN Inclusion Fund,02/11/2023,5537,Payments to Other Establishments,3111541704,539,Kiddies Korner
http://statistics.data.gov.uk/id/local-authority/38,Oxfordshire County Council,SEN Inclusion Fund,02/11/2023,5537,Payments to Other Establishments,3111541711,539,Kiddies Korner
http://statistics.data.gov.uk/id/local-authority/38,Oxfordshire County Council,SEN Inclusion Fund,02/11/2023,5537,Payments to Other Establishments,3111541715,539,Kiddies Korner
http://statistics.data.gov.uk/id/local-authority/38,Oxfordshire County Council,SEN Inclusion Fund,02/11/2023,5537,Payments to Other Establishments,3111541902,539,Kidsunlimited Oxford Business Park
http://statistics.data.gov.uk/id/local-authority/38,Oxfordshire County Council,SEN Inclusion Fund,02/11/2023,5537,Payments to Other Establishments,3111541903,539,Kidsunlimited Oxford Business Park
http://statistics.data.gov.uk/id/local-authority/38,Oxfordshire County Council,SEN Inclusion Fund,02/11/2023,5537,Payments to Other Establishments,3111541695,539,Kingfisher Kindergarten
http://statistics.data.gov.uk/id/local-authority/38,Oxfordshire County Council,SEN Inclusion Fund,02/11/2023,5537,Payments to Other Establishments,3111541696,539,Kingfisher Kindergarten
http://statistics.data.gov.uk/id/local-authority/38,Oxfordshire County Council,SEN Inclusion Fund,02/11/2023,5537,Payments to Other Establishments,3111541793,539,Kingsfield Nursery
http://statistics.data.gov.uk/id/local-authority/38,Oxfordshire County Council,SEN Inclusion Fund,02/11/2023,5537,Payments to Other Establishments,3111541796,539,Kingsfield Nursery
http://statistics.data.gov.uk/id/local-authority/38,Oxfordshire County Council,SEN Inclusion Fund,02/11/2023,5537,Payments to Other Establishments,3111541848,539,Kirtlington Pre-School (PFSU)
http://statistics.data.gov.uk/id/local-authority/38,Oxfordshire County Council,SEN Inclusion Fund,02/11/2023,5537,Payments to Other Establishments,3111541842,539,Ladybird Pre-School Limited
http://statistics.data.gov.uk/id/local-authority/38,Oxfordshire County Council,SEN Inclusion Fund,02/11/2023,5537,Payments to Other Establishments,3111541853,539,Ladybird Pre-School Limited
http://statistics.data.gov.uk/id/local-authority/38,Oxfordshire County Council,SEN Inclusion Fund,02/11/2023,5537,Payments to Other Establishments,3111541855,539,Ladybird Pre-School Limited
http://statistics.data.gov.uk/id/local-authority/38,Oxfordshire County Council,SEN Inclusion Fund,02/11/2023,5537,Payments to Other Establishments,3111541857,539,Ladybird Pre-School Limited
http://statistics.data.gov.uk/id/local-authority/38,Oxfordshire County Council,SEN Inclusion Fund,02/11/2023,5537,Payments to Other Establishments,3111541862,539,Ladybird Pre-School Limited
http://statistics.data.gov.uk/id/local-authority/38,Oxfordshire County Council,SEN Inclusion Fund,02/11/2023,5537,Payments to Other Establishments,3111541863,539,Ladybird Pre-School Limited
http://statistics.data.gov.uk/id/local-authority/38,Oxfordshire County Council,SEN Inclusion Fund,02/11/2023,5537,Payments to Other Establishments,3111541878,539,Ladybird Pre-School Limited
http://statistics.data.gov.uk/id/local-authority/38,Oxfordshire County Council,SEN Inclusion Fund,02/11/2023,5537,Payments to Other Establishments,3111541879,539,Ladybird Pre-School Limited
http://statistics.data.gov.uk/id/local-authority/38,Oxfordshire County Council,SEN Inclusion Fund,02/11/2023,5537,Payments to Other Establishments,3111541881,539,Ladybird Pre-School Limited
http://statistics.data.gov.uk/id/local-authority/38,Oxfordshire County Council,SEN Inclusion Fund,02/11/2023,5537,Payments to Other Establishments,3111541916,539,Lake Street Nursery
http://statistics.data.gov.uk/id/local-authority/38,Oxfordshire County Council,SEN Inclusion Fund,02/11/2023,5537,Payments to Other Establishments,3111541824,539,Leafield Pre-School
http://statistics.data.gov.uk/id/local-authority/38,Oxfordshire County Council,SEN Inclusion Fund,02/11/2023,5537,Payments to Other Establishments,3111541825,539,Leafield Pre-School
http://statistics.data.gov.uk/id/local-authority/38,Oxfordshire County Council,SEN Inclusion Fund,02/11/2023,5537,Payments to Other Establishments,3111541931,539,Little Bears Pre-School (PFSU)
http://statistics.data.gov.uk/id/local-authority/38,Oxfordshire County Council,SEN Inclusion Fund,02/11/2023,5537,Payments to Other Establishments,3111541942,539,Little Dots Daycare
http://statistics.data.gov.uk/id/local-authority/38,Oxfordshire County Council,SEN Inclusion Fund,02/11/2023,5537,Payments to Other Establishments,3111541943,539,Little Dots Daycare
http://statistics.data.gov.uk/id/local-authority/38,Oxfordshire County Council,SEN Inclusion Fund,02/11/2023,5537,Payments to Other Establishments,3111541954,539,Little Dots Daycare
http://statistics.data.gov.uk/id/local-authority/38,Oxfordshire County Council,SEN Inclusion Fund,02/11/2023,5537,Payments to Other Establishments,3111541955,539,Little Dots Daycare
http://statistics.data.gov.uk/id/local-authority/38,Oxfordshire County Council,SEN Inclusion Fund,02/11/2023,5537,Payments to Other Establishments,3111541953,539,Little Monkeys Charlbury Limited
http://statistics.data.gov.uk/id/local-authority/38,Oxfordshire County Council,SEN Inclusion Fund,02/11/2023,5537,Payments to Other Establishments,3111541886,539,Little Oak Pre-School
http://statistics.data.gov.uk/id/local-authority/38,Oxfordshire County Council,SEN Inclusion Fund,02/11/2023,5537,Payments to Other Establishments,3111541890,539,Little Oak Pre-School
http://statistics.data.gov.uk/id/local-authority/38,Oxfordshire County Council,SEN Inclusion Fund,02/11/2023,5537,Payments to Other Establishments,3111541893,539,Little Oak Pre-School
http://statistics.data.gov.uk/id/local-authority/38,Oxfordshire County Council,SEN Inclusion Fund,02/11/2023,5537,Payments to Other Establishments,3111541898,539,Little Oak Pre-School
http://statistics.data.gov.uk/id/local-authority/38,Oxfordshire County Council,SEN Inclusion Fund,03/11/2023,5537,Payments to Other Establishments,3111542735,539,Little Oak Pre-School
http://statistics.data.gov.uk/id/local-authority/38,Oxfordshire County Council,SEN Inclusion Fund,02/11/2023,5537,Payments to Other Establishments,3111541687,539,Little Pippins Pre-Schoo
http://statistics.data.gov.uk/id/local-authority/38,Oxfordshire County Council,SEN Inclusion Fund,02/11/2023,5537,Payments to Other Establishments,3111541688,539,Little Pippins Pre-Schoo
http://statistics.data.gov.uk/id/local-authority/38,Oxfordshire County Council,SEN Inclusion Fund,02/11/2023,5537,Payments to Other Establishments,3111541690,539,Little Pippins Pre-Schoo
http://statistics.data.gov.uk/id/local-authority/38,Oxfordshire County Council,SEN Inclusion Fund,02/11/2023,5537,Payments to Other Establishments,3111541692,539,Little Pippins Pre-Schoo
http://statistics.data.gov.uk/id/local-authority/38,Oxfordshire County Council,SEN Inclusion Fund,02/11/2023,5537,Payments to Other Establishments,3111541693,539,Little Pippins Pre-Schoo
http://statistics.data.gov.uk/id/local-authority/38,Oxfordshire County Council,SEN Inclusion Fund,02/11/2023,5537,Payments to Other Establishments,3111541694,539,Little Pippins Pre-Schoo
http://statistics.data.gov.uk/id/local-authority/38,Oxfordshire County Council,SEN Inclusion Fund,02/11/2023,5537,Payments to Other Establishments,3111541701,539,Little Pippins Pre-Schoo
http://statistics.data.gov.uk/id/local-authority/38,Oxfordshire County Council,SEN Inclusion Fund,02/11/2023,5537,Payments to Other Establishments,3111541713,539,Little Pippins Pre-Schoo
http://statistics.data.gov.uk/id/local-authority/38,Oxfordshire County Council,SEN Inclusion Fund,02/11/2023,5537,Payments to Other Establishments,3111541714,539,Little Pippins Pre-Schoo
http://statistics.data.gov.uk/id/local-authority/38,Oxfordshire County Council,SEN Inclusion Fund,02/11/2023,5537,Payments to Other Establishments,3111541716,539,Little Pippins Pre-Schoo
http://statistics.data.gov.uk/id/local-authority/38,Oxfordshire County Council,SEN Inclusion Fund,02/11/2023,5537,Payments to Other Establishments,3111541717,539,Little Pippins Pre-Schoo
http://statistics.data.gov.uk/id/local-authority/38,Oxfordshire County Council,SEN Inclusion Fund,02/11/2023,5537,Payments to Other Establishments,3111542020,539,Little Treasure Day Nursery
http://statistics.data.gov.uk/id/local-authority/38,Oxfordshire County Council,SEN Inclusion Fund,02/11/2023,5537,Payments to Other Establishments,3111541671,539,LITTLE TREASURES ACADEMY
http://statistics.data.gov.uk/id/local-authority/38,Oxfordshire County Council,SEN Inclusion Fund,02/11/2023,5537,Payments to Other Establishments,3111541672,539,LITTLE TREASURES ACADEMY
http://statistics.data.gov.uk/id/local-authority/38,Oxfordshire County Council,SEN Inclusion Fund,02/11/2023,5537,Payments to Other Establishments,3111541912,539,Littlemore Playgroup
http://statistics.data.gov.uk/id/local-authority/38,Oxfordshire County Council,SEN Inclusion Fund,02/11/2023,5537,Payments to Other Establishments,3111541914,539,Littlemore Playgroup
http://statistics.data.gov.uk/id/local-authority/38,Oxfordshire County Council,SEN Inclusion Fund,02/11/2023,5537,Payments to Other Establishments,3111541689,539,Long Wittenham Pre-School
http://statistics.data.gov.uk/id/local-authority/38,Oxfordshire County Council,SEN Inclusion Fund,02/11/2023,5537,Payments to Other Establishments,3111541691,539,Long Wittenham Pre-School
http://statistics.data.gov.uk/id/local-authority/38,Oxfordshire County Council,SEN Inclusion Fund,02/11/2023,5537,Payments to Other Establishments,3111541699,539,Long Wittenham Pre-School
http://statistics.data.gov.uk/id/local-authority/38,Oxfordshire County Council,SEN Inclusion Fund,02/11/2023,5537,Payments to Other Establishments,3111542043,539,Longford Park Primary School
http://statistics.data.gov.uk/id/local-authority/38,Oxfordshire County Council,SEN Inclusion Fund,02/11/2023,5537,Payments to Other Establishments,3111542059,539,Longford Park Primary School
http://statistics.data.gov.uk/id/local-authority/38,Oxfordshire County Council,SEN Inclusion Fund,02/11/2023,5537,Payments to Other Establishments,3111541748,539,Marcham Playgroup
http://statistics.data.gov.uk/id/local-authority/38,Oxfordshire County Council,SEN Inclusion Fund,02/11/2023,5537,Payments to Other Establishments,3111541741,539,Middle Barton Pre-School
http://statistics.data.gov.uk/id/local-authority/38,Oxfordshire County Council,SEN Inclusion Fund,02/11/2023,5537,Payments to Other Establishments,3111542035,539,Millbrook Primary School
http://statistics.data.gov.uk/id/local-authority/38,Oxfordshire County Council,SEN Inclusion Fund,02/11/2023,5537,Payments to Other Establishments,3111542037,539,Millbrook Primary School
http://statistics.data.gov.uk/id/local-authority/38,Oxfordshire County Council,SEN Inclusion Fund,02/11/2023,5537,Payments to Other Establishments,3111542040,539,Millbrook Primary School
http://statistics.data.gov.uk/id/local-authority/38,Oxfordshire County Council,SEN Inclusion Fund,02/11/2023,5537,Payments to Other Establishments,3111542041,539,Millbrook Primary School
http://statistics.data.gov.uk/id/local-authority/38,Oxfordshire County Council,SEN Inclusion Fund,02/11/2023,5537,Payments to Other Establishments,3111541887,539,Minster Lovell Playgroup
http://statistics.data.gov.uk/id/local-authority/38,Oxfordshire County Council,SEN Inclusion Fund,02/11/2023,5537,Payments to Other Establishments,3111541726,539,New Trinity Pre-School
http://statistics.data.gov.uk/id/local-authority/38,Oxfordshire County Council,SEN Inclusion Fund,02/11/2023,5537,Payments to Other Establishments,3111541737,539,New Trinity Pre-School
http://statistics.data.gov.uk/id/local-authority/38,Oxfordshire County Council,SEN Inclusion Fund,02/11/2023,5537,Payments to Other Establishments,3111541764,539,North Hinksey Pre School & Childcar
http://statistics.data.gov.uk/id/local-authority/38,Oxfordshire County Council,SEN Inclusion Fund,02/11/2023,5537,Payments to Other Establishments,3111541770,539,North Hinksey Pre School & Childcar
http://statistics.data.gov.uk/id/local-authority/38,Oxfordshire County Council,SEN Inclusion Fund,02/11/2023,5537,Payments to Other Establishments,3111541774,539,North Hinksey Pre School & Childcar
http://statistics.data.gov.uk/id/local-authority/38,Oxfordshire County Council,SEN Inclusion Fund,02/11/2023,5537,Payments to Other Establishments,3111541775,539,North Hinksey Pre School & Childcar
http://statistics.data.gov.uk/id/local-authority/38,Oxfordshire County Council,SEN Inclusion Fund,02/11/2023,5537,Payments to Other Establishments,3111541706,539,Peachcroft Pre-School
http://statistics.data.gov.uk/id/local-authority/38,Oxfordshire County Council,SEN Inclusion Fund,02/11/2023,5537,Payments to Other Establishments,3111541707,539,Peachcroft Pre-School
http://statistics.data.gov.uk/id/local-authority/38,Oxfordshire County Council,SEN Inclusion Fund,02/11/2023,5537,Payments to Other Establishments,3111541930,539,PUDDLEDUCK NURSERY
http://statistics.data.gov.uk/id/local-authority/38,Oxfordshire County Council,SEN Inclusion Fund,02/11/2023,5537,Payments to Other Establishments,3111541708,539,Rainbow Corner Day Nurse
http://statistics.data.gov.uk/id/local-authority/38,Oxfordshire County Council,SEN Inclusion Fund,02/11/2023,5537,Payments to Other Establishments,3111541710,539,Rainbow Corner Day Nurse
http://statistics.data.gov.uk/id/local-authority/38,Oxfordshire County Council,SEN Inclusion Fund,02/11/2023,5537,Payments to Other Establishments,3111541712,539,Rainbow Corner Day Nurse
http://statistics.data.gov.uk/id/local-authority/38,Oxfordshire County Council,SEN Inclusion Fund,02/11/2023,5537,Payments to Other Establishments,3111541718,539,Rainbow Corner Day Nurse
http://statistics.data.gov.uk/id/local-authority/38,Oxfordshire County Council,SEN Inclusion Fund,02/11/2023,5537,Payments to Other Establishments,3111541922,539,Rainbows Day Nursery
http://statistics.data.gov.uk/id/local-authority/38,Oxfordshire County Council,SEN Inclusion Fund,02/11/2023,5537,Payments to Other Establishments,3111541791,539,Red Dragon Pre-School Gr
http://statistics.data.gov.uk/id/local-authority/38,Oxfordshire County Council,SEN Inclusion Fund,02/11/2023,5537,Payments to Other Establishments,3111541792,539,Red Dragon Pre-School Gr
http://statistics.data.gov.uk/id/local-authority/38,Oxfordshire County Council,SEN Inclusion Fund,02/11/2023,5537,Payments to Other Establishments,3111541757,539,Robin Playgroup
http://statistics.data.gov.uk/id/local-authority/38,Oxfordshire County Council,SEN Inclusion Fund,02/11/2023,5537,Payments to Other Establishments,3111541723,539,Sacred Heart Pre-School
http://statistics.data.gov.uk/id/local-authority/38,Oxfordshire County Council,SEN Inclusion Fund,02/11/2023,5537,Payments to Other Establishments,3111541740,539,Sacred Heart Pre-School
http://statistics.data.gov.uk/id/local-authority/38,Oxfordshire County Council,SEN Inclusion Fund,02/11/2023,5537,Payments to Other Establishments,3111541785,539,Saltway Day Nursery
http://statistics.data.gov.uk/id/local-authority/38,Oxfordshire County Council,SEN Inclusion Fund,02/11/2023,5537,Payments to Other Establishments,3111541786,539,Saltway Day Nursery
http://statistics.data.gov.uk/id/local-authority/38,Oxfordshire County Council,SEN Inclusion Fund,02/11/2023,5537,Payments to Other Establishments,3111541924,539,Scamps of Benson Ltd
http://statistics.data.gov.uk/id/local-authority/38,Oxfordshire County Council,SEN Inclusion Fund,02/11/2023,5537,Payments to Other Establishments,3111541935,539,Scamps of Benson Ltd
http://statistics.data.gov.uk/id/local-authority/38,Oxfordshire County Council,SEN Inclusion Fund,02/11/2023,5537,Payments to Other Establishments,3111541904,539,SKIPS
http://statistics.data.gov.uk/id/local-authority/38,Oxfordshire County Council,SEN Inclusion Fund,02/11/2023,5537,Payments to Other Establishments,3111541905,539,SKIPS
http://statistics.data.gov.uk/id/local-authority/38,Oxfordshire County Council,SEN Inclusion Fund,02/11/2023,5537,Payments to Other Establishments,3111541829,539,Sonning Common Pre-School
http://statistics.data.gov.uk/id/local-authority/38,Oxfordshire County Council,SEN Inclusion Fund,02/11/2023,5537,Payments to Other Establishments,3111541836,539,Sonning Common Pre-School
http://statistics.data.gov.uk/id/local-authority/38,Oxfordshire County Council,SEN Inclusion Fund,02/11/2023,5537,Payments to Other Establishments,3111541864,539,South Moreton Pre-School
http://statistics.data.gov.uk/id/local-authority/38,Oxfordshire County Council,SEN Inclusion Fund,02/11/2023,5537,Payments to Other Establishments,3111541865,539,South Moreton Pre-School
http://statistics.data.gov.uk/id/local-authority/38,Oxfordshire County Council,SEN Inclusion Fund,02/11/2023,5537,Payments to Other Establishments,3111541866,539,South Moreton Pre-School
http://statistics.data.gov.uk/id/local-authority/38,Oxfordshire County Council,SEN Inclusion Fund,02/11/2023,5537,Payments to Other Establishments,3111541876,539,South Moreton Pre-School
http://statistics.data.gov.uk/id/local-authority/38,Oxfordshire County Council,SEN Inclusion Fund,02/11/2023,5537,Payments to Other Establishments,3111541877,539,South Moreton Pre-School
http://statistics.data.gov.uk/id/local-authority/38,Oxfordshire County Council,SEN Inclusion Fund,02/11/2023,5537,Payments to Other Establishments,3111541880,539,South Moreton Pre-School
http://statistics.data.gov.uk/id/local-authority/38,Oxfordshire County Council,SEN Inclusion Fund,02/11/2023,5537,Payments to Other Establishments,3111541885,539,South Moreton Pre-School
http://statistics.data.gov.uk/id/local-authority/38,Oxfordshire County Council,SEN Inclusion Fund,02/11/2023,5537,Payments to Other Establishments,3111542053,539,Southwold Primary School Academy
http://statistics.data.gov.uk/id/local-authority/38,Oxfordshire County Council,SEN Inclusion Fund,02/11/2023,5537,Payments to Other Establishments,3111542003,539,St Christophers Primary School -
http://statistics.data.gov.uk/id/local-authority/38,Oxfordshire County Council,SEN Inclusion Fund,02/11/2023,5537,Payments to Other Establishments,3111542007,539,St Christophers Primary School -
http://statistics.data.gov.uk/id/local-authority/38,Oxfordshire County Council,SEN Inclusion Fund,02/11/2023,5537,Payments to Other Establishments,3111542021,539,St Christophers Primary School -
http://statistics.data.gov.uk/id/local-authority/38,Oxfordshire County Council,SEN Inclusion Fund,02/11/2023,5537,Payments to Other Establishments,3111542022,539,St Christophers Primary School -
http://statistics.data.gov.uk/id/local-authority/38,Oxfordshire County Council,SEN Inclusion Fund,02/11/2023,5537,Payments to Other Establishments,3111541913,539,St Marys Playgroup
http://statistics.data.gov.uk/id/local-authority/38,Oxfordshire County Council,SEN Inclusion Fund,02/11/2023,5537,Payments to Other Establishments,3111541762,539,St Nicolas Pre-School and Playgroup
http://statistics.data.gov.uk/id/local-authority/38,Oxfordshire County Council,SEN Inclusion Fund,02/11/2023,5537,Payments to Other Establishments,3111541771,539,St Nicolas Pre-School and Playgroup
http://statistics.data.gov.uk/id/local-authority/38,Oxfordshire County Council,SEN Inclusion Fund,02/11/2023,5537,Payments to Other Establishments,3111541772,539,St Nicolas Pre-School and Playgroup
http://statistics.data.gov.uk/id/local-authority/38,Oxfordshire County Council,SEN Inclusion Fund,02/11/2023,5537,Payments to Other Establishments,3111541776,539,St Nicolas Pre-School and Playgroup
http://statistics.data.gov.uk/id/local-authority/38,Oxfordshire County Council,SEN Inclusion Fund,02/11/2023,5537,Payments to Other Establishments,3111542036,539,St Peters Church of England Primary
http://statistics.data.gov.uk/id/local-authority/38,Oxfordshire County Council,SEN Inclusion Fund,02/11/2023,5537,Payments to Other Establishments,3111541891,539,Stanford in the Vale Pre School
http://statistics.data.gov.uk/id/local-authority/38,Oxfordshire County Council,SEN Inclusion Fund,02/11/2023,5537,Payments to Other Establishments,3111541808,539,Stonesfield Pre-School
http://statistics.data.gov.uk/id/local-authority/38,Oxfordshire County Council,SEN Inclusion Fund,02/11/2023,5537,Payments to Other Establishments,3111542028,539,Tower Hill School
http://statistics.data.gov.uk/id/local-authority/38,Oxfordshire County Council,SEN Inclusion Fund,02/11/2023,5537,Payments to Other Establishments,3111541725,539,Wantage Preschool
http://statistics.data.gov.uk/id/local-authority/38,Oxfordshire County Council,SEN Inclusion Fund,02/11/2023,5537,Payments to Other Establishments,3111541989,539,Watchfield Primary School - Academy
http://statistics.data.gov.uk/id/local-authority/38,Oxfordshire County Council,SEN Inclusion Fund,02/11/2023,5537,Payments to Other Establishments,3111541819,539,Whitchurch Pre-School Group
http://statistics.data.gov.uk/id/local-authority/38,Oxfordshire County Council,SEN Inclusion Fund,02/11/2023,5537,Payments to Other Establishments,3111542056,539,William Morris Primary School
http://statistics.data.gov.uk/id/local-authority/38,Oxfordshire County Council,SEN Inclusion Fund,02/11/2023,5537,Payments to Other Establishments,3111541962,539,Willowcroft Community School
http://statistics.data.gov.uk/id/local-authority/38,Oxfordshire County Council,SEN Inclusion Fund,02/11/2023,5537,Payments to Other Establishments,3111541967,539,Willowcroft Community School
http://statistics.data.gov.uk/id/local-authority/38,Oxfordshire County Council,SEN Inclusion Fund,02/11/2023,5537,Payments to Other Establishments,3111541968,539,Willowcroft Community School
http://statistics.data.gov.uk/id/local-authority/38,Oxfordshire County Council,SEN Inclusion Fund,02/11/2023,5537,Payments to Other Establishments,3111541969,539,Willowcroft Community School
http://statistics.data.gov.uk/id/local-authority/38,Oxfordshire County Council,SEN Inclusion Fund,02/11/2023,5537,Payments to Other Establishments,3111541972,539,Willowcroft Community School
http://statistics.data.gov.uk/id/local-authority/38,Oxfordshire County Council,SEN Inclusion Fund,02/11/2023,5537,Payments to Other Establishments,3111541975,539,Willowcroft Community School
http://statistics.data.gov.uk/id/local-authority/38,Oxfordshire County Council,SEN Inclusion Fund,02/11/2023,5537,Payments to Other Establishments,3111541976,539,Willowcroft Community School
http://statistics.data.gov.uk/id/local-authority/38,Oxfordshire County Council,SEN Inclusion Fund,02/11/2023,5537,Payments to Other Establishments,3111541977,539,Willowcroft Community School
http://statistics.data.gov.uk/id/local-authority/38,Oxfordshire County Council,SEN Inclusion Fund,02/11/2023,5537,Payments to Other Establishments,3111541978,539,Willowcroft Community School
http://statistics.data.gov.uk/id/local-authority/38,Oxfordshire County Council,SEN Inclusion Fund,02/11/2023,5537,Payments to Other Establishments,3111541979,539,Willowcroft Community School
http://statistics.data.gov.uk/id/local-authority/38,Oxfordshire County Council,SEN Inclusion Fund,02/11/2023,5537,Payments to Other Establishments,3111541980,539,Willowcroft Community School
http://statistics.data.gov.uk/id/local-authority/38,Oxfordshire County Council,SEN Inclusion Fund,02/11/2023,5537,Payments to Other Establishments,3111541981,539,Willowcroft Community School
http://statistics.data.gov.uk/id/local-authority/38,Oxfordshire County Council,SEN Inclusion Fund,02/11/2023,5537,Payments to Other Establishments,3111541982,539,Willowcroft Community School
http://statistics.data.gov.uk/id/local-authority/38,Oxfordshire County Council,SEN Inclusion Fund,02/11/2023,5537,Payments to Other Establishments,3111541984,539,Willowcroft Community School
http://statistics.data.gov.uk/id/local-authority/38,Oxfordshire County Council,SEN Inclusion Fund,02/11/2023,5537,Payments to Other Establishments,3111541986,539,Willowcroft Community School
http://statistics.data.gov.uk/id/local-authority/38,Oxfordshire County Council,SEN Inclusion Fund,02/11/2023,5537,Payments to Other Establishments,3111541873,539,Wolfson College Day Nurs
http://statistics.data.gov.uk/id/local-authority/38,Oxfordshire County Council,SEN Inclusion Fund,02/11/2023,5537,Payments to Other Establishments,3111541874,539,Wolfson College Day Nurs
http://statistics.data.gov.uk/id/local-authority/38,Oxfordshire County Council,SEN Inclusion Fund,02/11/2023,5537,Payments to Other Establishments,3111542057,539,Wolvercote Primary School
http://statistics.data.gov.uk/id/local-authority/38,Oxfordshire County Council,SEN Inclusion Fund,02/11/2023,5537,Payments to Other Establishments,3111542058,539,Wolvercote Primary School
http://statistics.data.gov.uk/id/local-authority/38,Oxfordshire County Council,Support at Home U65 Learning Disability,02/11/2023,5227,Other Transport Arrangements,3111533835,540,Ali's Cabs
http://statistics.data.gov.uk/id/local-authority/38,Oxfordshire County Council,Independent Foster,08/11/2023,5573,,3111546565,540,NATIONAL FOSTERING AGENCY
http://statistics.data.gov.uk/id/local-authority/38,Oxfordshire County Council,SEN TRANSPORT,16/11/2023,4330,Transport to School Activities,3111553728,540,Oxon Transport Services Ltd
http://statistics.data.gov.uk/id/local-authority/38,Oxfordshire County Council,DISABILITIES TEAM-N,09/11/2023,5227,Other Transport Arrangements,3111546740,540,Primary Travel Ltd
http://statistics.data.gov.uk/id/local-authority/38,Oxfordshire County Council,OXF. EMPLOYMENT SERV,10/11/2023,3942,Hire of Accommodation and Facilities,2201168079,540,Seacourt Hall
http://statistics.data.gov.uk/id/local-authority/38,Oxfordshire County Council,TREE MAINT OPS,08/11/2023,5526,Payments to Private Contractors,2201167406,540,Treetech Arboricultural Services Lt
http://statistics.data.gov.uk/id/local-authority/38,Oxfordshire County Council,ATV Adoption Woodley,14/11/2023,5394,Other Expenses,3111553210,540.5,OCC One Time Vendor
http://statistics.data.gov.uk/id/local-authority/38,Oxfordshire County Council,Community Support Service Wantage,09/11/2023,4232,Vehicle Fuel,2201167601,541.06,Allstar Business Solutions Ltd
http://statistics.data.gov.uk/id/local-authority/38,Oxfordshire County Council,FAM GRP CONFERENCES,02/11/2023,4940,Other Services,2201164917,542,Emma Wood
http://statistics.data.gov.uk/id/local-authority/38,Oxfordshire County Council,Reactive Maintenance,15/11/2023,3787,Premises Repairs,2201169740,542.11,Sureheat Spares Ltd
http://statistics.data.gov.uk/id/local-authority/38,Oxfordshire County Council,"Marketing, Communications & Engagement",10/11/2023,4790,"Publicity, Promotions and Advertisement",2201168535,542.5,Bentley Cook Ltd
http://statistics.data.gov.uk/id/local-authority/38,Oxfordshire County Council,Support at Home 65+ Physical Support,07/11/2023,5699,,3111545359,542.53,Home Helpers Care Ltd
http://statistics.data.gov.uk/id/local-authority/38,Oxfordshire County Council,Support at Home 65+ Memory & Cognition,03/11/2023,5693,,3111542850,542.53,Kwikfix Recruitment Services Ltd
http://statistics.data.gov.uk/id/local-authority/38,Oxfordshire County Council,FLEET OPERATIONS,09/11/2023,5070,Telephone - Rentals,3111546744,542.76,BT Payment Services Ltd
http://statistics.data.gov.uk/id/local-authority/38,Oxfordshire County Council,UASC 16&17,08/11/2023,5559,,3111546524,542.86,Connect Fostering Services Ltd
http://statistics.data.gov.uk/id/local-authority/38,Oxfordshire County Council,Support at Home 65+ Physical Support,07/11/2023,5699,,3111543715,542.99,Acquire Care Ltd
http://statistics.data.gov.uk/id/local-authority/38,Oxfordshire County Council,2 YEAR OLD FUNDING,02/11/2023,5537,Payments to Other Establishments,3111535487,543.18,Childrey Little Ducks Pre-School
http://statistics.data.gov.uk/id/local-authority/38,Oxfordshire County Council,Unregistered Placements,10/11/2023,5526,Payments to Private Contractors,2201168251,544.32,Network Ventures Ltd
http://statistics.data.gov.uk/id/local-authority/38,Oxfordshire County Council,Unregistered Placements,10/11/2023,5526,Payments to Private Contractors,2201168257,544.32,Network Ventures Ltd
http://statistics.data.gov.uk/id/local-authority/38,Oxfordshire County Council,Unregistered Placements,10/11/2023,5526,Payments to Private Contractors,2201168263,544.32,Network Ventures Ltd
http://statistics.data.gov.uk/id/local-authority/38,Oxfordshire County Council,Unregistered Placements,23/11/2023,5526,Payments to Private Contractors,2201173242,544.32,Network Ventures Ltd
http://statistics.data.gov.uk/id/local-authority/38,Oxfordshire County Council,Unregistered Placements,23/11/2023,5526,Payments to Private Contractors,2201173301,544.32,Network Ventures Ltd
http://statistics.data.gov.uk/id/local-authority/38,Oxfordshire County Council,Unregistered Placements,24/11/2023,5526,Payments to Private Contractors,2201173778,544.32,Network Ventures Ltd
http://statistics.data.gov.uk/id/local-authority/38,Oxfordshire County Council,Support at Home U65 MH OBC Contract,21/11/2023,5899,Social Care - Direct Payments,3111556765,544.32,Purple Conversation Com In Co (DP)
http://statistics.data.gov.uk/id/local-authority/38,Oxfordshire County Council,SHORT BREAK ACTIVITIES,09/11/2023,4330,Transport to School Activities,3111546704,544.8,ACE CARS BANBURY LTD
http://statistics.data.gov.uk/id/local-authority/38,Oxfordshire County Council,PREMISES,22/11/2023,4122,Other premises related costs,2201172380,545,G & S WOODCOCK LIMITED
http://statistics.data.gov.uk/id/local-authority/38,Oxfordshire County Council,TRANSPORT COSTS,13/11/2023,4330,Transport to School Activities,3111551923,545,Unitaxi Ltd
http://statistics.data.gov.uk/id/local-authority/38,Oxfordshire County Council,Funded Nursing Care  - Over 65,10/11/2023,5692,,3111548751,545.05,WT UK Opco 4 Ltd C/O Care UK
http://statistics.data.gov.uk/id/local-authority/38,Oxfordshire County Council,Support at Home U65 MH OBC Contract,10/11/2023,5690,,3111547380,545.66,Autism at Kingwood Limited
http://statistics.data.gov.uk/id/local-authority/38,Oxfordshire County Council,Support at Home U65 Learning Disability,10/11/2023,5690,,3111547393,545.66,MacIntyre Care (Womaston)
http://statistics.data.gov.uk/id/local-authority/38,Oxfordshire County Council,Wokingham Adoption Support Fund,06/11/2023,4861,Hired and Contracted Services,2201165923,546,Wendy May
http://statistics.data.gov.uk/id/local-authority/38,Oxfordshire County Council,VOIDS/VACANCY COSTS,10/11/2023,3945,Rent,3111551620,546.51,Cherwell District Council
http://statistics.data.gov.uk/id/local-authority/38,Oxfordshire County Council,HOUSING & IMMIGRATION & SOUTHWARK S17,13/11/2023,5572,,9300061847,547.5,OCC SS Banbury Area Off Cash
http://statistics.data.gov.uk/id/local-authority/38,Oxfordshire County Council,Early Years SEN Funding,08/11/2023,5537,Payments to Other Establishments,3111546612,547.68,St Hugh of Lincoln Nursery School
http://statistics.data.gov.uk/id/local-authority/38,Oxfordshire County Council,Support at Home U65 Memory & Cognition,07/11/2023,5696,,3111544471,548.75,All Care GB Ltd
http://statistics.data.gov.uk/id/local-authority/38,Oxfordshire County Council,Support at Home 65+ Physical Support,07/11/2023,5696,,3111544571,548.75,All Care GB Ltd
http://statistics.data.gov.uk/id/local-authority/38,Oxfordshire County Council,Staff Travel Benefits,20/11/2023,4341,B*Staff Self Drive Vehicle Hire,2201171441,549.17,Cyclescheme Ltd
http://statistics.data.gov.uk/id/local-authority/38,Oxfordshire County Council,Reactive Maintenance,15/11/2023,3787,Premises Repairs,2201170150,549.32,Aspect Contracts Limited
http://statistics.data.gov.uk/id/local-authority/38,Oxfordshire County Council,Support at Home U65 Learning Disability,07/11/2023,5689,,3111543858,549.36,Greigcare Home Service
http://statistics.data.gov.uk/id/local-authority/38,Oxfordshire County Council,LIBRARY COLLECTIONS,06/11/2023,4539,"Books, DVDs and CDs",3111542993,549.39,ASKEWS & HOLTS LIBRARY SERVICES LTD
http://statistics.data.gov.uk/id/local-authority/38,Oxfordshire County Council,Support at Home U65 MH OBC Contract,07/11/2023,5699,,3111543769,549.4,Adult Transition Services Ltd (ATrS
http://statistics.data.gov.uk/id/local-authority/38,Oxfordshire County Council,Support at Home 65+ Physical Support,07/11/2023,5699,,3111543892,549.4,Angel Care Group
http://statistics.data.gov.uk/id/local-authority/38,Oxfordshire County Council,Support at Home 65+ Physical Support,07/11/2023,5699,,3111543642,549.4,Buckingham Home Care Ltd
http://statistics.data.gov.uk/id/local-authority/38,Oxfordshire County Council,Support at Home U65 Physical Support,07/11/2023,5693,,3111543686,549.4,Direct Link Care Ltd
http://statistics.data.gov.uk/id/local-authority/38,Oxfordshire County Council,Support at Home U65 Physical Support,07/11/2023,5699,,3111545268,549.4,GET CARE LIMITED
http://statistics.data.gov.uk/id/local-authority/38,Oxfordshire County Council,Support at Home U65 Memory & Cognition,21/11/2023,5899,Social Care - Direct Payments,3111555225,549.4,Redacted Personal Data
http://statistics.data.gov.uk/id/local-authority/38,Oxfordshire County Council,Support at Home U65 Physical Support,07/11/2023,5699,,3111545589,549.4,Ringstead Healthcare Limited
http://statistics.data.gov.uk/id/local-authority/38,Oxfordshire County Council,Support at Home U65 Learning Disability,07/11/2023,5699,,3111545607,549.4,Ringstead Healthcare Limited
http://statistics.data.gov.uk/id/local-authority/38,Oxfordshire County Council,Support at Home U65 Learning Disability,01/11/2023,5693,,3111533638,549.4,UNITED RESPONSE
http://statistics.data.gov.uk/id/local-authority/38,Oxfordshire County Council,Support at Home U65 Learning Disability,29/11/2023,5693,,3111559891,549.4,UNITED RESPONSE
